Workbook

Sheet new
A1: Bereich | B1: Risikokategorie | C1: mögliche Risiko-Endpunkte | D1: Erläuterung/Beispiel | E1: consumer focus | F1: fgr | G1: dread | H1: natural | I1: positive | J1: evidence perspective | K1: sum score | L1: candidate | M1: Ref. Ex.
A2: Gesellschaft, Soziales und Politik | B2: Automatisierung | C2: Arbeitsplatzverlust | D2: Berufsart | E2: 0.5 | F2: 1 | G2: 0 | H2: 0 | I2: 0 | J2: 0.5 | K2: =E2+F2+G2+H2+I2+J2 -> 2 | L2: 1
A3: Gesellschaft, Soziales und Politik | B3: Digitalisierung | C3: Arbeitsplatzverlust, Anonymitätsverlust | D3: Qualifikationsmängel im Umgang | E3: 1 | F3: 1 | G3: 0 | H3: 0 | I3: 0 | J3: 0.5 | K3: 2.5 | L3: 1
A4: Gesellschaft, Soziales und Politik | B4: Einsamkeit | C4: Morbidität, Mortalität, Delinquenz, Sucht | D4: Singlehaushalte im Alter | E4: 0.5 | F4: 1 | G4: 0 | H4: 0 | I4: 0 | J4: 1 | K4: 2.5
A5: Gesellschaft, Soziales und Politik | B5: Entwicklung von Kindern | C5: Morbidität, Mortalität, Delinquenz, Armut, Behinderungen | D5: Elternstatus, Schulzone | E5: 0.5 | F5: 0 | G5: 0 | H5: 0 | I5: 0 | J5: 0.5 | K5: 1
A6: Gesellschaft, Soziales und Politik | B6: Kriege | C6: Ereignisse, Morbidität, Mortalität | D6: Atomkrieg | E6: 0 | F6: 0 | G6: 1 | H6: 0 | I6: 0 | J6: 0 | K6: 1 | M6: Slovic et al., 1980
A7: Gesellschaft, Soziales und Politik | B7: Kriminalität | C7: Kriminalitätsfolgen | D7: Cyberkriminalität: Identitätsdiebstahl | E7: 1 | F7: 1 | G7: 0 | H7: 0 | I7: 0 | J7: 1 | K7: 3 | L7: 1
A8: Gesellschaft, Soziales und Politik | B8: Kriminalität | C8: Kriminalitätsfolgen | D8: Cyberkriminalität: Missbrauch intimer Daten | E8: 1 | F8: 1 | G8: 0 | H8: 0 | I8: 0 | J8: 1 | K8: 3 | L8: 1
A9: Gesellschaft, Soziales und Politik | B9: Kriminalität | C9: Kriminalitätsfolgen | D9: Cyberkriminalität: Onlinebanking | E9: 1 | F9: 1 | G9: 0 | H9: 0 | I9: 0 | J9: 1 | K9: 3 | L9: 1
A10: Gesellschaft, Soziales und Politik | B10: Kriminalität | C10: Kriminalitätsfolgen | D10: Kreditkartenbetrug auf Auslandsreise | E10: 1 | L10: 1
A11: Gesellschaft, Soziales und Politik | B11: Kriminalität | C11: Kriminalitätsfolgen | D11: Kriminalitätsarten, e.g. Homicides | E11: 1 | F11: 1 | G11: 0 | H11: 0 | I11: 0 | J11: 1 | K11: =E11+F11+G11+H11+I11+J11 -> 3 | L11: 1 | M11: Bastide et al., 1989
A12: Gesellschaft, Soziales und Politik | B12: Kriminalität | C12: Opfer, Mortalität, Kriminalitätsfolgen, Verletzungen | D12: Family violence/abuse | E12: 0.5 | F12: 1 | G12: 0 | H12: 0 | I12: 0 | J12: 0.5 | K12: 2 | L12: 1 | M12: Radionova et al., 2009
A13: Gesellschaft, Soziales und Politik | B13: Kriminalität | C13: Opfer, Mortalität, Kriminalitätsfolgen, Verletzungen | D13: Kidnapping of children | E13: 0.5 | F13: 0 | G13: 0 | H13: 0 | I13: 0 | J13: 0.5 | K13: 1 | L13: 1 | M13: Radionova et al., 2009
A14: Gesellschaft, Soziales und Politik | B14: Kriminalität | C14: Opfer, Mortalität, Kriminalitätsfolgen, Verletzungen | D14: Kriminalität: Attacks in the Subway | E14: 1 | F14: 1 | G14: 0 | H14: 0 | I14: 0 | J14: 1 | K14: 3 | L14: 1 | M14: Radionova et al., 2009
A15: Gesellschaft, Soziales und Politik | B15: Migration | C15: Ereignisse, Armut, soziale Spannungen | D15: Flüchtlinge | E15: 0.5 | F15: 1 | G15: 0 | H15: 0 | I15: 0 | J15: 0.5 | K15: 2 | M15: Al-Rawad & Al Khattab, 2015
A16: Gesellschaft, Soziales und Politik | B16: Nichtlineare Entwicklungen | C16: Ereignisse, Armut | D16: Zinsen | E16: 1 | F16: 1 | G16: 0 | H16: 0.5 | I16: 0 | J16: 0.5 | K16: 3
A17: Gesellschaft, Soziales und Politik | B17: Persönlichkeitseigenschaften | C17: Delinquenz, Armut | D17: Depressivität | E17: 0.5 | F17: 1 | G17: 0 | H17: 0 | I17: 0 | J17: 1 | K17: 2.5 | M17: Al-Rawad & Al Khattab, 2015
A18: Gesellschaft, Soziales und Politik | B18: Persönlichkeitseigenschaften | C18: Delinquenz, Armut | D18: Egozentrismus | E18: 0.5 | F18: 1 | G18: 0 | H18: 0 | I18: 0 | J18: 1 | K18: 2.5
A19: Gesellschaft, Soziales und Politik | B19: Persönlichkeitseigenschaften | C19: Delinquenz, Armut | D19: Neugier | E19: 0.5 | F19: 1 | G19: 0 | H19: 0 | I19: 0 | J19: 1 | K19: 2.5
A20: Gesellschaft, Soziales und Politik | B20: Politik | C20: Morbidität | D20: Demonstrationen | E20: 0 | F20: 1 | G20: 0 | H20: 0 | I20: 0 | J20: 0 | K20: 1 | M20: Radionova et al., 2009
A21: Gesellschaft, Soziales und Politik | B21: Probleme mit Eltern | C21: Morbidität, Mortalität, Delinquenz, Armut | D21: Pflege | E21: 0.5 | F21: 1 | G21: 0 | H21: 0 | I21: 0 | J21: 1 | K21: 2.5
A22: Gesellschaft, Soziales und Politik | B22: Probleme mit Kindern | C22: Morbidität, Mortalität, Delinquenz, Armut | D22: ADHS | E22: 0.5 | F22: 1 | G22: 0 | H22: 0 | I22: 0 | J22: 1 | K22: 2.5
A23: Gesellschaft, Soziales und Politik | B23: Religion | C23: Morbidität, Mortalität, Delinquenz, Armut | D23: Christen, Atheisten, Muslime, Juden | E23: 0 | F23: 1 | G23: 0 | H23: 0 | I23: 0 | J23: 0.5 | K23: 1.5
A24: Gesellschaft, Soziales und Politik | B24: Terrorismus | C24: Ereignisse, Morbidität, Mortalität | D24: Bombenanschläge, Schiessereien | E24: 0.5 | F24: 1 | G24: 1 | H24: 0 | I24: 0 | J24: 0.5 | K24: 3 | M24: Slovic et al., 1980
A25: Gesundheit und Ernährung | B25: alternative Medizin | C25: Morbidität, Mortalität | D25: Akupunktur | E25: 0.5 | F25: 1 | G25: 0 | H25: 0 | I25: 0 | J25: 0.5 | K25: 2
A26: Gesundheit und Ernährung | B26: alternative Medizin | C26: Morbidität, Mortalität | D26: homöopathische Mittel | E26: 0.5 | F26: 1 | G26: 0 | H26: 0 | I26: 0 | J26: 0.5 | K26: 2
A27: Gesundheit und Ernährung | B27: Behandlungsfolgen | C27: Ereignisse, Mortalität, Morbidität | D27: Blood transfusions | E27: 0.5 | F27: 0 | G27: 0 | H27: 0 | I27: 0 | J27: 0.5 | K27: 1 | M27: Flynn et al., 1994
A28: Gesundheit und Ernährung | B28: Behandlungsfolgen | C28: Ereignisse, Mortalität, Morbidität | D28: Impfschäden, e.g. MMR, HPV | E28: 0.5 | F28: 1 | G28: 0 | H28: 0 | I28: 0 | J28: 1 | K28: 2.5 | M28: Al-Rawad & Al Khattab, 2015
A29: Gesundheit und Ernährung | B29: Behandlungsfolgen | C29: Ereignisse, Mortalität, Morbidität | D29: Narkoseschäden | E29: 0.5 | F29: 1 | G29: 0 | H29: 0 | I29: 0 | J29: 1 | K29: 2.5 | M29: Chauvin et al., 2007a
A30: Gesundheit und Ernährung | B30: Behandlungsfolgen | C30: Ereignisse, Mortalität, Morbidität | D30: Strahlungsschäden, e.g. Radiation therapy, X-ray | E30: 0.5 | F30: 0 | G30: 0 | H30: 0 | I30: 0 | J30: 0.5 | K30: 1 | M30: Chauvin et al., 2007b
A31: Gesundheit und Ernährung | B31: Chirurgie | C31: Ereignisse, Mortalität, Morbidität | D31: Operationsfolgen | E31: 0.5 | F31: 0 | G31: 0 | H31: 0 | I31: 0 | J31: 1 | K31: 1.5 | M31: Chauvin et al., 2007a
A32: Gesundheit und Ernährung | B32: Empfängnisverhütung | C32: Ereignisse, Morbidität | D32: Antibabypille mit neuen Gestagenen | E32: 0.5 | F32: 0 | G32: 0 | H32: 0 | I32: 0 | J32: 1 | K32: 1.5 | M32: Chauvin et al., 2007b
A33: Gesundheit und Ernährung | B33: Epidemien | C33: Ereignisse, Mortalität, Morbidität | D33: Masern | E33: 0.5 | F33: 0 | G33: 0 | H33: 0 | I33: 0 | J33: 1 | K33: 1.5
A34: Gesundheit und Ernährung | B34: Ernährungsstrategien und Diäten | C34: Morbidität | D34: Allergieentwicklung | E34: 1 | F34: 1 | G34: 0 | H34: 0 | I34: 0 | J34: 0.5 | K34: 2.5 | M34: Hohl & Gaskell, 2008
A35: Gesundheit und Ernährung | B35: Ernährungsstrategien und Diäten | C35: Morbidität | D35: Zusatzstoffe | E35: 1 | F35: 0 | G35: 0 | H35: 0 | I35: 0 | J35: 0.5 | K35: 1.5 | M35: Hohl & Gaskell, 2008
A36: Gesundheit und Ernährung | B36: Ernährungsstrategien und Diäten | C36: Mortalität, Morbidität | D36: Atkinson | E36: 1 | F36: 1 | G36: 0 | H36: 0 | I36: 0 | J36: 0.5 | K36: 2.5
A37: Gesundheit und Ernährung | B37: Ernährungsstrategien und Diäten | C37: Mortalität, Morbidität | D37: Exported Food that has Passed its Use-By Date | E37: 1 | F37: 0 | G37: 0 | H37: 0 | I37: 0 | J37: 0.5 | K37: 1.5 | M37: Radionova et al., 2009
A38: Gesundheit und Ernährung | B38: Ernährungsstrategien und Diäten | C38: Mortalität, Morbidität | D38: vegane Lebensweise | E38: 1 | F38: 1 | G38: 0 | H38: 0 | I38: 0 | J38: 0.5 | K38: 2.5
A39: Gesundheit und Ernährung | B39: Food colorants | C39: Morbidität | E39: 1 | F39: 1 | G39: 0 | H39: 0 | I39: 0 | J39: 0.5 | K39: 2.5 | M39: Chauvin et al., 2007a
A40: Gesundheit und Ernährung | B40: Food pervervatives | C40: Morbidität | E40: 1
A41: Gesundheit und Ernährung | B41: Freizeitunfälle | C41: Ereignisse, Morbidität | D41: Tollwut | E41: 1 | F41: 0 | G41: 0 | H41: 1 | I41: 0 | J41: 1 | K41: =E41+F41+G41+H41+I41+J41 -> 3
A42: Gesundheit und Ernährung | B42: Freizeitunfälle | C42: Ereignisse, Mortalität, Morbidität | D42: Ertrinken | E42: 1 | F42: 1 | G42: 0 | H42: 0 | I42: 0 | J42: 1 | K42: 3 | L42: 1 | M42: Al-Rawad & Al Khattab, 2015
A43: Gesundheit und Ernährung | B43: Freizeitunfälle | C43: Ereignisse, Mortalität, Morbidität | D43: Feuerwerkskörper | E43: 0.5 | F43: 0 | G43: 0 | H43: 0 | I43: 0 | J43: 1 | K43: 1.5 | M43: Chauvin et al., 2007b
A44: Gesundheit und Ernährung | B44: Freizeitunfälle | C44: Ereignisse, Mortalität, Morbidität | D44: Haiangriffe | E44: 1 | F44: 1 | G44: 0 | H44: 0 | I44: 0 | J44: 1 | K44: 3 | L44: 1
A45: Gesundheit und Ernährung | B45: Freizeitunfälle | C45: Ereignisse, Mortalität, Morbidität | D45: Kellertreppen | E45: 1 | F45: 0 | G45: 0 | H45: 0 | I45: 0 | J45: 1 | K45: 2 | L45: 1
A46: Gesundheit und Ernährung | B46: Freizeitunfälle | C46: Ereignisse, Mortalität, Morbidität | D46: Kuhunfälle | E46: 1 | F46: 1 | G46: 0 | H46: 1 | I46: 0 | J46: 1 | K46: 4 | L46: 1
A47: Gesundheit und Ernährung | B47: Freizeitunfälle | C47: Ereignisse, Mortalität, Morbidität | D47: Sonnenbaden, Hautkrebs | E47: 0.5 | F47: 0 | G47: 0 | H47: 0 | I47: 0 | J47: 1 | K47: 1.5 | M47: Chauvin et al., 2007b
A48: Gesundheit und Ernährung | B48: Freizeitunfälle | C48: Ereignisse, Mortalität, Morbidität | D48: Sportunfälle (z.B. Klettern) | E48: 1 | F48: 0 | G48: 0 | H48: 0 | I48: 0 | J48: 1 | K48: 2 | L48: 1 | M48: Karpowicz-Lazreg et al., 1993
A49: Gesundheit und Ernährung | B49: Freizeitunfälle | C49: Morbidität | D49: Air Conditioning (in Public Areas) | E49: 1 | F49: 1 | G49: 0 | H49: 0 | I49: 0 | J49: 0 | K49: 2 | M49: Radionova et al., 2009
A50: Gesundheit und Ernährung | B50: Freizeitunfälle | C50: Morbidität, Mortalität | D50: Achterbahnen | E50: 1 | F50: 0 | G50: 0 | H50: 0 | I50: 0 | J50: 0.5 | K50: 1.5 | L50: 1 | M50: Karpowicz-Lazreg et al., 1993
A51: Gesundheit und Ernährung | B51: Freizeitunfälle | C51: Morbidität, Mortalität | D51: Boxing | E51: 0.5 | F51: 0 | G51: 0 | H51: 0 | I51: 0 | J51: 0.5 | K51: 1 | L51: 1 | M51: Karpowicz-Lazreg et al., 1993
A52: Gesundheit und Ernährung | B52: Freizeitunfälle | C52: Morbidität, Mortalität | D52: Christmas tree lights | E52: 1 | F52: 0 | G52: 0 | H52: 0 | I52: 0 | J52: 0.5 | K52: 1.5 | L52: 1 | M52: Karpowicz-Lazreg et al., 1993
A53: Gesundheit und Ernährung | B53: Freizeitunfälle | C53: Morbidität, Mortalität | D53: Downhill skiing | E53: 0.5 | F53: 0 | G53: 0 | H53: 0 | I53: 0 | J53: 1 | K53: 1.5 | L53: 1 | M53: Karpowicz-Lazreg et al., 1993
A54: Gesundheit und Ernährung | B54: Freizeitunfälle | C54: Morbidität, Mortalität | D54: Jagdunfälle | E54: 0.5 | F54: 0 | G54: 0 | H54: 0 | I54: 0 | J54: 1 | K54: 1.5 | L54: 1 | M54: Karpowicz-Lazreg et al., 1993
A55: Gesundheit und Ernährung | B55: Freizeitunfälle | C55: Morbidität, Mortalität | D55: Power mowers | E55: 1 | F55: 0 | G55: 0 | H55: 0 | I55: 0 | J55: 0.5 | K55: 1.5 | L55: 1 | M55: Karpowicz-Lazreg et al., 1993
A56: Gesundheit und Ernährung | B56: Freizeitunfälle | C56: Morbidität, Mortalität | D56: Skateboards | E56: 1 | F56: 0 | G56: 0 | H56: 0 | I56: 0 | J56: 0.5 | K56: 1.5 | L56: 1 | M56: Karpowicz-Lazreg et al., 1993
A57: Gesundheit und Ernährung | B57: Freizeitunfälle | C57: Morbidität, Mortalität | D57: Sport: Jogging | E57: 1 | F57: 0 | G57: 0 | H57: 0 | I57: 0 | J57: 0.5 | K57: 1.5 | L57: 1 | M57: Radionova et al., 2009
A58: Gesundheit und Ernährung | B58: Freizeitunfälle | C58: Morbidität, Mortalität | D58: Taucher | E58: 1 | F58: 0 | G58: 0 | H58: 0 | I58: 0 | J58: 0.5 | K58: 1.5 | L58: 1 | M58: Radionova et al., 2009
A59: Gesundheit und Ernährung | B59: Geburt | C59: Ereignisse, Mortalität, Morbidität | D59: Geburtsfolgen, Kindeswohl | E59: 0.5 | F59: 0 | G59: 0 | H59: 0 | I59: 0 | J59: 1 | K59: 1.5 | M59: Chauvin et al., 2007b
A60: Gesundheit und Ernährung | B60: Hair dying | E60: 1 | F60: 1 | G60: 0 | H60: 0 | I60: 0 | J60: 0.5 | K60: 2.5 | M60: Chauvin et al., 2007a
A61: Gesundheit und Ernährung | B61: Haushaltsunfälle | C61: Ereignisse, Mortalität, Morbidität | D61: Equipments in Bad State | E61: 1 | F61: 0 | G61: 0 | H61: 0 | I61: 0 | J61: 0 | K61: 1 | L61: 1 | M61: Radionova et al., 2009
A62: Gesundheit und Ernährung | B62: Haushaltsunfälle | C62: Ereignisse, Mortalität, Morbidität | D62: Fensterputzen, Leiterstürze, Accidents at home | E62: 1 | F62: 0 | G62: 0 | H62: 0 | I62: 0 | J62: 1 | K62: 2 | L62: 1 | M62: Bastide et al., 1989
A63: Gesundheit und Ernährung | B63: Haushaltsunfälle | C63: Morbidität | D63: Hygienemängel | E63: 0.5 | F63: 0 | G63: 0 | H63: 0 | I63: 0 | J63: 0.5 | K63: 1 | M63: Hohl & Gaskell, 2008
A64: Gesundheit und Ernährung | B64: Hygiene | C64: Ereignisse, Mortalität, Morbidität | D64: Hygieneverstöße | E64: 0.5 | F64: 1 | G64: 0 | H64: 0 | I64: 0 | J64: 1 | K64: 2.5
A65: Gesundheit und Ernährung | B65: Konservierungsstoffe | C65: Ereignisse, Mortalität, Morbidität | D65: E250 Natriumnitrit | E65: 0.5 | F65: 1 | G65: 0 | H65: 0 | I65: 0 | J65: 1 | K65: 2.5 | M65: Al-Rawad & Al Khattab, 2015
A66: Gesundheit und Ernährung | B66: Lebensmittelzusätze | C66: Morbidität | D66: Water fluoridation | E66: 0.5 | F66: 0 | G66: 0 | H66: 0 | I66: 0 | J66: 0.5 | K66: 1 | M66: Karpowicz-Lazreg et al., 1993
A67: Gesundheit und Ernährung | B67: Mangelernährung | C67: Mortalität, Morbidität | E67: 0.5 | F67: 0.5 | G67: 0 | H67: 0 | I67: 0 | J67: 0.5 | K67: 1.5 | M67: Slovic et al., 1980
A68: Gesundheit und Ernährung | B68: Medizinische Fehler | C68: Ereignisse, Mortalität, Morbidität | D68: Fehlmedikation | E68: 0.5 | F68: 1 | G68: 0 | H68: 0 | I68: 0 | J68: 1 | K68: 2.5
A69: Gesundheit und Ernährung | B69: Mortalität | C69: Ereignisse, Mortalität, Morbidität | D69: Duschen | E69: 1 | F69: 0 | G69: 0 | H69: 0 | I69: 0 | J69: 1 | K69: 2 | L69: 1
A70: Gesundheit und Ernährung | B70: Psychische Erkrankungen | C70: Ereignisse, Mortalität, Morbidität, Opfer, Risikofaktoren | D70: Depression | E70: 0.5 | F70: 0 | G70: 0 | H70: 0 | I70: 0 | J70: 1 | K70: 1.5
A71: Gesundheit und Ernährung | B71: Psychische Erkrankungen | C71: Ereignisse, Mortalität, Morbidität, Opfer, Risikofaktoren | D71: Süchte | E71: 0.5 | F71: 0 | G71: 0 | H71: 0 | I71: 0 | J71: 1 | K71: 1.5
A72: Gesundheit und Ernährung | B72: Resistente Erreger | C72: Ereignisse, Mortalität, Morbidität | D72: MRSA-Keime | E72: 0.5 | F72: 1 | G72: 0 | H72: 0 | I72: 0 | J72: 1 | K72: 2.5
A73: Gesundheit und Ernährung | B73: Resistente Keime | C73: Morbidität, Mortalität | D73: Antibiotics | E73: 1 | F73: 1 | G73: 0 | H73: 0 | I73: 0 | J73: 0.5 | K73: =E73+F73+G73+H73+I73+J73 -> 2.5 | M73: Karpowicz-Lazreg et al., 1993
A74: Gesundheit und Ernährung | B74: Sexual relationships with multiple partners | C74: Ereignisse, Mortalität, Morbidität | E74: 0.5 | F74: 1 | G74: 0 | H74: 0 | I74: 0 | J74: 0.5 | K74: 2 | M74: Chauvin et al., 2007a
A75: Gesundheit und Ernährung | B75: Somatische Erkrankungen | C75: Ereignisse, Mortalität, Morbidität | D75: Asthma and bronchitis | E75: 0.5 | F75: 0 | G75: 0 | H75: 0.5 | I75: 0 | J75: 1 | K75: 2 | M75: Bastide et al., 1989
A76: Gesundheit und Ernährung | B76: Somatische Erkrankungen | C76: Ereignisse, Mortalität, Morbidität | D76: Cerebro-vascular diseases | E76: 0.5 | F76: 0 | G76: 0 | H76: 0.5 | I76: 0 | J76: 1 | K76: 2 | M76: Bastide et al., 1989
A77: Gesundheit und Ernährung | B77: Somatische Erkrankungen | C77: Ereignisse, Mortalität, Morbidität | D77: Cirrhosis | E77: 0.5 | F77: 0 | G77: 0 | H77: 0.5 | I77: 0 | J77: 1 | K77: 2 | M77: Bastide et al., 1989
A78: Gesundheit und Ernährung | B78: Somatische Erkrankungen | C78: Ereignisse, Mortalität, Morbidität | D78: Congenital malformations | E78: 0.5 | F78: 0 | G78: 0 | H78: 0.5 | I78: 0 | J78: 1 | K78: 2 | M78: Bastide et al., 1989
A79: Gesundheit und Ernährung | B79: Somatische Erkrankungen | C79: Ereignisse, Mortalität, Morbidität | D79: CVD, Herzerkrankungen | E79: 0.5 | F79: 1 | G79: 0 | H79: 0 | I79: 0 | J79: 1 | K79: 2.5 | L79: 1 | M79: Bastide et al., 1989
A80: Gesundheit und Ernährung | B80: Somatische Erkrankungen | C80: Ereignisse, Mortalität, Morbidität | D80: Diabetis | E80: 0.5 | F80: 0 | G80: 0 | H80: 0.5 | I80: 0 | J80: 1 | K80: 2 | M80: Bastide et al., 1989
A81: Gesundheit und Ernährung | B81: Somatische Erkrankungen | C81: Ereignisse, Mortalität, Morbidität | D81: Excess cold | E81: 0.5 | F81: 0 | G81: 0 | H81: 0.5 | I81: 0 | J81: 1 | K81: 2 | M81: Bastide et al., 1989
A82: Gesundheit und Ernährung | B82: Somatische Erkrankungen | C82: Ereignisse, Mortalität, Morbidität | D82: Grippewellen | E82: 0.5 | F82: 1 | G82: 0 | H82: 1 | I82: 0 | J82: 1 | K82: 3.5
A83: Gesundheit und Ernährung | B83: Somatische Erkrankungen | C83: Ereignisse, Mortalität, Morbidität | D83: Krebserkrankungen | E83: 0.5 | F83: 1 | G83: 0 | H83: 0 | I83: 0 | J83: 1 | K83: 2.5 | L83: 1 | M83: Bastide et al., 1989
A84: Gesundheit und Ernährung | B84: Somatische Erkrankungen | C84: Ereignisse, Mortalität, Morbidität | D84: Leukemia | E84: 0.5 | F84: 0 | G84: 0 | H84: 0.5 | I84: 0 | J84: 1 | K84: 2 | M84: Bastide et al., 1989
A85: Gesundheit und Ernährung | B85: Somatische Erkrankungen | C85: Ereignisse, Mortalität, Morbidität | D85: Pneumonia | E85: 0.5 | F85: 0 | G85: 0 | H85: 0.5 | I85: 0 | J85: 1 | K85: 2 | M85: Bastide et al., 1989
A86: Gesundheit und Ernährung | B86: Somatische Erkrankungen | C86: Ereignisse, Mortalität, Morbidität | D86: Tetanus | E86: 0.5 | F86: 0 | G86: 0 | H86: 0.5 | I86: 0 | J86: 1 | K86: 2 | M86: Bastide et al., 1989
A87: Gesundheit und Ernährung | B87: Somatische Erkrankungen | C87: Ereignisse, Mortalität, Morbidität | D87: Tuberculosis | E87: 0.5 | F87: 0 | G87: 0 | H87: 0.5 | I87: 0 | J87: 1 | K87: 2 | M87: Bastide et al., 1989
A88: Gesundheit und Ernährung | B88: Sportunfälle | C88: Mortalität, Morbidität | D88: Handfeuerwaffen | E88: 0.5 | F88: 0 | G88: 0 | H88: 0 | I88: 0 | J88: 0.5 | K88: 1 | L88: 1 | M88: Al-Rawad & Al Khattab, 2015
A89: Gesundheit und Ernährung | B89: Stress | C89: Morbidität | E89: 1 | F89: 1 | G89: 0 | H89: 0 | I89: 0 | J89: 0.5 | K89: 2.5 | M89: Flynn et al., 1994
A90: Gesundheit und Ernährung | B90: Substanzrisiken | C90: Mortalität, Morbidität | D90: Alkohol | E90: 1 | F90: 1 | G90: 0 | H90: 0 | I90: 0 | J90: 1 | K90: 3 | M90: Al-Rawad & Al Khattab, 2015
A91: Gesundheit und Ernährung | B91: Substanzrisiken | C91: Mortalität, Morbidität | D91: Drogen, e.g. Marijuana, Sleeping pills, Tranquilizers, Antidepressants | E91: 1 | F91: 1 | G91: 0 | H91: 0 | I91: 0 | J91: 1 | K91: 3 | M91: Al-Rawad & Al Khattab, 2015
A92: Gesundheit und Ernährung | B92: Substanzrisiken | C92: Mortalität, Morbidität | D92: Koffein | E92: 1 | F92: 1 | G92: 0 | H92: 0 | I92: 0 | J92: 1 | K92: 3 | M92: Chauvin et al., 2007b
A93: Gesundheit und Ernährung | B93: Substanzrisiken | C93: Mortalität, Morbidität | D93: Passivrauchen | E93: 0.5 | F93: 1 | G93: 0 | H93: 0 | I93: 0 | J93: 0.5 | K93: 2 | L93: 1 | M93: Radionova et al., 2009
A94: Gesundheit und Ernährung | B94: Substanzrisiken | C94: Mortalität, Morbidität | D94: Tabak | E94: 1 | F94: 1 | G94: 0 | H94: 0 | I94: 0 | J94: 1 | K94: 3 | M94: Slovic et al., 1980
A95: Gesundheit und Ernährung | B95: Tierunfälle | C95: Ereignisse, Mortalität, Morbidität | D95: Wildschaden | E95: 1 | F95: 1 | G95: 0 | H95: 1 | I95: 0 | J95: 1 | K95: 4 | L95: 1
A96: Gesundheit und Ernährung | B96: Tierunfälle | C96: Ereignisse, Mortalität, Morbidität | D96: Wolfsangriffe | E96: 0.5 | F96: 1 | G96: 0 | H96: 1 | I96: 0 | J96: 0.5 | K96: 3 | L96: 1
A97: Gesundheit und Ernährung | B97: Tierunfälle | C97: Morbidität, Mortalität | D97: Domestic animals, Abandoned animals | E97: 0.5 | F97: 0 | G97: 0 | H97: 0 | I97: 0 | J97: 0 | K97: 0.5 | L97: 1 | M97: Radionova et al., 2009
A98: Gesundheit und Ernährung | B98: Tierunfälle | C98: Mortalität, Morbidität | D98: Schlangenbisse | E98: 0 | F98: 0.5 | G98: 0 | H98: 1 | I98: 0 | J98: 0.5 | K98: 2
A99: Gesundheit und Ernährung | B99: Tierunfälle | C99: Mortalität, Morbidität | D99: Spinnenbisse, Insektenbisse | E99: 0 | F99: 0.5 | G99: 0 | H99: 1 | I99: 0 | J99: 0.5 | K99: 2 | M99: Bastide et al., 1989
A100: Gesundheit und Ernährung | B100: unverhüteter Sex | C100: Ereignisse, Mortalität, Morbidität | D100: AIDS | E100: 0.5 | F100: 0 | G100: 0 | H100: 1 | I100: 0 | J100: 1 | K100: 2.5 | M100: Schmidt & Wei, 2006
A101: Gesundheit und Ernährung | B101: unverhüteter Sex | C101: Ereignisse, Mortalität, Morbidität | D101: Geschlechtserkrankungen | E101: 0.5 | F101: 0 | G101: 0 | H101: 1 | I101: 0 | J101: 1 | K101: 2.5 | M101: Schmidt & Wei, 2006
A102: Gesundheit und Ernährung | B102: Vergiftungen | C102: Ereignisse, Mortalität, Morbidität | D102: Chemikalien | E102: 0.5 | F102: 1 | G102: 0 | H102: 0 | I102: 0 | J102: 1 | K102: 2.5
A103: Gesundheit und Ernährung | B103: Vergiftungen | C103: Ereignisse, Mortalität, Morbidität | D103: Kosmetik | E103: 0.5 | F103: 0 | G103: 0 | H103: 0 | I103: 0 | J103: 0.5 | K103: 1 | M103: Chauvin et al., 2007b
A104: Gesundheit und Ernährung | B104: Vergiftungen | C104: Ereignisse, Mortalität, Morbidität | D104: Pilze | E104: 0.5 | F104: 0 | G104: 0 | H104: 0.5 | I104: 0 | J104: 1 | K104: 2 | M104: Karpowicz-Lazreg et al., 1993
A105: Gesundheit und Ernährung | B105: Vergiftungen | C105: Ereignisse, Mortalität, Morbidität | D105: Radon zuhause | E105: 0.5 | F105: 1 | G105: 0 | H105: 0 | I105: 0 | J105: 0.5 | K105: =E105+F105+G105+H105+I105+J105 -> 2 | M105: Flynn et al., 1994
A106: Gesundheit und Ernährung | B106: Vergiftungen | C106: Ereignisse, Mortalität, Morbidität | D106: Saccharin | E106: 0.5 | F106: 0 | G106: 0 | H106: 0 | I106: 0 | J106: 0.5 | K106: 1 | M106: Karpowicz-Lazreg et al., 1993
A107: Gesundheit und Ernährung | B107: verunreinigte Lebensmittel | C107: Morbidität | D107: Bacteria in food | E107: 1 | F107: 1 | G107: 0 | H107: 0 | I107: 0 | J107: 0.5 | K107: 2.5 | M107: Flynn et al., 1994
A108: Gesundheit und Ernährung | B108: verunreinigte Lebensmittel | C108: Morbidität | D108: Schadstoffe in Fisch | E108: 1 | F108: 1 | G108: 0 | H108: 0 | I108: 0 | J108: 0.5 | K108: 2.5
A109: Gesundheit und Ernährung | B109: Wechselwirkungen bei Behandlungen | C109: Mortalität, Morbidität | D109: Nebenwirkungen | E109: 0.5 | F109: 0.5 | G109: 0 | H109: 0 | I109: 0 | J109: 0.5 | K109: 1.5 | M109: Al-Rawad & Al Khattab, 2015
A110: Gesundheit und Ernährung | B110: Wechselwirkungen bei Behandlungen | C110: Mortalität, Morbidität | D110: Polymedikation | E110: 0.5 | F110: 1 | G110: 0 | H110: 0 | I110: 0 | J110: 0.5 | K110: 2
A111: Ökonomie, Finanzen und Arbeit | B111: Grauer Kapitalmarkt | C111: Armut, Verluste | D111: Altersvorsorge, Altersarmut | E111: 1 | F111: 1 | G111: 0 | H111: 0 | I111: 1 | J111: 0.5 | K111: 3.5 | L111: 1 | M111: Al-Rawad & Al Khattab, 2015
A112: Ökonomie, Finanzen und Arbeit | B112: Arbeitsbelastung | C112: Mortalität, Morbidität | D112: Arbeitsplatz-Risiken, e.g. Monitore | E112: 0 | F112: 0.5 | G112: 0 | H112: 0 | I112: 0 | J112: 1 | K112: 1.5 | M112: Chauvin et al., 2007a
A113: Ökonomie, Finanzen und Arbeit | B113: Arbeitsunfälle | C113: Morbidität, Mortalität | D113: Firefighting | E113: 0 | F113: 0 | G113: 0 | H113: 0 | I113: 0 | J113: 0.5 | K113: 0.5 | M113: Karpowicz-Lazreg et al., 1993
A114: Ökonomie, Finanzen und Arbeit | B114: Arbeitsunfälle | C114: Morbidität, Mortalität | D114: Lasers | E114: 0 | F114: 0 | G114: 0 | H114: 0 | I114: 0 | J114: 0.5 | K114: 0.5 | M114: Karpowicz-Lazreg et al., 1993
A115: Ökonomie, Finanzen und Arbeit | B115: Arbeitsunfälle | C115: Morbidität, Mortalität | D115: Police work | E115: 0 | F115: 0 | G115: 0 | H115: 0 | I115: 0 | J115: 0.5 | K115: 0.5 | M115: Karpowicz-Lazreg et al., 1993
A116: Ökonomie, Finanzen und Arbeit | B116: Arbeitsunfälle | C116: Morbidität, Mortalität | D116: Tractors | E116: 0 | F116: 0 | G116: 0 | H116: 0 | I116: 0 | J116: 0.5 | K116: 0.5 | M116: Karpowicz-Lazreg et al., 1993
A117: Ökonomie, Finanzen und Arbeit | B117: Arbeitsunfälle | C117: Mortalität, Morbidität | D117: Berufsart, Industrial injuries | E117: 0 | F117: 0 | G117: 0 | H117: 0 | I117: 0 | J117: 1 | K117: 1 | M117: Bastide et al., 1989
A118: Ökonomie, Finanzen und Arbeit | B118: Einzelunternehmer | C118: Ereignisse, Armut, Morbidität, Mortalität, Risikofaktoren | D118: Erfolg vs. Insolvenzen | E118: 0 | F118: 1 | G118: 0 | H118: 0 | I118: 1 | J118: 1 | K118: 3
A119: Ökonomie, Finanzen und Arbeit | B119: Fonds | C119: Armut, Verluste | D119: Altersvorsorge, Altersarmut | E119: 1 | F119: 1 | G119: 0 | H119: 0 | I119: 0 | J119: 0.5 | K119: 2.5 | L119: 1
A120: Ökonomie, Finanzen und Arbeit | B120: Glücksspiel | C120: Verluste, Armut, Morbidität, Mortalität | D120: Onlinepoker | E120: 1 | F120: 0 | G120: 0 | H120: 0 | I120: 0 | J120: 1 | K120: 2 | L120: 1
A121: Ökonomie, Finanzen und Arbeit | B121: Immobilien | C121: Verluste, Armut, Morbidität, Mortalität | D121: Altersvorsorge, Altersarmut | E121: 1 | F121: 1 | G121: 0 | H121: 0 | I121: 0 | J121: 0.5 | K121: 2.5 | L121: 1
A122: Ökonomie, Finanzen und Arbeit | B122: Investitionsrisiken | C122: Armut, Verluste | D122: Altersvorsorge, Altersarmut | E122: 1 | F122: 1 | G122: 0 | H122: 0 | I122: 0 | J122: 0.5 | K122: 2.5 | L122: 1
A123: Ökonomie, Finanzen und Arbeit | B123: Jährliches Einkommen | C123: Armut, Morbidität, Mortalität | D123: Altersvorsorge, Altersarmut | E123: 1 | F123: 1 | G123: 0 | H123: 0 | I123: 0 | J123: 0.5 | K123: 2.5 | L123: 1
A124: Ökonomie, Finanzen und Arbeit | B124: Jährliches Sparvolumen | C124: Armut, Verluste, Morbidität, Mortalität | D124: Altersvorsorge, Altersarmut | E124: 1 | F124: 1 | G124: 0 | H124: 0 | I124: 0 | J124: 0.5 | K124: 2.5 | L124: 1
A125: Ökonomie, Finanzen und Arbeit | B125: Konsum | C125: Armut, Verluste, Morbidität, Mortalität | D125: Ausfälle und Verspätungen, Schlichtungen | E125: 1 | F125: 0 | G125: 0 | H125: 0 | I125: 0 | J125: 1 | K125: 2 | L125: 1
A126: Ökonomie, Finanzen und Arbeit | B126: Konsum | C126: Armut, Verluste, Morbidität, Mortalität | D126: Beschädigtes oder verlorenes Gepäck | E126: 1 | F126: 0 | G126: 0 | H126: 0 | I126: 0 | J126: 1 | K126: 2 | L126: 1
A127: Ökonomie, Finanzen und Arbeit | B127: Konsum | C127: Armut, Verluste, Morbidität, Mortalität | D127: Energieversorgerwechsel | E127: app | F127: 0 | G127: 0 | H127: 0 | I127: 0 | J127: 0
A128: Ökonomie, Finanzen und Arbeit | B128: Konsum | C128: Armut, Verluste, Morbidität, Mortalität | D128: Gesondertes Entgelt bei Dienstleistungen | E128: 1 | F128: 0 | G128: 0 | H128: 0 | I128: 0 | J128: 0 | K128: =E128+F128+G128+H128+I128+J128 -> 1 | L128: 1
A129: Ökonomie, Finanzen und Arbeit | B129: Konsum | C129: Armut, Verluste, Morbidität, Mortalität | D129: Haustürgeschäfte | E129: 1 | F129: 0 | G129: 0 | H129: 0 | I129: 0 | J129: 1 | K129: 2 | L129: 1
A130: Ökonomie, Finanzen und Arbeit | B130: Konsum | C130: Armut, Verluste, Morbidität, Mortalität | D130: Inkasso: Unseriöse Geschäftspraktiken | E130: 1 | F130: 0 | G130: 0 | H130: 0 | I130: 0 | J130: 0 | K130: 1 | L130: 1
A131: Ökonomie, Finanzen und Arbeit | B131: Konsum | C131: Armut, Verluste, Morbidität, Mortalität | D131: Kreditkartenschulden | E131: 1 | F131: 0 | G131: 0 | H131: 0 | I131: 0 | J131: 1 | K131: 2 | L131: 1
A132: Ökonomie, Finanzen und Arbeit | B132: Konsum | C132: Armut, Verluste, Morbidität, Mortalität | D132: Mängel bei Pauschalreisen | E132: 1 | F132: 0 | G132: 0 | H132: 0 | I132: 0 | J132: 0.5 | K132: 1.5 | L132: 1
A133: Ökonomie, Finanzen und Arbeit | B133: Konsum | C133: Armut, Verluste, Morbidität, Mortalität | D133: Mängel/Gewährleistung, geplante Obsoleszens | E133: 1 | F133: 0 | G133: 0 | H133: 0 | I133: 0 | J133: 0.5 | K133: 1.5 | L133: 1
A134: Ökonomie, Finanzen und Arbeit | B134: Konsum | C134: Armut, Verluste, Morbidität, Mortalität | D134: Nachhaltiger Konsum | E134: 1 | F134: 1 | G134: 0 | H134: 0 | I134: 1 | J134: 1 | K134: 4 | L134: 1
A135: Ökonomie, Finanzen und Arbeit | B135: Konsum | C135: Armut, Verluste, Morbidität, Mortalität | D135: Reisen mit eingeschränkter Mobilität | E135: 0.5 | F135: 0 | G135: 0 | H135: 0 | I135: 0 | J135: 0 | K135: 0.5 | L135: 0
A136: Ökonomie, Finanzen und Arbeit | B136: Konsum | C136: Armut, Verluste, Morbidität, Mortalität | D136: Telekommunikationsverträge | E136: app | F136: 0 | G136: 0 | H136: 0 | I136: 0 | J136: 0
A137: Ökonomie, Finanzen und Arbeit | B137: Konsum | C137: Armut, Verluste, Morbidität, Mortalität | D137: Unerlaubte Telefonwerbung | E137: 1 | F137: 0 | G137: 0 | H137: 0 | I137: 0 | J137: 0.5 | K137: =E137+F137+G137+H137+I137+J137 -> 1.5 | L137: 1
A138: Ökonomie, Finanzen und Arbeit | B138: Konsum | C138: Armut, Verluste, Morbidität, Mortalität | D138: Ungerechtfertigte Rechnungen | E138: 1 | F138: 0 | G138: 0 | H138: 0 | I138: 0 | J138: 0.5 | K138: =E138+F138+G138+H138+I138+J138 -> 1.5 | L138: 1
A139: Ökonomie, Finanzen und Arbeit | B139: Konsum | C139: Armut, Verluste, Morbidität, Mortalität | D139: Widerrufsrecht | E139: 1 | F139: 0 | G139: 0 | H139: 0 | I139: 0 | J139: 0 | K139: =E139+F139+G139+H139+I139+J139 -> 1 | L139: 1
A140: Ökonomie, Finanzen und Arbeit | B140: Konsum | C140: Auftreten, wirtschaftliche Verluste | D140: Fallbezogene Erfolgsquote bei Verbraucherklagen (z.B. bei Kauf & Reklamation) | E140: 1 | F140: 1 | G140: 0 | H140: 0 | I140: 0 | J140: 1 | K140: =E140+F140+G140+H140+I140+J140 -> 3 | L140: 1
A141: Ökonomie, Finanzen und Arbeit | B141: Konten | C141: Armut, Verluste, Morbidität, Mortalität | D141: Kontowechsel | E141: app | F141: 1 | G141: 0 | H141: 0 | I141: 0 | J141: 0.5
A142: Ökonomie, Finanzen und Arbeit | B142: Konten | C142: Armut, Verluste, Morbidität, Mortalität, Exklusion | D142: Dispozinsen | E142: app | F142: 1 | G142: 0 | H142: 0 | I142: 0 | J142: 0.5
A143: Ökonomie, Finanzen und Arbeit | B143: Kredite | C143: Armut, Verluste, Morbidität, Mortalität, Exklusion | D143: Kreditvergabe | E143: 1 | F143: 1 | G143: 0 | H143: 0 | I143: 0 | J143: 0.5 | K143: =E143+F143+G143+H143+I143+J143 -> 2.5 | L143: 1
A144: Ökonomie, Finanzen und Arbeit | B144: Kredite | C144: Armut, Verluste, Morbidität, Mortalität, Exklusion | D144: Scoring | E144: 1 | F144: 1 | G144: 0 | H144: 0 | I144: 0 | J144: 0.5 | K144: 2.5 | L144: 1
A145: Ökonomie, Finanzen und Arbeit | B145: Lotterien | C145: Ereignisse, Verluste, Armut, Morbidität, Mortalität | D145: Gewinne | E145: 1 | F145: 0 | G145: 0 | H145: 0 | I145: 1 | J145: 1 | K145: 3 | L145: 1
A146: Ökonomie, Finanzen und Arbeit | B146: Mieten | C146: Armut, Verluste | D146: Mietpreise | E146: 1 | F146: 0 | G146: 0 | H146: 0 | I146: 0 | J146: 1 | K146: 2 | L146: 1
A147: Ökonomie, Finanzen und Arbeit | B147: Schulden | C147: Armut, Morbidität, Mortalität, Verluste | D147: Schuldenfallen | E147: 1 | F147: 1 | G147: 0 | H147: 0 | I147: 0 | J147: 1 | K147: 3 | L147: 1
A148: Ökonomie, Finanzen und Arbeit | B148: Staatsanleihen | C148: Armut, Verluste | D148: Altersvorsorge, Altersarmut | E148: 1 | F148: 1 | G148: 0 | H148: 0 | I148: 0 | J148: 0.5 | K148: 2.5 | L148: 1
A149: Ökonomie, Finanzen und Arbeit | B149: Versicherungen | C149: Auftreten, wirtschaftliche Verluste | D149: Nutzung Haftpflichtversicherung | E149: 1 | F149: 1 | G149: 0 | H149: 0 | I149: 1 | J149: 0.5 | K149: 3.5 | L149: 1
A150: Ökonomie, Finanzen und Arbeit | B150: Versicherungen | C150: Verluste, Armut, Morbidität, Mortalität | D150: Versicherungstypen | E150: 1 | F150: 1 | G150: 0 | H150: 0 | I150: 0 | J150: 0.5 | K150: 2.5 | L150: 1
A151: Technologien und Digitalisierung | B151: Ablenkung durch Smartphone-Gebrauch | C151: Ereignisse, Mortalität | D151: Fußgängerunfälle | E151: 1 | F151: 0.5 | G151: 0 | H151: 0 | I151: 0 | J151: 1 | K151: 2.5 | L151: 1
A152: Technologien und Digitalisierung | B152: Algorithmen | C152: Armut, Verluste | D152: AGB-Irreführung | E152: app | F152: 1 | G152: 0 | H152: 0 | I152: 0 | J152: 0.5 | M152: "vermintes Territorium"
A153: Technologien und Digitalisierung | B153: Algorithmen | C153: Armut, Verluste | D153: Digitaler Fussabdruck | E153: 1 | F153: 1 | G153: 0 | H153: 0 | I153: 0 | J153: 0.5 | K153: =E153+F153+G153+H153+I153+J153 -> 2.5 | L153: 1
A154: Technologien und Digitalisierung | B154: Algorithmen | C154: Armut, Verluste | D154: Diskriminierung, social scoring | E154: 1 | F154: 1 | G154: 0 | H154: 0 | I154: 0 | J154: 0.5 | K154: 2.5 | L154: 1
A155: Technologien und Digitalisierung | B155: Algorithmen | C155: Armut, Verluste | D155: Invasion eigener Geräte | E155: 1 | F155: 1 | G155: 0 | H155: 0 | I155: 0 | J155: 0.5 | K155: 2.5 | L155: 1
A156: Technologien und Digitalisierung | B156: Algorithmen | C156: Armut, Verluste | D156: Kostenfallen im Internet | E156: 1 | F156: 1 | G156: 0 | H156: 0 | I156: 0 | J156: 0.5 | K156: 2.5 | L156: 1
A157: Technologien und Digitalisierung | B157: Algorithmen | C157: Armut, Verluste | D157: personalisierte Angebote/Preise (personal pricing) | E157: 1 | F157: 1 | G157: 0 | H157: 0 | I157: 0 | J157: 1 | K157: 3 | L157: 1
A158: Technologien und Digitalisierung | B158: Algorithmen | C158: Armut, Verluste | D158: Recht an den eigenen Daten | E158: 1 | F158: 1 | G158: 0 | H158: 0 | I158: 0 | J158: 0.5 | K158: 2.5 | L158: 1
A159: Technologien und Digitalisierung | B159: Algorithmen | C159: Armut, Verluste | D159: Systembindung | E159: 1 | F159: 1 | G159: 0 | H159: 0 | I159: 0 | J159: 0.5 | K159: 2.5 | L159: 1
A160: Technologien und Digitalisierung | B160: Algorithmen | C160: Armut, Verluste | D160: Teure Kundenhotlines | E160: 1 | F160: 0 | G160: 0 | H160: 0 | I160: 0 | J160: 0.5 | K160: 1.5 | L160: 1
A161: Technologien und Digitalisierung | B161: Algorithmen | C161: Armut, Verluste | D161: Urheberrecht im Internet | E161: 1 | F161: 1 | G161: 0 | H161: 0 | I161: 0 | J161: 0 | K161: 2 | L161: 1
A162: Technologien und Digitalisierung | B162: Autonome Maschinen | C162: Ereignisse, Mortalität, Verluste | D162: Selbstfahrende Autos | E162: 1 | F162: 1 | G162: 0 | H162: 0 | I162: 0.5 | J162: 0 | K162: 2.5 | L162: 1 | M162: "Sicherheitsdaten?"
A163: Technologien und Digitalisierung | B163: Bacteriological weapons | E163: 0 | F163: 0 | G163: 0 | H163: 0 | I163: 0 | J163: 0 | K163: 0 | M163: Chauvin et al., 2007a
A164: Technologien und Digitalisierung | B164: Biotechnologie-Unfälle | C164: Ereignisse, Mortalität, Morbidität | D164: Kontaminationen | E164: 0.5 | F164: 1 | G164: 0 | H164: 0 | I164: 0 | J164: 0 | K164: 1.5 | L164: 1
A165: Technologien und Digitalisierung | B165: Biotechnologie-Unfälle | C165: Ereignisse, Mortalität, Morbidität | D165: Quecksilber | E165: 0 | F165: 0 | G165: 0 | H165: 0 | I165: 0 | J165: 0 | K165: 0 | M165: Hinman et al., 1993
A166: Technologien und Digitalisierung | B166: Chemical fertilizers | E166: 0 | F166: 0 | G166: 0 | H166: 0 | I166: 0 | J166: 0.5 | K166: 0.5 | M166: Chauvin et al., 2007a
A167: Technologien und Digitalisierung | B167: Chemical plants | E167: 0 | F167: 0 | G167: 0 | H167: 0 | I167: 0 | J167: 0.5 | K167: 0.5 | M167: Chauvin et al., 2007a
A168: Technologien und Digitalisierung | B168: Chemieanlagen | C168: Ereignisse, Mortalität, Morbidität | D168: Unfälle | E168: 0 | F168: 0.5 | G168: 1 | H168: 0 | I168: 0 | J168: 0.5 | K168: 2
A169: Technologien und Digitalisierung | B169: Coal/Oil plants | E169: 0 | F169: 0 | G169: 0 | H169: 0 | I169: 0 | J169: 0.5 | K169: 0.5 | M169: Flynn et al., 1994
A170: Technologien und Digitalisierung | B170: Computerspiele | C170: Morbidität | D170: Fettleibigkeit | E170: 1 | F170: 1 | G170: 0 | H170: 0 | I170: 0 | J170: 0.5 | K170: 2.5 | L170: 1
A171: Technologien und Digitalisierung | B171: Datenschutz | C171: Auftreten | D171: elektronische Zahlungsoptionen (Privatsphäre, Verschlüsselung) | E171: 1 | F171: 1 | G171: 0 | H171: 0 | I171: 0 | J171: 0.5 | K171: 2.5 | L171: 1
A172: Technologien und Digitalisierung | B172: Datenschutz | C172: Auftreten | D172: Email-Provider | E172: 1 | F172: 1 | G172: 0 | H172: 0 | I172: 0 | J172: 0.5 | K172: 2.5 | L172: 1
A173: Technologien und Digitalisierung | B173: Datensicherheitsprobleme | C173: Auftreten, wirtschaftliche Risiken | D173: Cyberkriminalität | E173: 1 | F173: 1 | G173: 0 | H173: 0 | I173: 0 | J173: 0.5 | K173: 2.5 | L173: 1
A174: Technologien und Digitalisierung | B174: Earth orbiting satellites | E174: 0 | F174: 0 | G174: 0 | H174: 0 | I174: 0 | J174: 0.5 | K174: 0.5 | M174: Karpowicz-Lazreg et al., 1993
A175: Technologien und Digitalisierung | B175: Elektrosmog | C175: Mortalität, Morbidität | D175: 3/4g-Antennen (Handystrahlen) | E175: 1 | F175: 1 | G175: 0 | H175: 0 | I175: 0 | J175: 1 | K175: 3 | L175: 1 | M175: Radionova et al., 2009
A176: Technologien und Digitalisierung | B176: Genetisches Engineering | C176: Ereignisse, wirtschaftliche Risiken, Morbidität | D176: genetisch modifizierte Lebensmittel | E176: 1 | F176: 1 | G176: 0 | H176: 0 | I176: 0 | J176: 1 | K176: 3 | L176: 1 | M176: Schmidt & Wei, 2006
A177: Technologien und Digitalisierung | B177: Hydroelectric power plants | E177: 0 | F177: 0 | G177: 0 | H177: 0 | I177: 0 | J177: 0.5 | K177: 0.5 | M177: Chauvin et al., 2007a
A178: Technologien und Digitalisierung | B178: Konsum | C178: Armut, Verluste, Morbidität, Mortalität | D178: online-shopping | E178: 1 | F178: 0 | G178: 0 | H178: 0 | I178: 0 | J178: 1 | K178: 2 | L178: 1
A179: Technologien und Digitalisierung | B179: Künstliche Intelligenz | C179: Ereignisse, Arbeitsplatzverluste, Mortalität | D179: Panoptikum | E179: 0.5 | F179: 1 | G179: 0 | H179: 0 | I179: 0 | J179: 0 | K179: 1.5 | L179: 1
A180: Technologien und Digitalisierung | B180: Magnetfelder | C180: Ereignisse, Mortalität, Morbidität | D180: Herzschrittmacher | E180: 1 | F180: 1 | G180: 0 | H180: 0 | I180: 0 | J180: 1 | K180: 3 | L180: 1
A181: Technologien und Digitalisierung | B181: Mikrowellen | C181: Ereignisse, Mortalität, Morbidität | D181: Mikrowellengeräte | E181: 1 | F181: 1 | G181: 0 | H181: 0 | I181: 0 | J181: 1 | K181: 3 | L181: 1 | M181: Chauvin et al., 2007b
A182: Technologien und Digitalisierung | B182: Nanotechnologie | C182: Ereignisse, Mortalität, Morbidität | D182: Konsumprodukte mit Nanotechnologie | E182: 1 | F182: 1 | G182: 0 | H182: 0 | I182: 0 | J182: 0.5 | K182: 2.5 | L182: 1 | M182: Braman et al., 1997
A183: Technologien und Digitalisierung | B183: Nuclear weapons | E183: 0 | F183: 0 | G183: 1 | H183: 0 | I183: 0 | J183: 0 | K183: 1 | M183: Chauvin et al., 2007a
A184: Technologien und Digitalisierung | B184: Nuklearkraftwerke | C184: Ereignisse, Mortalität, Morbidität | D184: Unfälle, Abfälle | E184: 0 | F184: 0 | G184: 1 | H184: 0 | I184: 0 | J184: 1 | K184: 2 | M184: Slovic et al., 1980
A185: Technologien und Digitalisierung | B185: Solar power plants | E185: 0 | F185: 0 | G185: 0 | H185: 0 | I185: 0 | J185: 0.5 | K185: =E185+F185+G185+H185+I185+J185 -> 0.5 | M185: Chauvin et al., 2007a
A186: Technologien und Digitalisierung | B186: Space exploration | E186: 0 | F186: 0 | G186: 0 | H186: 0 | I186: 0 | J186: 0.5 | K186: 0.5 | M186: Karpowicz-Lazreg et al., 1993
A187: Technologien und Digitalisierung | B187: Thermal power plants | E187: 0 | F187: 0 | G187: 0 | H187: 0 | I187: 0 | J187: 0.5 | K187: 0.5 | M187: Chauvin et al., 2007a
A188: Technologien und Digitalisierung | B188: Überwachung durch Institutionen | C188: Ereignisse | D188: Emails | E188: 1 | F188: 1 | G188: 0 | H188: 0 | I188: 0 | J188: 0.5 | K188: 2.5 | L188: 1
A189: Umwelt und Verkehrsrisiken | B189: Autoabgase | C189: Morbidität, Mortalität | D189: Leaded gasoline, Auto exhaust fumes | E189: 0.5 | F189: 0 | G189: 0 | H189: 0 | I189: 0 | J189: 0 | K189: 0.5 | L189: 1 | M189: Hinman et al., 1993
A190: Umwelt und Verkehrsrisiken | B190: Baumaterialien | C190: Morbidität, Mortalität | D190: Asbest | E190: 0.5 | F190: 1 | G190: 0 | H190: 0 | I190: 0 | J190: 0.5 | K190: 2 | M190: Hinman et al., 1993
A191: Umwelt und Verkehrsrisiken | B191: Bevölkerungswachsum | C191: Ereignisse | E191: 0 | F191: 0 | G191: 0 | H191: 0 | I191: 0 | J191: 0.5 | K191: 0.5 | M191: Slovic et al., 1980
A192: Umwelt und Verkehrsrisiken | B192: Biologische Vielfalt | C192: Ereignisse | D192: Bienensterben | E192: 0 | F192: 1 | G192: 0 | H192: 0 | I192: 0 | J192: 0.5 | K192: 1.5 | M192: Schmidt & Wei, 2006
A193: Umwelt und Verkehrsrisiken | B193: Bodenverluste | C193: wirtschaftliche Verluste | D193: Bodenerosionen, Überdüngung, Biokäufe | E193: 0.5 | F193: 1 | G193: 0 | H193: 0 | I193: 0 | J193: 0.5 | K193: 2 | M193: Slovic et al., 1980
A194: Umwelt und Verkehrsrisiken | B194: Erdbeben | C194: Ereignisse, Mortalität, Morbidität | E194: 0 | F194: 0 | G194: 1 | H194: 1 | I194: 0 | J194: 0.5 | K194: 2.5 | M194: Al-Rawad & Al Khattab, 2015
A195: Umwelt und Verkehrsrisiken | B195: Fahrzeuge | C195: Mortalität, Morbidität | D195: Auto | E195: 1 | F195: 1 | G195: 0 | H195: 0 | I195: 0 | J195: 1 | K195: 3 | L195: 1 | M195: Bastide et al., 1989
A196: Umwelt und Verkehrsrisiken | B196: Fahrzeuge | C196: Mortalität, Morbidität | D196: Eisenbahn | E196: 1 | F196: 1 | G196: 0 | H196: 0 | I196: 0 | J196: 1 | K196: 3 | L196: 1 | M196: Slovic et al., 1980
A197: Umwelt und Verkehrsrisiken | B197: Fahrzeuge | C197: Mortalität, Morbidität | D197: Fahrrad | E197: 1 | F197: 1 | G197: 0 | H197: 0 | I197: 0 | J197: 1 | K197: 3 | L197: 1 | M197: Al-Rawad & Al Khattab, 2015
A198: Umwelt und Verkehrsrisiken | B198: Fahrzeuge | C198: Mortalität, Morbidität | D198: Flugzeuge | E198: 1 | F198: 1 | G198: 1 | H198: 0 | I198: 0 | J198: 1 | K198: 4 | L198: 1
A199: Umwelt und Verkehrsrisiken | B199: Fahrzeuge | C199: Mortalität, Morbidität | D199: Motorcycles | E199: 0.5 | F199: 0 | G199: 0 | H199: 0 | I199: 0 | J199: 0.5 | K199: 1 | M199: Hinman et al., 1993
A200: Umwelt und Verkehrsrisiken | B200: Fahrzeuge | C200: Mortalität, Morbidität | D200: ÖPNV | E200: 1 | F200: 1 | G200: 0 | H200: 0 | I200: 0 | J200: 1 | K200: 3 | L200: 1 | M200: Chauvin et al., 2007a
... 27 more rows

Sheet survey
B1: RISK TOPICS
B2: Society, social and political issues | C2: FGR | D2: MJ | E2: MM | F2: Within a year.. | G2: potential evidence | H2: dread | I2: known to the exposed
B3: Cyber crime: becoming victim of identity theft | C3: x | D3: x | E3: x | G3: crime statistics | H3: 0 | I3: 0
B4: Cyber crime: becoming victim of privacy intrusion | C4: x | D4: x | E4: x | F4: Of 1 million people how many have had their personal data shared without their consent (e.g., private photos or emails, revenge porn) | G4: police reports | H4: 0 | I4: 0
B5: Crime: becoming victim of robbery | C5: x | D5: x | E5: x | G5: crime statistics | H5: 0 | I5: 1
A6: Dread risk | B6: Terrorist attacks: mortality | C6: x | D6: x | E6: x | G6: crime statistics | H6: 1 | I6: 0
B8: Health and nutrition
B9: Drowning: mortality | C9: x | D9: x | E9: x | G9: e.g. Eurostat | H9: 0 | I9: 1
B10: Cancer: mortality | C10: x | D10: x | E10: x | F10: Of 1 million people how many will die from cancer? | G10: e.g. Eurostat | H10: 0 | I10: 0
B11: Death related to influenza | C11: x | D11: x | E11: x | G11: e.g. Eurostat | H11: 0 | I11: 0
B12: CVD: mortality | C12: x | D12: x | E12: x | G12: e.g. Eurostat | H12: 0 | I12: 0
B13: Poisoned by a mushroom | C13: x | D13: x | E13: x | H13: 0 | I13: 1
B15: Economics, finance, and work
A16: Consumer protection | B16: Positive economic effect of sustainable consumption | C16: x | D16: x | E16: x | F16: Of 1 million people who switch from halogen lamps to LED lamps, how many will actually save money within 12 months of switching? | G16: model estimates | H16: 0 | I16: 0
B17: Getting caught in debt traps | C17: x | D17: x | E17: x | F17: Of 1 million people how many will go bankrupt (not able to serve one's debt)? | G17: national statistics | H17: 0 | I17: 0
B18: Liability insurance claims | C18: x | D18: x | E18: x | F18: Of 1 million people how many people will make a claim on their third-party insurance? | G18: de, fr, uk at least | H18: 0 | I18: 1
B19: Lottery winning (at least 10,000 EUR) | C19: x | D19: x | E19: x | H19: 0 | I19: 1
B21: Technology and digitalization
B22: Morbidity by smartphone emissions | C22: x | D22: x | E22: x | F22: Of 1 million people who use a smartphone, how many will develop cancer due to the radiation exposure? | H22: 0 | I22: 0
B23: Unemployment | C23: x | D23: x | E23: x | F23: Of 1 million people how many will lose their job due to advances in information technology? | G23: model estimates | H23: 0 | I23: 0
B24: Morbidity by herbicide (e.g. Glyphosat) | C24: x | D24: x | E24: x | G24: conflicting evidence | H24: 0 | I24: 0
B26: Environment and traffic
A27: Non-dread risk (contrast) | B27: Car accident mortality | C27: x | D27: x | E27: x | G27: e.g. Eurostat | H27: 0 | I27: 0
A28: Dread risk | B28: Plane accident mortality | C28: x | D28: x | E28: x | H28: 1 | I28: 1
B29: Morbidity by air pollution | C29: x | D29: x | E29: x | F29: Of 1 million people, how many will get sick due to air pollution? | G29: e.g. Global burden of disease (yearly estimates) | H29: 0 | I29: 0
B30: Floods (e.g. From rivers) | C30: x | D30: x | E30: x | F30: Of 1 million people, how many will be a victim of flooding? | G30: national statistics | H30: 1 | I30: 0
B34: Subordinate
B35: Becoming victim of a wolf attack | C35: x | D35: agree with MM | F35: Of 1 million people from Germany how many become victim of a wolf attack?
B36: Poisoned by snakes | C36: x | F36: [was for having one more natural one, but we can skip it] Mirjam: Death by eating a poisonous mushroom?
B37: Morbidity by genetically modified food | C37: x | D37: x | F37: Of 1 million people who eat genetically modified maize, how many will get sick by intoxication by the integrated insecticide? | G37: disputed, but confirmed zero
B38: Morbidity by preservative E250 Natrium nitrite | C38: x | D38: x | F38: Of 1 million people who eat packaged cold meat every day how many will develop cancer due to the preservative E250 Natrium nitrite? | G38: disputed, but confirmed zero
B39: Successful investment in stock market | C39: x | D39: x | E39: x | F39: Of 1 million people investing in stocks how many will succeed with actual gain? | G39: Problem of uncertainty
B40: Entrepreneurial success/Insolvency risk | C40: x | D40: x | F40: Of 1 million people who start a business, how many will fail? | G40: Problem of subset of people
B41: Success of suits by consumers | C41: x | D41: agree with MM | F41: Of 1 million people from German who start a lawsuit against an online seller how many will succeed? | G41: Problem of subset of people
B42: Financial loss by personal pricing | C42: x | D42: x | F42: Of 1 million people who buy a product online, how many will get a price that is adjusted to his/her personal data to his/her disadvantage? | G42: too unknown?
B43: Positive environmental effect of organic meat consumption | C43: x | D43: x | F43: Of 1 million people who buy organic meat only, how many benefit from an increase of drinkable water?

Sheet RA_Website
A1: Risikoatlas-Visualisierung | B1: Risikokategorie | C1: mögliche Risiko-Endpunkte | D1: Erläuterung/Beispiel | E1: Gründe
A3: Digitalisierung | B3: Automatisierung | C3: Arbeitsplatzverlust | D3: Berufsart
A4: Digitalisierung | B4: Digitalisierung | C4: Arbeitsplatzverlust, Anonymitätsverlust | D4: Qualifikationsmängel im Umgang
A5: Digitalisierung | B5: Algorithmen | C5: Armut, Verluste | D5: Digitaler Fussabdruck | E5: Ministry
A6: Digitalisierung | B6: Algorithmen | C6: Armut, Verluste | D6: Diskriminierung, social scoring | E6: Ministry
A7: Digitalisierung | B7: Algorithmen | C7: Armut, Verluste | D7: Invasion eigener Geräte | E7: Ministry
A8: Digitalisierung | B8: Algorithmen | C8: Armut, Verluste | D8: Recht an den eigenen Daten | E8: Ministry
A9: Digitalisierung | B9: Social Scoring | C9: Armut, Verluste, Morbidität, Mortalität, Exklusion | D9: Kreditvergabe | E9: Ministry
A10: Digitalisierung | B10: Algorithmen | C10: Armut, Verluste | D10: Urheberrecht im Internet, user generated content | E10: Ministry
A11: Digitalisierung | B11: Autonome Maschinen | C11: Ereignisse, Mortalität, Verluste | D11: Selbstfahrende Autos | E11: Ministry
A12: Digitalisierung | B12: Computerspiele | C12: Morbidität | D12: Fettleibigkeit | E12: Ministry
A13: Digitalisierung | B13: Datenschutz | C13: Auftreten | D13: elektronische Zahlungsoptionen (Privatsphäre, Verschlüsselung) | E13: Ministry
A14: Digitalisierung | B14: Datenschutz | C14: Auftreten | D14: Email-Provider | E14: Ministry
A15: Digitalisierung | B15: Datensicherheitsprobleme | C15: Auftreten, wirtschaftliche Risiken | D15: Cyberkriminalität | E15: Ministry
A16: Digitalisierung | B16: Elektrosmog | C16: Mortalität, Morbidität | D16: 3/4g-Antennen (Handystrahlen) | E16: Ministry
A17: Digitalisierung | B17: Magnetfelder | C17: Ereignisse, Mortalität, Morbidität | D17: Herzschrittmacher | E17: Ministry
A18: Digitalisierung | B18: Mikrowellen | C18: Ereignisse, Mortalität, Morbidität | D18: Mikrowellengeräte | E18: Ministry
A19: Digitalisierung | B19: Überwachung durch Institutionen | C19: Ereignisse | D19: Emails | E19: Ministry
A20: Digitalisierung | B20: Künstliche Intelligenz | C20: Ereignisse, Arbeitsplatzverluste, Mortalität | D20: Panoptikum | E20: Ministry
A22: Investitionen, Altersvorsorge & Armut | B22: Grauer Kapitalmarkt | C22: Armut, Verluste | D22: Altersvorsorge, Altersarmut | E22: Ministry
A23: Investitionen, Altersvorsorge & Armut | B23: Fonds | C23: Armut, Verluste | D23: Altersvorsorge, Altersarmut | E23: Ministry
A24: Investitionen, Altersvorsorge & Armut | B24: Glücksspiel | C24: Verluste, Armut, Morbidität, Mortalität | D24: Onlinepoker | E24: Ministry
A25: Investitionen, Altersvorsorge & Armut | B25: Immobilien | C25: Verluste, Armut, Morbidität, Mortalität | D25: Altersvorsorge, Altersarmut | E25: Ministry
A26: Investitionen, Altersvorsorge & Armut | B26: Investitionsrisiken | C26: Armut, Verluste | D26: Altersvorsorge, Altersarmut | E26: Ministry
A27: Investitionen, Altersvorsorge & Armut | B27: Jährliches Einkommen | C27: Armut, Morbidität, Mortalität | D27: Altersvorsorge, Altersarmut | E27: Ministry
A28: Investitionen, Altersvorsorge & Armut | B28: Jährliches Sparvolumen | C28: Armut, Verluste, Morbidität, Mortalität | D28: Altersvorsorge, Altersarmut | E28: Ministry
A29: Investitionen, Altersvorsorge & Armut | B29: Kredite | C29: Armut, Verluste, Morbidität, Mortalität, Exklusion | D29: Kreditvergabe | E29: Ministry
A30: Investitionen, Altersvorsorge & Armut | B30: Lotterien | C30: Ereignisse, Verluste, Armut, Morbidität, Mortalität | D30: Gewinne | E30: Ministry
A31: Investitionen, Altersvorsorge & Armut | B31: Mieten | C31: Armut, Verluste | D31: Mietpreise | E31: Ministry
A32: Investitionen, Altersvorsorge & Armut | B32: Staatsanleihen | C32: Armut, Verluste | D32: Altersvorsorge, Altersarmut | E32: Ministry
A34: Kaufen, Verträge, und Schulden | B34: Konsum | C34: Auftreten, wirtschaftliche Verluste | D34: Fallbezogene Erfolgsquote bei Verbraucherklagen (z.B. bei Kauf & Reklamation) | E34: ist für das Ministerium vermutlich wichtig
A35: Kaufen, Verträge, und Schulden | B35: Konsum | C35: Armut, Verluste, Morbidität, Mortalität | D35: Ausfälle und Verspätungen, Schlichtungen | E35: Ministry
A36: Kaufen, Verträge, und Schulden | B36: Konsum | C36: Armut, Verluste, Morbidität, Mortalität | D36: Beschädigtes oder verlorenes Gepäck | E36: Ministry
A37: Kaufen, Verträge, und Schulden | B37: Konsum | C37: Armut, Verluste, Morbidität, Mortalität | D37: Gesondertes Entgelt bei Dienstleistungen | E37: Ministry
A38: Kaufen, Verträge, und Schulden | B38: Konsum | C38: Armut, Verluste, Morbidität, Mortalität | D38: Haustürgeschäfte | E38: Ministry
A39: Kaufen, Verträge, und Schulden | B39: Konsum | C39: Armut, Verluste, Morbidität, Mortalität | D39: Inkasso: Unseriöse Geschäftspraktiken | E39: Ministry
A40: Kaufen, Verträge, und Schulden | B40: Konsum | C40: Armut, Verluste, Morbidität, Mortalität | D40: Kreditkartenschulden | E40: Ministry
A41: Kaufen, Verträge, und Schulden | B41: Konsum | C41: Armut, Verluste, Morbidität, Mortalität | D41: Mängel bei Pauschalreisen | E41: Ministry
A42: Kaufen, Verträge, und Schulden | B42: Konsum | C42: Armut, Verluste, Morbidität, Mortalität | D42: Mängel/Gewährleistung, geplante Obsoleszens | E42: Ministry
A43: Kaufen, Verträge, und Schulden | B43: Konsum | C43: Armut, Verluste, Morbidität, Mortalität | D43: Unerlaubte Telefonwerbung | E43: Ministry
A44: Kaufen, Verträge, und Schulden | B44: Konsum | C44: Armut, Verluste, Morbidität, Mortalität | D44: Ungerechtfertigte Rechnungen | E44: Ministry
A45: Kaufen, Verträge, und Schulden | B45: Konsum | C45: Armut, Verluste, Morbidität, Mortalität | D45: Widerrufsrecht | E45: Ministry
A46: Kaufen, Verträge, und Schulden | B46: Schulden | C46: Armut, Morbidität, Mortalität, Verluste | D46: Schuldenfallen | E46: Ministry
A47: Kaufen, Verträge, und Schulden | B47: Algorithmen | C47: Armut, Verluste | D47: Kostenfallen im Internet | E47: Ministry
A48: Kaufen, Verträge, und Schulden | B48: Algorithmen | C48: Armut, Verluste | D48: personalisierte Angebote/Preise (personal pricing) | E48: Ministry
A49: Kaufen, Verträge, und Schulden | B49: Algorithmen | C49: Armut, Verluste | D49: Systembindung | E49: Ministry
A50: Kaufen, Verträge, und Schulden | B50: Algorithmen | C50: Armut, Verluste | D50: Teure Kundenhotlines | E50: Ministry
A51: Kaufen, Verträge, und Schulden | B51: Konsum | C51: Armut, Verluste, Morbidität, Mortalität | D51: online-shopping | E51: Ministry
A53: Nachhaltiger Konsum | B53: Konsum | C53: Armut, Verluste, Morbidität, Mortalität | D53: Nachhaltiger Konsum | E53: Ministry
A55: neue Technologien | B55: Genetisches Engineering | C55: Ereignisse, wirtschaftliche Risiken, Morbidität | D55: genetisch modifizierte Lebensmittel | E55: Ministry
A56: neue Technologien | B56: Nanotechnologie | C56: Ereignisse, Mortalität, Morbidität | D56: Konsumprodukte mit Nanotechnologie | E56: Ministry
A57: neue Technologien | B57: Biotechnologie-Unfälle | C57: Ereignisse, Mortalität, Morbidität | D57: Kontaminationen | E57: Ministry
A59: Versicherungen | B59: Versicherungen | C59: Auftreten, wirtschaftliche Verluste | D59: Nutzung Haftpflichtversicherung | E59: Ministry
A60: Versicherungen | B60: Versicherungen | C60: Verluste, Armut, Morbidität, Mortalität | D60: Versicherungstypen | E60: Ministry
A62: Kriminalitätsrisiken / Cybercrime | B62: Kriminalität | C62: Kriminalitätsfolgen | D62: Cyberkriminalität: Identitätsdiebstahl
A63: Kriminalitätsrisiken / Cybercrime | B63: Kriminalität | C63: Kriminalitätsfolgen | D63: Cyberkriminalität: Missbrauch intimer Daten
A64: Kriminalitätsrisiken / Cybercrime | B64: Kriminalität | C64: Opfer, Mortalität, Kriminalitätsfolgen, Verletzungen | D64: Cyberkriminalität: Onlinebanking | E64: die Deutschen sind ja bekanntermaßen extrem konservativ, was diese Dinge angeht und es wird ja bereits angezweifelt, ob sich die Einführung von smartphone-Zahlungsmethoden hier lohnt. Aber die werden kommen. Sprich: wird relevant werden. Ministerium widmet sich dem Thema auch unter der Überschrift ‘Sicherheit im Internet’.
A65: Kriminalitätsrisiken / Cybercrime | B65: Kriminalität | C65: Opfer, Mortalität, Kriminalitätsfolgen, Verletzungen | D65: Kreditkartenbetrug auf Auslandsreise | E65: scheint dem Ministerium wichtig zu sein und dazu gibt es mit Sicherheit Datensätze
A66: Kriminalitätsrisiken / Cybercrime | B66: Kriminalität | C66: Opfer, Mortalität, Kriminalitätsfolgen, Verletzungen | D66: Kriminalität: Attacks in the Subway
A67: Kriminalitätsrisiken / Cybercrime | B67: Kriminalität | C67: Kriminalitätsfolgen | D67: Kriminalitätsarten, e.g. Homicides
A68: Kriminalitätsrisiken / Cybercrime | B68: Kriminalität | C68: Opfer, Mortalität, Kriminalitätsfolgen, Verletzungen | D68: Family violence/abuse
A69: Kriminalitätsrisiken / Cybercrime | B69: Kriminalität | C69: Opfer, Mortalität, Kriminalitätsfolgen, Verletzungen | D69: Kidnapping of children
A71: Mortalitätsrisiken/Leisure time | B71: Ablenkung durch Smartphone-Gebrauch | C71: Ereignisse, Mortalität | D71: Fußgängerunfälle
A72: Mortalitätsrisiken/Leisure time | B72: Sportunfälle | C72: Mortalität, Morbidität | D72: Handfeuerwaffen
A73: Mortalitätsrisiken/Leisure time | B73: Substanzrisiken | C73: Mortalität, Morbidität | D73: Passivrauchen
A74: Mortalitätsrisiken/Leisure time | B74: Mortalität - Fahrzeuge | C74: Mortalität, Morbidität | D74: Eisenbahn
A75: Mortalitätsrisiken/Leisure time | B75: Mortalität - Fahrzeuge | C75: Mortalität, Morbidität | D75: Fahrrad
A76: Mortalitätsrisiken/Leisure time | B76: Mortalität - Fahrzeuge | C76: Mortalität, Morbidität | D76: Flugzeuge
A77: Mortalitätsrisiken/Leisure time | B77: Mortalität - Fahrzeuge | C77: Mortalität, Morbidität | D77: Auto
A78: Mortalitätsrisiken/Leisure time | B78: Mortalität - Fahrzeuge | C78: Mortalität, Morbidität | D78: ÖPNV
A79: Mortalitätsrisiken/Leisure time | B79: Mortalität - Fahrzeuge | C79: Mortalität, Morbidität | D79: Schiff, e.g. Recreational boating
A80: Mortalitätsrisiken/Leisure time | B80: Reisesicherheit | C80: Mortalität, Morbidität | D80: Terrorismus in Reiseländern
A81: Mortalitätsrisiken/Leisure time | B81: Freizeitunfälle | C81: Morbidität, Mortalität | D81: Achterbahnen
A82: Mortalitätsrisiken/Leisure time | B82: Freizeitunfälle | C82: Morbidität, Mortalität | D82: Boxing
A83: Mortalitätsrisiken/Leisure time | B83: Freizeitunfälle | C83: Morbidität, Mortalität | D83: Christmas tree lights
A84: Mortalitätsrisiken/Leisure time | B84: Tierunfälle | C84: Morbidität, Mortalität | D84: Domestic animals, Abandoned animals
A85: Mortalitätsrisiken/Leisure time | B85: Freizeitunfälle | C85: Morbidität, Mortalität | D85: Downhill skiing
A86: Mortalitätsrisiken/Leisure time | B86: Freizeitunfälle | C86: Morbidität, Mortalität | D86: Jagdunfälle
A87: Mortalitätsrisiken/Leisure time | B87: Freizeitunfälle | C87: Morbidität, Mortalität | D87: Power mowers
A88: Mortalitätsrisiken/Leisure time | B88: Freizeitunfälle | C88: Morbidität, Mortalität | D88: Skateboards
A89: Mortalitätsrisiken/Leisure time | B89: Freizeitunfälle | C89: Morbidität, Mortalität | D89: Sport: Jogging
A90: Mortalitätsrisiken/Leisure time | B90: Freizeitunfälle | C90: Morbidität, Mortalität | D90: Taucher
A91: Mortalitätsrisiken/Leisure time | B91: Autoabgase | C91: Morbidität, Mortalität | D91: Leaded gasoline, Auto exhaust fumes
A92: Mortalitätsrisiken/Leisure time | B92: Somatische Erkrankungen | C92: Ereignisse, Mortalität, Morbidität | D92: CVD, Herzerkrankungen
A93: Mortalitätsrisiken/Leisure time | B93: Mortalität | C93: Ereignisse, Mortalität, Morbidität | D93: Duschen
A94: Mortalitätsrisiken/Leisure time | B94: Haushaltsunfälle | C94: Ereignisse, Mortalität, Morbidität | D94: Equipments in Bad State
A95: Mortalitätsrisiken/Leisure time | B95: Freizeitunfälle | C95: Ereignisse, Mortalität, Morbidität | D95: Ertrinken
A96: Mortalitätsrisiken/Leisure time | B96: Haushaltsunfälle | C96: Ereignisse, Mortalität, Morbidität | D96: Fensterputzen, Leiterstürze, Accidents at home
A97: Mortalitätsrisiken/Leisure time | B97: Freizeitunfälle | C97: Ereignisse, Mortalität, Morbidität | D97: Haiangriffe
A98: Mortalitätsrisiken/Leisure time | B98: Freizeitunfälle | C98: Ereignisse, Mortalität, Morbidität | D98: Kellertreppen
A99: Mortalitätsrisiken/Leisure time | B99: Somatische Erkrankungen | C99: Ereignisse, Mortalität, Morbidität | D99: Krebserkrankungen
A100: Mortalitätsrisiken/Leisure time | B100: Freizeitunfälle | C100: Ereignisse, Mortalität, Morbidität | D100: Kuhunfälle
A101: Mortalitätsrisiken/Leisure time | B101: Freizeitunfälle | C101: Ereignisse, Mortalität, Morbidität | D101: Sportunfälle (z.B. Klettern)
A102: Mortalitätsrisiken/Leisure time | B102: Tierunfälle | C102: Ereignisse, Mortalität, Morbidität | D102: Wildschaden
A103: Mortalitätsrisiken/Leisure time | B103: Tierunfälle | C103: Ereignisse, Mortalität, Morbidität | D103: Wolfsangriffe

Sheet erstmal nicht
A1: Umwelt und Verkehrsrisiken | B1: Luftverschmutzung | C1: Mortalität, Morbidität | D1: Feinstaubbelastung | E1: ich gehe stark von unterschiedlichen Antwortstrukturen von rural vs urban Probanden aus, ggfls auch im Ländervergleich. Innerhalb der deutschen Politik (Streit um die Umweltziele, Elektroautos, Kohleausstieg etc) nicht unwichtig. Zudem vermute ich, dass es ordentliche Datensätze gibt.
A2: Gesundheit und Ernährung | B2: Ernährungsstrategien und Diäten | C2: Mortalität, Morbidität | D2: vegane Lebensweise | E2: gibt es hier die Möglichkeit von Kreuzvergleichen (vegan & Vitaminmangel vs omnivore & Vitaminmangel vs vegan & Diabetes vs omni & Diabetes, etc)?
A3: Gesundheit und Ernährung | B3: Somatische Erkrankungen | C3: Ereignisse, Mortalität, Morbidität | D3: Grippewellen | E3: jedes Jahr auf’s neue eine Diskussion.
A4: Gesundheit und Ernährung | B4: unverhüteter Sex | C4: Ereignisse, Mortalität, Morbidität | D4: Geschlechtserkrankungen | E4: ich sehe da einfach die Eltern von pubertierenden Kindern und hoffentlich/vielleicht die Jugendlichen selber. Wenn sie diese Info finden würden, wäre das ein großer Gewinn.

Sheet old
A1: Bereich | B1: Risikokategorie | C1: mögliche Risiko-Endpunkte | D1: Erläuterung/Beispiel | E1: consumer focus | F1: fgr | G1: dread | H1: natural | I1: positive | J1: evidence perspective | K1: sum score | L1: candidate
A2: Gesellschaft, Soziales und Politik | B2: Kriminalität | C2: Opfer, Mortalität, Kriminalitätsfolgen, Verletzungen | D2: Cyberkriminalität: Identitätsdiebstahl | E2: 1 | F2: 1 | G2: 0 | H2: 0 | I2: 0 | J2: 1 | K2: =E2+F2+G2+H2+I2+J2 -> 3 | L2: 1
A3: Gesellschaft, Soziales und Politik | B3: Kriminalität | C3: Opfer, Mortalität, Kriminalitätsfolgen, Verletzungen | D3: Kriminalitätsarten | E3: 1 | F3: 1 | G3: 0 | H3: 0 | I3: 0 | J3: 1 | K3: =E3+F3+G3+H3+I3+J3 -> 3 | L3: 1
A4: Gesellschaft, Soziales und Politik | B4: Rechtsstreit | C4: Auftreten, wirtschaftliche Verluste | D4: Fallbezogene Erfolgsquote bei Verbraucherklagen (z.B. bei Kauf & Reklamation) | E4: 1 | F4: 1 | G4: 0 | H4: 0 | I4: 0 | J4: 1 | K4: 3 | L4: 1
A5: Gesellschaft, Soziales und Politik | B5: Terrorismus | C5: Ereignisse, Morbidität, Mortalität | D5: Bombenanschläge, Schiessereien | E5: 0.5 | F5: 1 | G5: 1 | H5: 0 | I5: 0 | J5: 0.5 | K5: 3 | L5: 1
A6: Gesundheit und Ernährung | B6: Freizeitunfälle | C6: Ereignisse, Mortalität, Morbidität | D6: Ertrinken | E6: 1 | F6: 1 | G6: 0 | H6: 0 | I6: 0 | J6: 1 | K6: 3 | L6: 1
A7: Gesundheit und Ernährung | B7: Freizeitunfälle | C7: Ereignisse, Mortalität, Morbidität | D7: Haiangriffe | E7: 1 | F7: 1 | G7: 0 | H7: 0 | I7: 0 | J7: 1 | K7: 3 | L7: 1
A8: Gesundheit und Ernährung | B8: Somatische Erkrankungen | C8: Ereignisse, Mortalität, Morbidität | D8: Grippewellen | E8: 0.5 | F8: 1 | G8: 0 | H8: 1 | I8: 0 | J8: 1 | K8: 3.5 | L8: 1
A9: Gesundheit und Ernährung | B9: Tierunfälle | C9: Mortalität, Morbidität | D9: Schlangenbisse | E9: 0 | F9: 0.5 | G9: 0 | H9: 1 | I9: 0 | J9: 0.5 | K9: 2 | L9: 1
A10: Ökonomie, Finanzen und Arbeit | B10: Aktien | C10: Armut, Verluste | D10: Altersvorsorge | E10: 1 | F10: 1 | G10: 0 | H10: 0 | I10: 1 | J10: 0.5 | K10: 3.5 | L10: 1
A11: Ökonomie, Finanzen und Arbeit | B11: Einzelunternehmer | C11: Ereignisse, Armut, Morbidität, Mortalität, Risikofaktoren | D11: Erfolg vs. Insolvenzen | E11: 1 | F11: 1 | G11: 0 | H11: 0 | I11: 1 | J11: 1 | K11: 4 | L11: 1
A12: Ökonomie, Finanzen und Arbeit | B12: Konsum | C12: Armut, Verluste, Morbidität, Mortalität | D12: Nachhaltiger Konsum | E12: 1 | F12: 1 | G12: 0 | H12: 0 | I12: 1 | J12: 1 | K12: 4 | L12: 1
A13: Ökonomie, Finanzen und Arbeit | B13: Schulden | C13: Armut, Morbidität, Mortalität, Verluste | D13: Schuldenfallen | E13: 1 | F13: 1 | G13: 0 | H13: 0 | I13: 0 | J13: 1 | K13: 3 | L13: 1
A14: Technologien und Digitalisierung | B14: Algorithmen | C14: Armut, Verluste | D14: personalisierte Angebote/Preise (personal pricing) | E14: 1 | F14: 1 | G14: 0 | H14: 0 | I14: 0 | J14: 1 | K14: 3 | L14: 1
A15: Technologien und Digitalisierung | B15: Elektrosmog | C15: Mortalität, Morbidität | D15: 3/4g-Antennen (Handystrahlen) | E15: 1 | F15: 1 | G15: 0 | H15: 0 | I15: 0 | J15: 1 | K15: 3 | L15: 1
A16: Technologien und Digitalisierung | B16: Genetisches Engineering | C16: Ereignisse, wirtschaftliche Risiken, Morbidität | D16: genetisch modifizierte Lebensmittel | E16: 1 | F16: 1 | G16: 0 | H16: 0 | I16: 0 | J16: 1 | K16: 3 | L16: 1
A17: Technologien und Digitalisierung | B17: Konservierungsstoffe | C17: Ereignisse, Mortalität, Morbidität | D17: E250 Natriumnitrit | E17: 1 | F17: 1 | G17: 0 | H17: 0 | I17: 0 | J17: 1 | K17: 3 | L17: 1
A18: Umwelt und Verkehrsrisiken | B18: Fahrzeuge | C18: Mortalität, Morbidität | D18: Auto | E18: 1 | F18: 1 | G18: 0 | H18: 0 | I18: 0 | J18: 1 | K18: 3 | L18: 1
A19: Umwelt und Verkehrsrisiken | B19: Fahrzeuge | C19: Mortalität, Morbidität | D19: Flugzeuge | E19: 1 | F19: 1 | G19: 1 | H19: 0 | I19: 0 | J19: 1 | K19: 4 | L19: 1
A20: Umwelt und Verkehrsrisiken | B20: Luftverschmutzung | C20: Mortalität, Morbidität | D20: Feinstaubbelastung | E20: 0.5 | F20: 1 | G20: 0 | H20: 0 | I20: 0 | J20: 1 | K20: 2.5 | L20: 1
A21: Umwelt und Verkehrsrisiken | B21: Trinkwasser | C21: Ereignisse | D21: Belastungsreduktion BIO | E21: 0.5 | F21: 1 | G21: 0 | H21: 0 | I21: 1 | J21: 1 | K21: 3.5 | L21: 1
A22: Gesellschaft, Soziales und Politik | B22: Automatisierung | C22: Arbeitsplatzverlust | D22: Berufsart | E22: 0.5 | F22: 1 | G22: 0 | H22: 0 | I22: 0 | J22: 0.5 | K22: 2
A23: Gesellschaft, Soziales und Politik | B23: Digitalisierung | C23: Arbeitsplatzverlust, Anonymitätsverlust | D23: Qualifikationsmängel im Umgang | E23: 1 | F23: 1 | G23: 0 | H23: 0 | I23: 0 | J23: 0.5 | K23: 2.5
A24: Gesellschaft, Soziales und Politik | B24: Einsamkeit | C24: Morbidität, Mortalität, Delinquenz, Sucht | D24: Singlehaushalte im Alter | E24: 0.5 | F24: 1 | G24: 0 | H24: 0 | I24: 0 | J24: 1 | K24: 2.5
A25: Gesellschaft, Soziales und Politik | B25: Entwicklung von Kindern | C25: Morbidität, Mortalität, Delinquenz, Armut, Behinderungen | D25: Elternstatus, Schulzone | E25: 0.5 | F25: 0 | G25: 0 | H25: 0 | I25: 0 | J25: 0.5 | K25: 1
A26: Gesellschaft, Soziales und Politik | B26: Kriege | C26: Ereignisse, Morbidität, Mortalität | D26: Atomkrieg | E26: 0 | F26: 0 | G26: 1 | H26: 0 | I26: 0 | J26: 0 | K26: 1
A27: Gesellschaft, Soziales und Politik | B27: Kriminalität | C27: Opfer, Mortalität, Kriminalitätsfolgen, Verletzungen | D27: Cyberkriminalität: Onlinebanking | E27: 1 | F27: 1 | G27: 0 | H27: 0 | I27: 0 | J27: 1 | K27: 3
A28: Gesellschaft, Soziales und Politik | B28: Migration | C28: Ereignisse, Armut, soziale Spannungen | D28: Flüchtlinge | E28: 0.5 | F28: 1 | G28: 0 | H28: 0 | I28: 0 | J28: 0.5 | K28: 2
A29: Gesellschaft, Soziales und Politik | B29: Nichtlineare Entwicklungen | C29: Ereignisse, Armut | D29: Zinsen | E29: 1 | F29: 1 | G29: 0 | H29: 0.5 | I29: 0 | J29: 0.5 | K29: 3
A30: Gesellschaft, Soziales und Politik | B30: Persönlichkeitseigenschaften | C30: Delinquenz, Armut | D30: Depressivität | E30: 0.5 | F30: 1 | G30: 0 | H30: 0 | I30: 0 | J30: 1 | K30: 2.5
A31: Gesellschaft, Soziales und Politik | B31: Persönlichkeitseigenschaften | C31: Delinquenz, Armut | D31: Egozentrismus | E31: 0.5 | F31: 1 | G31: 0 | H31: 0 | I31: 0 | J31: 1 | K31: 2.5
A32: Gesellschaft, Soziales und Politik | B32: Persönlichkeitseigenschaften | C32: Delinquenz, Armut | D32: Neugier | E32: 0.5 | F32: 1 | G32: 0 | H32: 0 | I32: 0 | J32: 1 | K32: 2.5
A33: Gesellschaft, Soziales und Politik | B33: Probleme mit Eltern | C33: Morbidität, Mortalität, Delinquenz, Armut | D33: Pflege | E33: 0.5 | F33: 1 | G33: 0 | H33: 0 | I33: 0 | J33: 1 | K33: 2.5
A34: Gesellschaft, Soziales und Politik | B34: Probleme mit Kindern | C34: Morbidität, Mortalität, Delinquenz, Armut | D34: ADHS | E34: 0.5 | F34: 1 | G34: 0 | H34: 0 | I34: 0 | J34: 1 | K34: =E34+F34+G34+H34+I34+J34 -> 2.5
A35: Gesellschaft, Soziales und Politik | B35: Religion | C35: Morbidität, Mortalität, Delinquenz, Armut | D35: Christen, Atheisten, Muslime, Juden | E35: 0 | F35: 1 | G35: 0 | H35: 0 | I35: 0 | J35: 0.5 | K35: 1.5
A36: Gesundheit und Ernährung | B36: alternative Medizin | C36: Morbidität, Mortalität | D36: Akupunktur | E36: 0.5 | F36: 1 | G36: 0 | H36: 0 | I36: 0 | J36: 0.5 | K36: 2
A37: Gesundheit und Ernährung | B37: alternative Medizin | C37: Morbidität, Mortalität | D37: homöopathische Mittel | E37: 0.5 | F37: 1 | G37: 0 | H37: 0 | I37: 0 | J37: 0.5 | K37: 2
A38: Gesundheit und Ernährung | B38: Behandlungsfolgen | C38: Ereignisse, Mortalität, Morbidität | D38: Impfschäden | E38: 0.5 | F38: 1 | G38: 0 | H38: 0 | I38: 0 | J38: 1 | K38: 2.5
A39: Gesundheit und Ernährung | B39: Behandlungsfolgen | C39: Ereignisse, Mortalität, Morbidität | D39: Narkoseschäden | E39: 0.5 | F39: 1 | G39: 0 | H39: 0 | I39: 0 | J39: 1 | K39: 2.5
A40: Gesundheit und Ernährung | B40: Chirurgie | C40: Ereignisse, Mortalität, Morbidität | D40: Operationsfolgen | E40: 0.5 | F40: 0 | G40: 0 | H40: 0 | I40: 0 | J40: 1 | K40: 1.5
A41: Gesundheit und Ernährung | B41: Empfängnisverhütung | C41: Ereignisse, Morbidität | D41: Antibabypille mit neuen Gestagenen | E41: 0.5 | F41: 0 | G41: 0 | H41: 0 | I41: 0 | J41: 1 | K41: 1.5
A42: Gesundheit und Ernährung | B42: Epidemien | C42: Ereignisse, Mortalität, Morbidität | D42: Masern | E42: 0.5 | F42: 0 | G42: 0 | H42: 0 | I42: 0 | J42: 1 | K42: 1.5
A43: Gesundheit und Ernährung | B43: Ernährungsstrategien und Diäten | C43: Mortalität, Morbidität | D43: Atkinson | E43: 1 | F43: 1 | G43: 0 | H43: 0 | I43: 0 | J43: 0.5 | K43: 2.5
A44: Gesundheit und Ernährung | B44: Ernährungsstrategien und Diäten | C44: Mortalität, Morbidität | D44: vegane Lebensweise | E44: 1 | F44: 1 | G44: 0 | H44: 0 | I44: 0 | J44: 0.5 | K44: 2.5
A45: Gesundheit und Ernährung | B45: Freizeitunfälle | C45: Ereignisse, Mortalität, Morbidität | D45: Duschen | E45: 1 | F45: 0 | G45: 0 | H45: 0 | I45: 0 | J45: 1 | K45: 2
A46: Gesundheit und Ernährung | B46: Freizeitunfälle | C46: Ereignisse, Mortalität, Morbidität | D46: Kellertreppen | E46: 1 | F46: 0 | G46: 0 | H46: 0 | I46: 0 | J46: 1 | K46: 2
A47: Gesundheit und Ernährung | B47: Freizeitunfälle | C47: Ereignisse, Mortalität, Morbidität | D47: Sportunfälle (z.B. Klettern) | E47: 1 | F47: 1 | G47: 0 | H47: 0 | I47: 0 | J47: 1 | K47: 3
A48: Gesundheit und Ernährung | B48: Haushaltsunfälle | C48: Ereignisse, Mortalität, Morbidität | D48: Fensterputzen, Leiterstürze | E48: 1 | F48: 0 | G48: 0 | H48: 0 | I48: 0 | J48: 1 | K48: 2
A49: Gesundheit und Ernährung | B49: Hygiene | C49: Ereignisse, Mortalität, Morbidität | D49: Hygieneverstöße | E49: 0.5 | F49: 1 | G49: 0 | H49: 0 | I49: 0 | J49: 1 | K49: 2.5
A50: Gesundheit und Ernährung | B50: Medizinische Fehler | C50: Ereignisse, Mortalität, Morbidität | D50: Fehlmedikation | E50: 0.5 | F50: 1 | G50: 0 | H50: 0 | I50: 0 | J50: 1 | K50: 2.5
A51: Gesundheit und Ernährung | B51: Psychische Erkrankungen | C51: Ereignisse, Mortalität, Morbidität, Opfer, Risikofaktoren | D51: Depression | E51: 0.5 | F51: 0 | G51: 0 | H51: 0 | I51: 0 | J51: 1 | K51: 1.5
A52: Gesundheit und Ernährung | B52: Psychische Erkrankungen | C52: Ereignisse, Mortalität, Morbidität, Opfer, Risikofaktoren | D52: Süchte | E52: 0.5 | F52: 0 | G52: 0 | H52: 0 | I52: 0 | J52: 1 | K52: 1.5
A53: Gesundheit und Ernährung | B53: Resistente Erreger | C53: Ereignisse, Mortalität, Morbidität | D53: MRSA-Keime | E53: 0.5 | F53: 1 | G53: 0 | H53: 0 | I53: 0 | J53: 1 | K53: 2.5
A54: Gesundheit und Ernährung | B54: Substanzrisiken | C54: Mortalität, Morbidität | D54: Alkohol | E54: 1 | F54: 1 | G54: 0 | H54: 0 | I54: 0 | J54: 1 | K54: 3
A55: Gesundheit und Ernährung | B55: Substanzrisiken | C55: Mortalität, Morbidität | D55: illegale Drogen | E55: 1 | F55: 1 | G55: 0 | H55: 0 | I55: 0 | J55: 1 | K55: 3
A56: Gesundheit und Ernährung | B56: Substanzrisiken | C56: Mortalität, Morbidität | D56: Zigaretten | E56: 1 | F56: 1 | G56: 0 | H56: 0 | I56: 0 | J56: 1 | K56: 3
A57: Gesundheit und Ernährung | B57: Tierunfälle | C57: Mortalität, Morbidität | D57: Spinnenbisse | E57: 0 | F57: 0.5 | G57: 0 | H57: 1 | I57: 0 | J57: 0.5 | K57: 2
A58: Gesundheit und Ernährung | B58: Vergiftungen | C58: Ereignisse, Mortalität, Morbidität | D58: Chemikalien | E58: 0.5 | F58: 1 | G58: 0 | H58: 0 | I58: 0 | J58: 1 | K58: 2.5
A59: Gesundheit und Ernährung | B59: Vergiftungen | C59: Ereignisse, Mortalität, Morbidität | D59: Pilze | E59: 0.5 | F59: 0 | G59: 0 | H59: 0.5 | I59: 0 | J59: 1 | K59: 2
A60: Gesundheit und Ernährung | B60: verunreinigte Lebensmittel | C60: Morbidität | D60: Schadstoffe in Fisch | E60: 1 | F60: 1 | G60: 0 | H60: 0 | I60: 0 | J60: 0.5 | K60: 2.5
A61: Gesundheit und Ernährung | B61: Wechselwirkungen bei Behandlungen | C61: Mortalität, Morbidität | D61: Polymedikation | E61: 0.5 | F61: 1 | G61: 0 | H61: 0 | I61: 0 | J61: 0.5 | K61: 2
A62: Ökonomie, Finanzen und Arbeit | B62: Arbeitsbelastung | C62: Mortalität, Morbidität | D62: PC-Arbeitsplatzrisiken (Sitzen) | E62: 0.5 | F62: 0.5 | G62: 0 | H62: 0 | I62: 0 | J62: 1 | K62: 2
A63: Ökonomie, Finanzen und Arbeit | B63: Arbeitslosigkeit | C63: Mortalität, Morbidität, Risikofaktoren | D63: Berufsart | E63: 0.5 | F63: 0 | G63: 0 | H63: 0 | I63: 0 | J63: 1 | K63: 1.5
A64: Ökonomie, Finanzen und Arbeit | B64: Arbeitsunfälle | C64: Mortalität, Morbidität | D64: Berufsart | E64: 0.5 | F64: 0 | G64: 0 | H64: 0 | I64: 0 | J64: 1 | K64: 1.5
A65: Ökonomie, Finanzen und Arbeit | B65: Fonds | C65: Armut, Verluste | D65: Altersarmut | E65: 1 | F65: 1 | G65: 0 | H65: 0 | I65: 0 | J65: 0.5 | K65: 2.5
A66: Ökonomie, Finanzen und Arbeit | B66: Glücksspiel | C66: Verluste, Armut, Morbidität, Mortalität | D66: Onlinepoker | E66: 1 | F66: 0 | G66: 0 | H66: 0 | I66: 0 | J66: 1 | K66: =E66+F66+G66+H66+I66+J66 -> 2
A67: Ökonomie, Finanzen und Arbeit | B67: Immobilien | C67: Verluste, Armut, Morbidität, Mortalität | D67: Altersarmut | E67: 1 | F67: 1 | G67: 0 | H67: 0 | I67: 0 | J67: 0.5 | K67: 2.5
A68: Ökonomie, Finanzen und Arbeit | B68: Investitionsrisiken | C68: Armut, Verluste | D68: Altersarmut | E68: 1 | F68: 1 | G68: 0 | H68: 0 | I68: 0 | J68: 0.5 | K68: 2.5
A69: Ökonomie, Finanzen und Arbeit | B69: Jährliches Einkommen | C69: Armut, Morbidität, Mortalität | D69: Altersarmut | E69: 1 | F69: 1 | G69: 0 | H69: 0 | I69: 0 | J69: 0.5 | K69: 2.5
A70: Ökonomie, Finanzen und Arbeit | B70: Jährliches Sparvolumen | C70: Armut, Verluste, Morbidität, Mortalität | D70: Altersarmut | E70: 1 | F70: 1 | G70: 0 | H70: 0 | I70: 0 | J70: 0.5 | K70: 2.5
A71: Ökonomie, Finanzen und Arbeit | B71: Konsum | C71: Armut, Verluste, Morbidität, Mortalität | D71: Ausfälle und Verspätungen | E71: 1 | F71: 0 | G71: 0 | H71: 0 | I71: 0 | J71: 1 | K71: 2
A72: Ökonomie, Finanzen und Arbeit | B72: Konsum | C72: Armut, Verluste, Morbidität, Mortalität | D72: Beschädigtes oder verlorenes Gepäck | E72: 1 | F72: 0 | G72: 0 | H72: 0 | I72: 0 | J72: 1 | K72: 2
A73: Ökonomie, Finanzen und Arbeit | B73: Konsum | C73: Armut, Verluste, Morbidität, Mortalität | D73: Energieversorgerwechsel | E73: 1 | F73: 0 | G73: 0 | H73: 0 | I73: 0 | J73: 0 | K73: 1
A74: Ökonomie, Finanzen und Arbeit | B74: Konsum | C74: Armut, Verluste, Morbidität, Mortalität | D74: Gesondertes Entgelt bei Dienstleistungen | E74: 1 | F74: 0 | G74: 0 | H74: 0 | I74: 0 | J74: 0 | K74: 1
A75: Ökonomie, Finanzen und Arbeit | B75: Konsum | C75: Armut, Verluste, Morbidität, Mortalität | D75: Haustürgeschäfte | E75: 1 | F75: 0 | G75: 0 | H75: 0 | I75: 0 | J75: 1 | K75: 2
A76: Ökonomie, Finanzen und Arbeit | B76: Konsum | C76: Armut, Verluste, Morbidität, Mortalität | D76: Inkasso: Unseriöse Geschäftspraktiken | E76: 1 | F76: 0 | G76: 0 | H76: 0 | I76: 0 | J76: 0 | K76: 1
A77: Ökonomie, Finanzen und Arbeit | B77: Konsum | C77: Armut, Verluste, Morbidität, Mortalität | D77: Kreditkartenschulden | E77: 1 | F77: 0 | G77: 0 | H77: 0 | I77: 0 | J77: 1 | K77: 2
A78: Ökonomie, Finanzen und Arbeit | B78: Konsum | C78: Armut, Verluste, Morbidität, Mortalität | D78: Mängel bei Pauschalreisen | E78: 1 | F78: 0 | G78: 0 | H78: 0 | I78: 0 | J78: 0.5 | K78: 1.5
A79: Ökonomie, Finanzen und Arbeit | B79: Konsum | C79: Armut, Verluste, Morbidität, Mortalität | D79: Mängel/Gewährleistung | E79: 1 | F79: 0 | G79: 0 | H79: 0 | I79: 0 | J79: 0.5 | K79: 1.5
A80: Ökonomie, Finanzen und Arbeit | B80: Konsum | C80: Armut, Verluste, Morbidität, Mortalität | D80: Reisen mit eingeschränkter Mobilität | E80: 1 | F80: 0 | G80: 0 | H80: 0 | I80: 0 | J80: 0 | K80: 1
A81: Ökonomie, Finanzen und Arbeit | B81: Konsum | C81: Armut, Verluste, Morbidität, Mortalität | D81: Telekommunikationsverträge | E81: 1 | F81: 0 | G81: 0 | H81: 0 | I81: 0 | J81: 0.5 | K81: 1.5
A82: Ökonomie, Finanzen und Arbeit | B82: Konsum | C82: Armut, Verluste, Morbidität, Mortalität | D82: Unerlaubte Telefonwerbung | E82: 1 | F82: 0 | G82: 0 | H82: 0 | I82: 0 | J82: 0.5 | K82: 1.5
A83: Ökonomie, Finanzen und Arbeit | B83: Konsum | C83: Armut, Verluste, Morbidität, Mortalität | D83: Ungerechtfertigte Rechnungen | E83: 1 | F83: 0 | G83: 0 | H83: 0 | I83: 0 | J83: 0.5 | K83: 1.5
A84: Ökonomie, Finanzen und Arbeit | B84: Konsum | C84: Armut, Verluste, Morbidität, Mortalität | D84: Widerrufsrecht | E84: 1 | F84: 0 | G84: 0 | H84: 0 | I84: 0 | J84: 0 | K84: 1
A85: Ökonomie, Finanzen und Arbeit | B85: Konten | C85: Armut, Verluste, Morbidität, Mortalität, Exklusion | D85: Dispozinsen | E85: 1 | F85: 1 | G85: 0 | H85: 0 | I85: 0 | J85: 0.5 | K85: 2.5
A86: Ökonomie, Finanzen und Arbeit | B86: Konten | C86: Armut, Verluste, Morbidität, Mortalität | D86: Kontowechsel | E86: 1 | F86: 1 | G86: 0 | H86: 0 | I86: 0 | J86: 0.5 | K86: 2.5
A87: Ökonomie, Finanzen und Arbeit | B87: Kredite | C87: Armut, Verluste, Morbidität, Mortalität, Exklusion | D87: Kreditvergabe | E87: 1 | F87: 1 | G87: 0 | H87: 0 | I87: 0 | J87: 0.5 | K87: 2.5
A88: Ökonomie, Finanzen und Arbeit | B88: Kredite | C88: Armut, Verluste, Morbidität, Mortalität, Exklusion | D88: Scoring | E88: 1 | F88: 1 | G88: 0 | H88: 0 | I88: 0 | J88: 0.5 | K88: 2.5
A89: Ökonomie, Finanzen und Arbeit | B89: Lotterien | C89: Ereignisse, Verluste, Armut, Morbidität, Mortalität | D89: Gewinne | E89: 1 | F89: 0 | G89: 0 | H89: 0 | I89: 1 | J89: 1 | K89: 3
A90: Ökonomie, Finanzen und Arbeit | B90: Mieten | C90: Armut, Verluste | D90: Mietpreise | E90: 1 | F90: 0 | G90: 0 | H90: 0 | I90: 0 | J90: 1 | K90: 2
A91: Ökonomie, Finanzen und Arbeit | B91: Staatsanleihen | C91: Armut, Verluste | D91: Altersarmut | E91: 1 | F91: 1 | G91: 0 | H91: 0 | I91: 0 | J91: 0.5 | K91: 2.5
A92: Ökonomie, Finanzen und Arbeit | B92: Versicherungen | C92: Verluste, Armut, Morbidität, Mortalität | D92: Versicherungstypen | E92: 1 | F92: 1 | G92: 0 | H92: 0 | I92: 0 | J92: 0.5 | K92: 2.5
A93: Technologien und Digitalisierung | B93: Ablenkung durch Smartphone-Gebrauch | C93: Ereignisse, Mortalität | D93: Fußgängerunfälle | E93: 1 | F93: 0.5 | G93: 0 | H93: 0 | I93: 0 | J93: 1 | K93: 2.5
A94: Technologien und Digitalisierung | B94: Algorithmen | C94: Armut, Verluste | D94: AGB-Irreführung | E94: 1 | F94: 1 | G94: 0 | H94: 0 | I94: 0 | J94: 0.5 | K94: 2.5
A95: Technologien und Digitalisierung | B95: Algorithmen | C95: Armut, Verluste | D95: Digitaler Fussabdruck | E95: 1 | F95: 1 | G95: 0 | H95: 0 | I95: 0 | J95: 0.5 | K95: 2.5
A96: Technologien und Digitalisierung | B96: Algorithmen | C96: Armut, Verluste | D96: Diskriminierung, social scoring | E96: 1 | F96: 1 | G96: 0 | H96: 0 | I96: 0 | J96: 0.5 | K96: 2.5
A97: Technologien und Digitalisierung | B97: Algorithmen | C97: Armut, Verluste | D97: Invasion eigener Geräte | E97: 1 | F97: 1 | G97: 0 | H97: 0 | I97: 0 | J97: 0.5 | K97: 2.5
A98: Technologien und Digitalisierung | B98: Algorithmen | C98: Armut, Verluste | D98: Kostenfallen im Internet | E98: 1 | F98: 1 | G98: 0 | H98: 0 | I98: 0 | J98: 0.5 | K98: =E98+F98+G98+H98+I98+J98 -> 2.5
A99: Technologien und Digitalisierung | B99: Algorithmen | C99: Armut, Verluste | D99: Privatsphärenverletzung | E99: 1 | F99: 1 | G99: 0 | H99: 0 | I99: 0 | J99: 0.5 | K99: 2.5
A100: Technologien und Digitalisierung | B100: Algorithmen | C100: Armut, Verluste | D100: Recht an den eigenen Daten | E100: 1 | F100: 1 | G100: 0 | H100: 0 | I100: 0 | J100: 0.5 | K100: 2.5
A101: Technologien und Digitalisierung | B101: Algorithmen | C101: Armut, Verluste | D101: Roaming | E101: 1 | F101: 0 | G101: 0 | H101: 0 | I101: 0 | J101: 1 | K101: 2
A102: Technologien und Digitalisierung | B102: Algorithmen | C102: Armut, Verluste | D102: Systembindung | E102: 1 | F102: 1 | G102: 0 | H102: 0 | I102: 0 | J102: 0.5 | K102: 2.5
A103: Technologien und Digitalisierung | B103: Algorithmen | C103: Armut, Verluste | D103: Teure Kundenhotlines | E103: 1 | F103: 0 | G103: 0 | H103: 0 | I103: 0 | J103: 0.5 | K103: 1.5
A104: Technologien und Digitalisierung | B104: Algorithmen | C104: Armut, Verluste | D104: Urheberrecht im Internet | E104: 1 | F104: 1 | G104: 0 | H104: 0 | I104: 0 | J104: 0 | K104: 2
A105: Technologien und Digitalisierung | B105: Autonome Maschinen | C105: Ereignisse, Mortalität, Verluste | D105: Selbstfahrende Autos | E105: 1 | F105: 1 | G105: 0 | H105: 0 | I105: 0 | J105: 0 | K105: 2
A106: Technologien und Digitalisierung | B106: Biotechnologie-Unfälle | C106: Ereignisse, Mortalität, Morbidität | D106: Kontaminationen | E106: 0.5 | F106: 1 | G106: 0 | H106: 0 | I106: 0 | J106: 0 | K106: 1.5
A107: Technologien und Digitalisierung | B107: Computerspiele | C107: Morbidität | D107: Fettleibigkeit | E107: 1 | F107: 1 | G107: 0 | H107: 0 | I107: 0 | J107: 0.5 | K107: 2.5
A108: Technologien und Digitalisierung | B108: Datenschutz | C108: Auftreten | D108: elektronische Zahlungsoptionen (Privatsphäre, Verschlüsselung) | E108: 1 | F108: 1 | G108: 0 | H108: 0 | I108: 0 | J108: 0.5 | K108: 2.5
A109: Technologien und Digitalisierung | B109: Datenschutz | C109: Auftreten | D109: Email-Provider | E109: 1 | F109: 1 | G109: 0 | H109: 0 | I109: 0 | J109: 0.5 | K109: 2.5
A110: Technologien und Digitalisierung | B110: Datensicherheitsprobleme | C110: Auftreten, wirtschaftliche Risiken | D110: Cyberkriminalität | E110: 1 | F110: 1 | G110: 0 | H110: 0 | I110: 0 | J110: 0.5 | K110: 2.5
A111: Technologien und Digitalisierung | B111: Konsum | C111: Armut, Verluste, Morbidität, Mortalität | D111: online-shopping | E111: 1 | F111: 0 | G111: 0 | H111: 0 | I111: 0 | J111: 1 | K111: 2
A112: Technologien und Digitalisierung | B112: Künstliche Intelligenz | C112: Ereignisse, Arbeitsplatzverluste, Mortalität | D112: Panoptikum | E112: 0.5 | F112: 1 | G112: 0 | H112: 0 | I112: 0 | J112: 0 | K112: 1.5
A113: Technologien und Digitalisierung | B113: Magnetfelder | C113: Ereignisse, Mortalität, Morbidität | D113: Herzschrittmacher | E113: 1 | F113: 1 | G113: 0 | H113: 0 | I113: 0 | J113: 1 | K113: 3
A114: Technologien und Digitalisierung | B114: Mikrowellen | C114: Ereignisse, Mortalität, Morbidität | D114: Mikrowellengeräte | E114: 1 | F114: 1 | G114: 0 | H114: 0 | I114: 0 | J114: 1 | K114: 3
A115: Technologien und Digitalisierung | B115: Nuklearunfälle | C115: Ereignisse, Mortalität, Morbidität | D115: Deutsche Kraftwerke | E115: 0 | F115: 0 | G115: 1 | H115: 0 | I115: 0 | J115: 1 | K115: 2
A116: Technologien und Digitalisierung | B116: Pestizide, Herbizide, Fungizide | C116: Mortalität, Morbidität | D116: Glyphosat | E116: 1 | F116: 1 | G116: 0 | H116: 0 | I116: 0 | J116: 1 | K116: 3
A117: Technologien und Digitalisierung | B117: Überwachung durch Institutionen | C117: Ereignisse | D117: Emails | E117: 1 | F117: 1 | G117: 0 | H117: 0 | I117: 0 | J117: 0.5 | K117: 2.5
A118: Technologien und Digitalisierung | B118: Unfälle von Chemieanlagen | C118: Ereignisse, Mortalität, Morbidität | D118: Deutsche Großanlagen | E118: 0 | F118: 0.5 | G118: 1 | H118: 0 | I118: 0 | J118: 0.5 | K118: 2
A119: Umwelt und Verkehrsrisiken | B119: Biologische Vielfalt | C119: Ereignisse | D119: Bienensterben | E119: 0 | F119: 1 | G119: 0 | H119: 0 | I119: 0 | J119: 0.5 | K119: 1.5
A120: Umwelt und Verkehrsrisiken | B120: Bodenverluste | C120: wirtschaftliche Verluste | D120: Bodenerosionen, Überdüngung, Biokäufe | E120: 0.5 | F120: 1 | G120: 0 | H120: 0 | I120: 0 | J120: 0.5 | K120: 2
A121: Umwelt und Verkehrsrisiken | B121: Erdbeben | C121: Ereignisse, Mortalität, Morbidität | E121: 0 | F121: 0 | G121: 1 | H121: 1 | I121: 0 | J121: 0.5 | K121: 2.5
A122: Umwelt und Verkehrsrisiken | B122: Fahrzeuge | C122: Mortalität, Morbidität | D122: Eisenbahn | E122: 1 | F122: 1 | G122: 0 | H122: 0 | I122: 0 | J122: 1 | K122: 3
A123: Umwelt und Verkehrsrisiken | B123: Fahrzeuge | C123: Mortalität, Morbidität | D123: Fahrrad | E123: 1 | F123: 1 | G123: 0 | H123: 0 | I123: 0 | J123: 1 | K123: 3
A124: Umwelt und Verkehrsrisiken | B124: Fahrzeuge | C124: Mortalität, Morbidität | D124: ÖPNV | E124: 1 | F124: 1 | G124: 0 | H124: 0 | I124: 0 | J124: 1 | K124: 3
A125: Umwelt und Verkehrsrisiken | B125: Gewitter | C125: Ereignisse, Mortalität, Morbidität | D125: Hagel, Blitzschläge, Sturm | E125: 0 | F125: 0 | G125: 0 | H125: 1 | I125: 0 | J125: 1 | K125: 2
A126: Umwelt und Verkehrsrisiken | B126: Globale Erwärmung | C126: Wetterereignisse, Mortalität, Morbidität | D126: Biokäufe | E126: 0.5 | F126: 0 | G126: 0 | H126: 0 | I126: 1 | J126: 0.5 | K126: 2
A127: Umwelt und Verkehrsrisiken | B127: Hitzewellen | C127: Ereignisse, Mortalität, Morbidität | E127: 0 | F127: 0 | G127: 0 | H127: 1 | I127: 0 | J127: 1 | K127: 2
A128: Umwelt und Verkehrsrisiken | B128: Hochwasser | C128: Ereignisse, Mortalität, Morbidität | D128: Flüsse in Deutschland | E128: 0 | F128: 0 | G128: 0 | H128: 1 | I128: 0 | J128: 1 | K128: 2
A129: Umwelt und Verkehrsrisiken | B129: Lärmbelastung | C129: Ereignisse, Mortalität, Morbidität | E129: 0 | F129: 1 | G129: 0 | H129: 0 | I129: 0 | J129: 1 | K129: 2
A130: Umwelt und Verkehrsrisiken | B130: Öffentliche Infrastruktur | C130: Mortalität, Morbidität | D130: Straßen, Versorgung | E130: 0 | F130: 0 | G130: 0 | H130: 0 | I130: 0 | J130: 0.5 | K130: =E130+F130+G130+H130+I130+J130 -> 0.5
A131: Umwelt und Verkehrsrisiken | B131: Rare Ereignisse | C131: Ereignisse, Mortalität, Morbidität | D131: umstürzende Bäume | E131: 0 | F131: 1 | G131: 0 | H131: 0 | I131: 0 | J131: 1 | K131: 2
A132: Umwelt und Verkehrsrisiken | B132: Reisesicherheit | C132: Mortalität, Morbidität | D132: Terrorismus in Reiseländern | E132: 1 | F132: 0 | G132: 0 | H132: 0 | I132: 0 | J132: 0.5 | K132: 1.5
A133: Umwelt und Verkehrsrisiken | B133: Trinkwasser | C133: Ereignisse | D133: Verschmutzungsrisiken | E133: 0.5 | F133: 0.5 | G133: 0 | H133: 0 | I133: 0 | J133: 1 | K133: 2
A134: Umwelt und Verkehrsrisiken | B134: Waldbrände | C134: Ereignisse, Mortalität, Morbidität | D134: Sommer in Deutschland | E134: 0 | F134: 0 | G134: 0 | H134: 1 | I134: 0 | J134: 1 | K134: 2

Sheet Dez18
A1: Risikoatlas-Risiko | B1: Risikokategorie | C1: mögliche Risiko-Endpunkte | D1: Erläuterung/Beispiel | E1: Gründe | F1: Recherche-Frage [Häufigkeitsschätzungen / Wahrscheinlichkeitsschätzungen für Deutschland / typisch westliches Land FÜR EIN JAHR) | G1: Zahlen Maria+Olga | H1: Kommentare | I1: Quellen für die Zahlen | J1: Zahlen Olga wenn Dopplung | K1: Kommentare2 | L1: Quellen für die Zahlen2 | M1: Spalte4
A2: Digitalisierung | B2: Algorithmen | C2: Armut, Verluste | D2: Digitaler Fussabdruck | E2: Ministry | F2: Wie viele Menschen haben Geld verloren, weil sie im Internet spuren hinterlassen haben? | G2: 96 Menschen | H2: 29% aus 332, S. 11 | I2: https://www.pwc.de/de/handel-und-konsumguter/assets/cyber-security-identitaetsdiebstahl-2016.pdf | J2: Durch Identitätsklau
A3: Digitalisierung | B3: Algorithmen | C3: Armut, Verluste | D3: Diskriminierung, social scoring | E3: Ministry | F3: Wie viele Menschen zahlen aufgrund personalisierter Preise zuviel?
F4: Wie viele Menschen durften nicht auf Rechnung zahlen, obwohl der Anbieter das anbietet?
A5: Digitalisierung | B5: Algorithmen | C5: Armut, Verluste | D5: Invasion eigener Geräte | E5: Ministry | F5: Von wie vielen Menschen wurde der Computer übernommen? | G5: 41% (allerdings nur Antworten auf Merkmal: Computer mit Viren infiziert) | H5: Zugangsdaten ausspioniert:22% | I5: https://de.statista.com/statistik/daten/studie/164419/umfrage/von-online-kriminalitaet-betroffene-internetnutzer-in-deutschland/
A6: Digitalisierung | B6: Algorithmen | C6: Armut, Verluste | D6: Recht an den eigenen Daten | E6: Ministry | F6: Wie viele Menschen wurden benachteiligt, weil ihre Daten von Firmen an Dritte weitergegeben wurden?
A7: Digitalisierung | B7: Algorithmen | C7: Armut, Verluste | D7: Urheberrecht im Internet, user generated content | E7: Ministry | F7: Wie viele Menschen haben Urheberrechte verletzt? | G7: 8085 Personen | H7: Kriminalstatistik 2017, Jahrbuch Band 4, S. 108 | I7: https://www.bka.de/DE/AktuelleInformationen/StatistikenLagebilder/PolizeilicheKriminalstatistik/PKS2017/pks2017_node.html | J7: https://irights.info/artikel/nach-der-reform-der-urheberrechts-fuer-bildung-und-wissenschaft-oer-bleiben-notwendig/29223
A8: Digitalisierung | B8: Social Scoring | C8: Armut, Verluste, Morbidität, Mortalität, Exklusion | D8: Kreditvergabe | E8: Ministry | F8: Wie viele Menschen haben zuviel für Ihren Kredit bezahlt, weil sie ihre SocialMedia-Konten öffnen mussten?
A9: Digitalisierung | B9: Datenschutz | C9: Auftreten | D9: elektronische Zahlungsoptionen (Privatsphäre, Verschlüsselung) | E9: Ministry | F9: Wie viele Menschen wurden beim elektronischen Bezahlen betrogen? | G9: 60 Menschen | H9: 6% aus 1000 Wo steht das? S.8 | I9: https://www.pwc.de/de/handel-und-konsumguter/assets/cyber-security-identitaetsdiebstahl-2016.pdf
A10: Digitalisierung | B10: Datenschutz | C10: Auftreten | D10: Email-Provider | E10: Ministry | F10: Von wie vielen Menschen wurde das Emailpostfach gehackt? | G10: 20 Menschen | H10: 2% aus 1000 Seite.8 *Sonstiges (Email gechackt) | I10: https://www.pwc.de/de/handel-und-konsumguter/assets/cyber-security-identitaetsdiebstahl-2016.pdf
A11: Digitalisierung | B11: Datensicherheitsprobleme | C11: Auftreten, wirtschaftliche Risiken | D11: Cyberkriminalität | E11: Ministry | F11: -
A12: Digitalisierung | B12: Überwachung durch Institutionen | C12: Ereignisse | D12: Emails | E12: Ministry | F12: Von wie vielen Menschen wurden Emails durch die Emailanbieter mitgelesen? | G12: 1 million users | H12: Third-party app developers can read the emails of millions of Gmail users, a report from The Wall Street Journal highlighted today. Gmail’s access settings allows data companies and app developers to see people’s emails and view private details, including recipient addresses, time stamps, and entire messages. | I12: https://www.theverge.com/2018/7/2/17527972/gmail-app-developers-full-email-access
A13: Digitalisierung | B13: Künstliche Intelligenz | C13: Ereignisse, Arbeitsplatzverluste, Mortalität | D13: Panoptikum | E13: Ministry | F13: -
A14: Investitionen, Altersvorsorge & Armut | B14: Jährliches Einkommen | C14: Armut, Morbidität, Mortalität | D14: Altersvorsorge, Altersarmut | E14: Ministry | F14: Wie viele Menschen kommen nicht ohne staatliche Unterstützung aus? | G14: Fast acht Millionen Menschen (9,7% der Bevölkerung) - Ende 2015 | H14: Hartz IV, Sozialhilfe, Zuschüsse zur Rente: In Deutschland sind acht Millionen Menschen auf Hilfe vom Staat angewiesen. | I14: https://www.zeit.de/gesellschaft/zeitgeschehen/2016-11/statistisches-bundesamt-deutschland-sozialhilfe-hartz-4-leistungen-empfaenger | J14: https://www.destatis.de/DE/PresseService/Presse/Pressemitteilungen/2016/11/PD16_419_228.html;jsessionid=037CF7281B2786FB324170D2432356C5.cae3
F15: Wie viele Menschen leben überwiegend von Kapitaleinnahmen?
A16: Investitionen, Altersvorsorge & Armut | B16: Grauer Kapitalmarkt | C16: Armut, Verluste | D16: Altersvorsorge, Altersarmut | E16: Ministry | F16: Wie viele Menschen haben Geld verloren, weil sie in Produkte, die zum grauen Kapitalmarkt gehören, investierten?
F17: Wie viele Menschen sind die die Armut abgerutscht/haben alles verloren, weil sie im Internet in Produkte investierten, die zum grauen Kapitalmarkt gehören? | G17: "Zur Anzahl und Höhe der Schadensfälle durch Kapitalan- lagen im Grauen Kapitalmarkt gibt es keine zuverlässigen Zahlen" | H17: Am Grauen Kapitalmarkt entstehen nach Angaben des Deutschen Anlegerschutzbundes (DASB) jedes Jahr Schäden in Höhe von 20 bis 30 Milliarden Euro. | I17: https://www.handelsblatt.com/finanzen/anlagestrategie/trends/grauer-kapitalmarkt-welchen-schaden-betrueger-anrichten/3525674.html
A18: Investitionen, Altersvorsorge & Armut | B18: Fonds | C18: Armut, Verluste | D18: Altersvorsorge, Altersarmut | E18: Ministry | F18: Wie viele Menschen haben Geld verloren, weil sie in Fonds investierten?
F19: Wie viele Menschen sind die die Armut abgerutscht/haben alles verloren, weil sie in Fonds investierten?
A20: Investitionen, Altersvorsorge & Armut | B20: Investitionsrisiken | C20: Armut, Verluste | D20: Altersvorsorge, Altersarmut | E20: Ministry | F20: Wie viele Menschen haben Geld verloren, weil sie im Internet investierten?
F21: Wie viele Menschen sind die die Armut abgerutscht/haben alles verloren, weil sie im Internet investierten?
A22: Investitionen, Altersvorsorge & Armut | B22: ETFs | C22: Armut, Verluste | D22: Altersvorsorge, Altersarmut | E22: Ministry | F22: Wie viele Menschen haben Geld verloren, weil sie in ETFs investierten?
F23: Wie viele Menschen sind die die Armut abgerutscht/haben alles verloren, weil sie in ETFs investierten?
A24: Investitionen, Altersvorsorge & Armut | B24: Mieten | C24: Armut, Verluste | D24: Mietpreise | E24: Ministry | F24: Wie viele Menschen mussten umziehen, weil sie sich die Miete nicht mehr leisten konnten? | G24: 1205 Menschen | H24: Demnach sind zwischen März 2012 und März 2013 allein aus Charlottenburg-Wilmersdorf 325 Menschen nach Spandau gezogen, insgesamt zogen 1545 Transferleistungsempfänger nach Spandau und 749 weg. Wie in Spandau kamen auch in Marzahn-Hellersdorf im selben Zeitraum knapp 800 neue Transferleistungsempfänger hinzu, während zentrale Bezirke wie Mitte mehr als 1100, Friedrichshain-Kreuzberg fast 900 Bedürftige verloren. | I24: https://www.tagesspiegel.de/berlin/steigende-mieten-haeuserkampf-in-berlin/8615676-all.html
F25: Bei wie vielen Menschen stiegen die Mieten schneller als Ihre Einnahmen? | I25: https://www.postbank.de/postbank/pr_presseinformation_2016_04_21_postbank_studie_2016_leben_in_der_stadt.html
A26: Investitionen, Altersvorsorge & Armut | B26: Staatsanleihen | C26: Armut, Verluste | D26: Altersvorsorge, Altersarmut | E26: Ministry | F26: Wie viele Menschen haben Geld verloren, weil sie in Staatsanleihen investierten?
F27: Wie viele Menschen sind die die Armut abgerutscht/haben alles verloren, weil sie in Staatsanleihen investierten?
A28: Investitionen, Altersvorsorge & Armut | B28: Investitionsrisiken | C28: Armut, Verluste | D28: Altersvorsorge, Altersarmut | E28: Ministry | F28: Wie viele Menschen wurden vom Berater betrogen?
F29: Wie viele Menschen sind die die Armut abgerutscht/haben alles verloren, weil sie vom Berater betrogen wurden?
A30: Investitionen, Altersvorsorge & Armut | B30: Investitionsrisiken | C30: Armut, Verluste | D30: Altersvorsorge, Altersarmut | E30: Ministry | F30: Wie vielen Menschen wurde vom Berater ein Produkt verkauft, welches nicht zu Ihnem Bedarf passt? | G30: 247 (von 358) | H30: "In 247 Fällen (in 69% der Fälle) der Stichprobe kamen die Berater zu dem Schluss, dass das Produkt zum Zeit- punkt des Vertragsabschlusses nicht zum Risikopro-fil des Verbrauchers passte." | I30: https://www.marktwaechter.de/sites/default/files/downloads/schadensfaelle-auf-dem-grauen-kapitalmarkt.pdf | J30: S. 19 Aber Achtung - Zur Anzahl und Höhe der Schadensfälle durch Kapitalan- lagen im Grauen Kapitalmarkt gibt es keine zuverlässigen Zahlen12. Es ist davon auszugehen, dass Problemfälle von Anlegern, die sich ratsuchend an Verbraucherzentralen wenden nur den Punkt auf der Spitze des Eisberges darstellen.
F31: Wie viele Menschen sind die die Armut abgerutscht/haben alles verloren, weil ihnen vom Berater ein Produkt verkauft wurde, was nicht zu ihrem Bedarf passte.
A32: Investitionen, Altersvorsorge & Armut | B32: Jährliches Sparvolumen | C32: Armut, Verluste, Morbidität, Mortalität | D32: Altersvorsorge, Altersarmut | E32: Ministry | F32: Wie viele Menschen haben inflationsbereinigte beim Sparen Geld verloren?
A33: Investitionen, Altersvorsorge & Armut | B33: Kredite | C33: Armut, Verluste, Morbidität, Mortalität, Exklusion | D33: Kreditvergabe | E33: Ministry | F33: Wie viele Menschen haben einen unnötig überteuerten Kredit aufgenommen?
A34: Investitionen, Altersvorsorge & Armut | B34: Lotterien | C34: Ereignisse, Verluste, Armut, Morbidität, Mortalität | D34: Gewinne | E34: Ministry | F34: Wie viele Menschen haben Geld verloren, weil sie Lotto spielen? | G34: 7188 Menschen | H34: Aklgemeine Glücksspiele S.107 n=11501 Dagegen schätzen im Jahr 2015 62,5 %, dass sie einen Verlust erlitten haben. Auch die hier angege- benen Beträge schwanken erheblich: Im Median betragen sie 50 Euro, IQB = 20 bis 150 €). 2013 betrug dieser Anteil 64,7 % (Median: 60 Euro, IQB = 20 bis 200 €). Bei 27,1 % ist die Bilanz im Jahr 2015 nach eigener Einschätzung ausgeglichen (2013: 24,7 %). | I34: https://www.berlin-suchtpraevention.de/wp-content/uploads/2016/10/2015_BZgA_Ergebnisbericht_Glcksspielsucht.pdf
F35: Wie viele Menschen sind die die Armut abgerutscht/haben alles verloren, weil sie Lotto spielen? | I35: https://www.berlin-suchtpraevention.de/wp-content/uploads/2016/10/2015_BZgA_Ergebnisbericht_Glcksspielsucht.pdf
A36: Investitionen, Altersvorsorge & Armut | B36: Glücksspiel | C36: Verluste, Armut, Morbidität, Mortalität | D36: Onlinepoker | E36: Ministry | F36: Wie viele Menschen haben Geld beim Onlinepoker verloren? | I36: https://www.berlin-suchtpraevention.de/wp-content/uploads/2016/10/2015_BZgA_Ergebnisbericht_Glcksspielsucht.pdf
F37: Wie viele Menschen sind die die Armut abgerutscht/haben alles verloren durch Onlinepoker? | I37: http://www.taz.de/!5170626/
A38: Investitionen, Altersvorsorge & Armut | B38: Glücksspiel | C38: Verluste, Armut, Morbidität, Mortalität | D38: allgemein | E38: Ministry | F38: Wie viele Menschen haben Geld bei Glücksspielen im Internet verloren?
F39: Wie viele Menschen sind die die Armut abgerutscht/haben alles verloren durch Glücksspiele im Internet? | I39: https://www.automatisch-verloren.de/de/gluecksspiel/zahlen-und-fakten-zu-gluecksspiel.html | J39: "weitere 0,82% (215.000 Personen) fallen in die Kategorie „pathologische Spieler und Spielerinnen“, bei ca. 16% dieser pathologischen Spieler*innen übersteigt der Schuldenstand einen Gesamtwert von 25.000 €
A40: Investitionen, Altersvorsorge & Armut | B40: Glücksspiel | C40: Verluste, Armut, Morbidität, Mortalität | D40: Smartphone | F40: Wie viele Menschen haben Geld durch das Spielen auf dem Smartphone verloren?
A41: Investitionen, Altersvorsorge & Armut | B41: Glücksspiel | D41: Smartphone | F41: Wie viele Menschen haben gegen ihren Wunsch/ohne ihr Wissen Verträge oder Käufe innerhalb von Apps getätigt?
A42: Investitionen, Altersvorsorge & Armut | B42: Immobilien | C42: Verluste, Armut, Morbidität, Mortalität | D42: Altersvorsorge, Altersarmut | E42: Ministry | F42: Wie viele Menschen haben Geld verloren, weil sie Immobilien erwarben?
F43: Wie viele Menschen sind die die Armut abgerutscht/haben alles verloren, weil sie Immobilien erwarben?
A44: Investitionen, Altersvorsorge & Armut | B44: Immobilien | C44: Verluste, Armut, Morbidität, Mortalität | D44: Altersvorsorge, Altersarmut | E44: Ministry | F44: Wie viele Menschen haben Geld verloren, weil sie bauen oder sanieren?
F45: Wie viele Menschen sind die die Armut abgerutscht/haben alles verloren, weil sie bauen oder sanieren?
A46: Kaufen, Verträge, und Schulden | B46: Schulden | C46: Armut, Morbidität, Mortalität, Verluste | D46: Schuldenfallen | E46: Ministry | F46: Wie viele Menschen sind in eine Schuldenfalle geraten?
A47: Kaufen, Verträge, und Schulden | B47: Schulden | C47: Armut, Morbidität, Mortalität, Verluste | D47: Privatinsolvenz | F47: Wie viele Menschen meldeten Privatinsolvenz an? | G47: 94079 in 2017 in Deutschland | I47: https://de.statista.com/statistik/daten/studie/150565/umfrage/privatinsolvenzen-in-deutschland-seit-2000/
A48: Kaufen, Verträge, und Schulden | B48: Schulden | C48: Armut, Morbidität, Mortalität, Verluste | D48: Rechnungen | F48: Wie viele Menschen konnten eine Rechnung endgültig nicht begleichen? | I48: https://www.creditreform.de/fileadmin/user_upload/crefo/download_de/news_termine/wirtschaftsforschung/schuldneratlas/2017_Analyse_SchuldnerAtlas.pdf
A49: Kaufen, Verträge, und Schulden | B49: Schulden | C49: Armut, Morbidität, Mortalität, Verluste | D49: Kredit | F49: Wie viele Menschen konnten ihre Kreditzahlungen nicht mehr leisten? | I49: https://www.creditreform.de/fileadmin/user_upload/crefo/download_de/news_termine/wirtschaftsforschung/schuldneratlas/2017_Analyse_SchuldnerAtlas.pdf
A50: Kaufen, Verträge, und Schulden | B50: Algorithmen | C50: Armut, Verluste | D50: Kostenfallen im Internet | E50: Ministry | F50: Wie viele Menschen haben gegen ihren Wunsch/ohne ihr Wissen, im Internet viel mehr zahlen müssen als vereinbart war?
A51: Kaufen, Verträge, und Schulden | B51: Algorithmen | C51: Armut, Verluste | D51: Kostenfalle Echte Welt | F51: Wie viele Menschen haben gegen ihren Wunsch/ohne ihr Wissen, außerhalb des Internets viel mehr zahlen müssen als vereinbart war?
A52: Kaufen, Verträge, und Schulden | B52: Algorithmen | C52: Armut, Verluste | D52: Systembindung | E52: Ministry | F52: Wie viele Menschen haben Folgeprodukte von einem Hersteller gekauft, weil Alternativen inkompatibel mit dem vorhanden waren (locked-in)?
A53: Kaufen, Verträge, und Schulden | B53: Algorithmen | C53: Armut, Verluste | D53: Teure Kundenhotlines | E53: Ministry | F53: Wie viele Menschen haben eine Kundenhotline angerufen?
A54: Kaufen, Verträge, und Schulden | B54: Algorithmen | C54: Armut, Verluste | D54: Teure Kundenhotlines | F54: Wie viele Menschen haben eine Kundenhotline zum Ortstarif angerufen?
A55: Kaufen, Verträge, und Schulden | B55: Algorithmen | C55: Armut, Verluste | D55: Teure Kundenhotlines | F55: Wie viele Menschen haben Kundenhotline zum Spezialtarif angerufen?
A56: Kaufen, Verträge, und Schulden | B56: Algorithmen | C56: Armut, Verluste | D56: Teure Kundenhotlines | F56: Wie viele Menschen haben mehr als 15 Minuten in einer Hotline gewartet? | G56: zwischen 46 und 84 Anrufer | H56: Allerdings: nur von M-Budget (Anbieter swisscom) und nur 2 Testanrufe gemacht | I56: https://www.blick.ch/news/wirtschaft/m-budget-spart-bei-handy-hotline-50-minuten-in-der-warteschleife-id5252385.html
A57: Kaufen, Verträge, und Schulden | B57: Algorithmen | C57: Armut, Verluste | D57: Teure Kundenhotlines | F57: Wie viele Menschen haben mehr als 30 Minuten in einer Hotline gewartet? | G57: 46 | H57: Allerdings: nur von M-Budget (Anbieter swisscom) und nur 2 Testanrufe gemacht | I57: https://www.blick.ch/news/wirtschaft/m-budget-spart-bei-handy-hotline-50-minuten-in-der-warteschleife-id5252385.html
A58: Kaufen, Verträge, und Schulden | B58: Konsum | C58: Armut, Verluste, Morbidität, Mortalität | D58: Ausfälle und Verspätungen, Schlichtungen | E58: Ministry | F58: Wie viele Menschen hatten eine Busverspätung über 30 Minuten?
A59: Kaufen, Verträge, und Schulden | B59: Konsum | C59: Armut, Verluste, Morbidität, Mortalität | D59: Ausfälle und Verspätungen, Schlichtungen | E59: Ministry | F59: Wie viele Menschen hatten eine Busverspätung über 1 Stunde?
A60: Kaufen, Verträge, und Schulden | B60: Konsum | C60: Armut, Verluste, Morbidität, Mortalität | D60: Ausfälle und Verspätungen, Schlichtungen | F60: Wie viele Menschen hatten eine Bahnverspätung über 30 Minuten? | G60: 30,57 mio | H60: insgesamt DB Reisende Fernverkehr in Mio 142,2 (2017) Punktlichkeit Fernverkehr 78,5%, d.h Verspätung 21,5% (2017) | I60: https://www.deutschebahn.com/resource/blob/1774446/455c0e001500b567cc0010d53e52cccf/Daten---Fakten-2017-data.pdf https://www.heise.de/tr/artikel/Statistik-der-Woche-Verspaetungen-der-Deutschen-Bahn-4179218.html
A61: Kaufen, Verträge, und Schulden | B61: Konsum | C61: Armut, Verluste, Morbidität, Mortalität | D61: Ausfälle und Verspätungen, Schlichtungen | F61: Wie viele Menschen hatten eine Bahnverspätung über 1 Stunde?
A62: Kaufen, Verträge, und Schulden | B62: Konsum | C62: Armut, Verluste, Morbidität, Mortalität | D62: Ausfälle und Verspätungen, Schlichtungen | F62: Wie viele Menschen hatten eine Flugverspätung über 1 Stunde? | G62: Millionen | I62: https://karrierebibel.de/verspaeteter-flug-entschaedigung/
A63: Kaufen, Verträge, und Schulden | B63: Konsum | C63: Armut, Verluste, Morbidität, Mortalität | D63: Ausfälle und Verspätungen, Schlichtungen | F63: Wie viele Menschen hatten eine Flugverspätung über 2 Stunden? | G63: 160 | H63: in Deutschland, Berlin. Oder kann ich meine Reise womöglich gar nicht erst antreten wie neulich die 160 Passagiere in Berlin-Tegel, die 16 Stunden auf ihren Flug nach Mallorca warteten – um dann zu erfahren, dass er gestrichen wurde? Chaos schon seit Monaten Die ersten Fluggäste hatten sich am 10. Juli bereits um vier Uhr in der Früh in Tegel eingefunden, abgesagt wurde der Flug von Laudamotion erst am Abend. Das Flugzeug konnte aus technischen Gründen nicht von Mallorca aus starten, fehlte also in Berlin. Ein Ersatzjet kam so spät in Tegel an, dass dessen Crew nicht mehr weiterfliegen durfte, weil sie sonst die vorgeschriebene Betriebszeit überschritten hätte.mit dazu kopieren hier in den Kommentar, ich kann den Artikel zB nicht öffnen.. | I63: https://www.handelsblatt.com/unternehmen/handel-konsumgueter/flugverspaetungen-chaos-am-himmel-darum-werden-fluggesellschaften-immer-unpuenktlicher/22809308.html?ticket=ST-149805-oPIhYYZlNtRgH9RW07cp-ap4
A64: Kaufen, Verträge, und Schulden | B64: Konsum | C64: Armut, Verluste, Morbidität, Mortalität | D64: Beschädigtes oder verlorenes Gepäck | E64: Ministry | F64: Wie viele Menschen haben ihr Gepäck bei einem Flug verloren? | G64: 8,06 Personen / Tausend (2016) - in Europa | H64: 8,06 Gepäckstücke verschwinden in Europa pro 1000 Passagiere, S. 21 | I64: http://comms.sita.aero/rs/089-zse-857/images/baggage-report-2017.pdf | J64: Zahlen Olga: 26 mio | K64: Weltweit, 2014 | L64: https://www.welt.de/reise/article151707425/An-diesem-Flughafen-geht-Gepaeck-niemals-verloren.html
A65: Kaufen, Verträge, und Schulden | B65: Konsum | C65: Armut, Verluste, Morbidität, Mortalität | D65: Beschädigtes oder verlorenes Gepäck | F65: Bei wie vielen Menschen wurde das Gepäck bei einem Flug beschädigt? | G65: 8,06 Personen / Tausend (2016) - in Europa | H65: mishandled bags - schließt verschwinden und beschädigen ein?, S. 21 | I65: http://comms.sita.aero/rs/089-zse-857/images/baggage-report-2017.pdf | J65: Zahlen Olga: 610 | K65: (61% aus 1000) Infografika | L65: https://www.welt.de/reise/article139000168/Auf-Fluegen-geht-wieder-mehr-Gepaeck-verloren.html
A66: Kaufen, Verträge, und Schulden | B66: Konsum | C66: Armut, Verluste, Morbidität, Mortalität | D66: Haustürgeschäfte | E66: Ministry | F66: Wie viele Menschen wurden durch einen Vertreter betrogen?
A67: Kaufen, Verträge, und Schulden | B67: Konsum | C67: Armut, Verluste, Morbidität, Mortalität | D67: Inkasso: Unseriöse Geschäftspraktiken | E67: Ministry | F67: Wie viele Menschen erhielten unberechtigte Inkassoforderungen? | G67: 793 Fälle von 1413 Fällen | H67: 56%, 2015, Deutschland | I67: https://www.verbraucherzentrale.de/sites/default/files/migration_files/media237951A.pdf
A68: Kaufen, Verträge, und Schulden | B68: Konsum | C68: Armut, Verluste, Morbidität, Mortalität | D68: Kreditkartenschulden | E68: Ministry | F68: Wie viele Menschen hatten Kreditkartenschulden? | G68: 7% in Deutschland | H68: Befragte: 12.743 Personen in 12 Europäischen Ländern + Türkei | I68: https://www.google.com/url?sa=t&rct=j&q=&esrc=s&source=web&cd=2&ved=2ahUKEwj59o6a3pffAhUQp4sKHTghB0AQFjABegQICBAC&url=https%3A%2F%2Fwww.presseportal.de%2Fdownload%2Fdocument%2F312756-umfrageergebnisse-dispo-nutzung-2015.pdf&usg=AOvVaw29t51ca1TN77Eh8-BRGgkP | J68: Zahlen Olga: 6,8 Millionen | K68: "Nach dem neuen Schuldneratlas gelten zum Stichtag 1. Oktober 2016 mehr als 6,8 Millionen Bürger über 18 Jahre in Deutschland als Personen, die „nachhaltige Zahlungsstörungen“ aufweisen." | L68: https://www.welt.de/finanzen/article159415757/So-verschuldet-sind-die-Deutschen.html
A69: Kaufen, Verträge, und Schulden | B69: Konsum | C69: Armut, Verluste, Morbidität, Mortalität | D69: Kreditkartenschulden | F69: Wie viele Menschen konnten ihre Kreditkartenschulden nicht begleichen?
A70: Kaufen, Verträge, und Schulden | B70: Konsum | C70: Armut, Verluste, Morbidität, Mortalität | D70: Mängel bei Pauschalreisen | E70: Ministry | F70: Wie viele Menschen erlebten Mängel bei Pauschalreisen=
A71: Kaufen, Verträge, und Schulden | B71: Konsum | C71: Armut, Verluste, Morbidität, Mortalität | D71: Mängel/Gewährleistung, geplante Obsoleszens | E71: Ministry | F71: Wie viele Menschen erhoben einen Gewährleistungsanspruch innerhalb des ersten Jahres?
A72: Kaufen, Verträge, und Schulden | B72: Konsum | C72: Armut, Verluste, Morbidität, Mortalität | D72: Mängel/Gewährleistung, geplante Obsoleszens | F72: Wie viele Menschen erhoben einen Gewährleistungsanspruch innerhalb der zwei Jahre?
A73: Kaufen, Verträge, und Schulden | B73: Konsum | C73: Armut, Verluste, Morbidität, Mortalität | D73: Mängel/Gewährleistung, geplante Obsoleszens | F73: Wie viele Menschen erlebten, dass eine gewährleistungspflichtige Ware kurz nach 2 Jahren kaputt ging?
A74: Kaufen, Verträge, und Schulden | B74: Konsum | C74: Armut, Verluste, Morbidität, Mortalität | D74: Unerlaubte Telefonwerbung | E74: Ministry | F74: Wie viele Menschen wurden mit Telefonwerbung belästigt? | G74: 52.000 in 2017 (bis Ende Nov 2017) | H74: Allerdings lediglich eingegangene Beschwerden, Dunkelziffer vermutlich höher | I74: https://www.bundesnetzagentur.de/SharedDocs/Pressemitteilungen/DE/2017/28122017_Telekommunikation.html
A75: Kaufen, Verträge, und Schulden | B75: Konsum | C75: Armut, Verluste, Morbidität, Mortalität | D75: Unerlaubte Telefonwerbung | F75: Wie viele Menschen wurden durch telefonische Angebote betrogen?
A76: Kaufen, Verträge, und Schulden | B76: Konsum | C76: Armut, Verluste, Morbidität, Mortalität | D76: Ungerechtfertigte Rechnungen | E76: Ministry | F76: Wie vielen Menschen wurden ungerechtfertige Rechnungen zugestellt, für Waren, die sie nie gekauft hatten? | G76: 89,64 Personen | H76: 27% aus 332 , S. 12 | I76: https://www.pwc.de/de/handel-und-konsumguter/assets/cyber-security-identitaetsdiebstahl-2016.pdf
A77: Kaufen, Verträge, und Schulden | B77: Konsum | C77: Armut, Verluste, Morbidität, Mortalität | D77: online-shopping | E77: Ministry | F77: Wie viele Menschen wurden in Onlineshops betrogen (Ware/Geld weg)? | G77: 4,4 Millionen | I77: https://www.daserste.de/information/ratgeber-service/kriminalreport/fake-shops-102.html
A78: Kaufen, Verträge, und Schulden | B78: Konsum | C78: Armut, Verluste, Morbidität, Mortalität | D78: online-shopping | F78: Wie viele Menschen wurden bei Online-Kleinanzeigenportalen betrogen (Ware/Geld weg)?
A79: Kaufen, Verträge, und Schulden | B79: Konsum | C79: Armut, Verluste, Morbidität, Mortalität | D79: online-shopping | F79: Wie viele Menschen wurden bei Online-Auktionshäusern betrogen (Ware/Geld weg)?
A80: Kaufen, Verträge, und Schulden | B80: Konsum | C80: Auftreten, wirtschaftliche Verluste | D80: Fallbezogene Erfolgsquote bei Verbraucherklagen (z.B. bei Kauf & Reklamation) | E80: ist für das Ministerium vermutlich wichtig | F80: Wie viele Menschen waren mit Verbraucherklagen erfolglos?
A81: Kaufen, Verträge, und Schulden | B81: Konsum | C81: Auftreten, wirtschaftliche Verluste | D81: Fallbezogene Erfolgsquote bei Verbraucherklagen (z.B. bei Kauf & Reklamation) | F81: Wie viele Verbraucher hatten einen Klageanspruch?
A82: Kriminalitätsrisiken / Cybercrime | B82: Kriminalität | C82: Kriminalitätsfolgen | D82: Cyberkriminalität: Identitätsdiebstahl | F82: Wie viele Menschen erlebten Identitätsdiebstahl? | G82: 330 Menschen | H82: 33% aus 1000, S. 8 | I82: https://www.pwc.de/de/handel-und-konsumguter/assets/cyber-security-identitaetsdiebstahl-2016.pdf
A83: Kriminalitätsrisiken / Cybercrime | B83: Kriminalität | C83: Kriminalitätsfolgen | D83: Cyberkriminalität: Missbrauch intimer Daten | F83: Wie viele Menschen erlebten, wie private Daten an die Öffentlichkeit gebracht wurden?
A84: Kriminalitätsrisiken / Cybercrime | B84: Kriminalität | C84: Opfer, Mortalität, Kriminalitätsfolgen, Verletzungen | D84: Cyberkriminalität: Onlinebanking | E84: die Deutschen sind ja bekanntermaßen extrem konservativ, was diese Dinge angeht und es wird ja bereits angezweifelt, ob sich die Einführung von smartphone-Zahlungsmethoden hier lohnt. Aber die werden kommen. Sprich: wird relevant werden. Ministerium widmet sich dem Thema auch unter der Überschrift ‘Sicherheit im Internet’. | F84: Wie viele Menschen erlebten einen Schaden durch das Eindringen in ihre Bankaccounts beim Onlinebanking? | G84: 190,19 Personen (2014) | H84: 19% von 1001 Personen ("Ist Ihnen schon einmal ein finanzieller Schaden im Zusammenhang mit Online-Banking entstanden?" - Zusammengerechnete Antwortmöglichkeiten: Schadsoftware und finanzieller Schaden + finanzielle Schadensfälle im Umfeld", S. 12 | I84: https://initiatived21.de/app/uploads/2017/01/d21_fiducia_studie_onlinebanking_2014.pdf | J84: Zahlen Olga: 4500 | K84: Dem Bundeskriminalamt wurden 2015 rund 4500 Fälle von Phishing im Finanzsektor gemeldet. Der Schaden: 18 Millionen Euro, im Schnitt wurde jeder betroffene Kunde um 4000 Euro gebracht. | L84: https://www.wiwo.de/finanzen/geldanlage/online-banking-so-unsicher-ist-ihr-konto/19367126.html
A85: Kriminalitätsrisiken / Cybercrime | B85: Kriminalität | C85: Opfer, Mortalität, Kriminalitätsfolgen, Verletzungen | D85: Kreditkartenbetrug auf Auslandsreise | E85: scheint dem Ministerium wichtig zu sein und dazu gibt es mit Sicherheit Datensätze | F85: Wie viele Menschen wurden bei der Kreditkartenzahlung im Ausland betrogen?
A86: Kriminalitätsrisiken / Cybercrime | B86: Kriminalität | C86: Opfer, Mortalität, Kriminalitätsfolgen, Verletzungen | D86: Kreditkartenbetrug auf Auslandsreise | F86: Wie viele Menschen erlitten einen Schaden beim Verlust ihrer Kreditkarte? | G86: 60 Menschen | H86: 6% von 1000, S. 8 ("ja, meine Kreditkarten-Daten wurden gestohlen und missbraucht")
A87: Kriminalitätsrisiken / Cybercrime | B87: Kriminalität | C87: Opfer, Mortalität, Kriminalitätsfolgen, Verletzungen | D87: Kreditkartenbetrug auf Auslandsreise | F87: Wie viele Menschen erlitten einen Schaden beim Verlust ihrer EC-Karte?
A88: Kriminalitätsrisiken / Cybercrime | B88: Kriminalität | C88: Opfer, Mortalität, Kriminalitätsfolgen, Verletzungen | D88: Kreditkartenbetrug auf Auslandsreise | F88: Wie viele Menschen erlitten einen Schaden beim Verlust ihres Smartphones [abgesehen vom Gerätewert/Simkartenwert]
A89: Nachhaltiger Konsum | B89: Konsum | C89: Armut, Verluste, Morbidität, Mortalität | D89: Nachhaltiger Konsum | E89: Ministry | F89: Wie viele Menschen haben nachhaltige Produkte gekauft? | G89: 350 Personen | H89: 35% aus 1000 Befragten, Juni 2013 | I89: https://de.statista.com/statistik/daten/studie/262679/umfrage/umfrage-zum-kauf-nachhaltiger-produkte/
A90: neue Technologien | B90: Genetisches Engineering | C90: Ereignisse, wirtschaftliche Risiken, Morbidität | D90: genetisch modifizierte Lebensmittel | E90: Ministry | F90: Wie viele Menschen kauften genetisch modifizierte Lebensmittel [z.B. aus dem Ausland]? | G90: 31 Prozent der Befragten sagen, dass sie kein oder eher kein Problem damit hätten, gen- technisch veränderte Lebensmittel zu essen. | H90: Anzahl Befragte nicht angegeben | I90: https://www.bmu.de/fileadmin/Daten_BMU/Pools/Broschueren/naturbewusstseinsstudie_2017_de_bf.pdf | J90: Zahlen Olga: 141 | K90: 7% aus 2050 Befragten haben kein Problem damit, gentechnisch veränderte Lebensmittel zu essen | L90: https://www.keine-gentechnik.de/dossiers/meinungsumfragen/#gsc.tab=0
A91: Versicherungen | B91: Versicherungen | C91: Auftreten, wirtschaftliche Verluste | D91: Nutzung Haftpflichtversicherung | E91: Ministry | F91: Wie viele Menschen reklamierten einen Schadensfall bei ihrer Privathaftpflichtversicherung?
A92: Versicherungen | B92: Versicherungen | C92: Verluste, Armut, Morbidität, Mortalität | D92: Versicherungstypen | E92: Ministry | F92: Wie viele Menschen schlossen eine Restschuldversicherung zu ihrem Kredit ab?
A93: Versicherungen | B93: Versicherungen | C93: Verluste, Armut, Morbidität, Mortalität | D93: Versicherungstypen | F93: Wie viele Menschen reklamierten einen Schadensfall bei ihrer Hausratversicherung?
A94: Versicherungen | B94: Versicherungen | C94: Verluste, Armut, Morbidität, Mortalität | D94: Versicherungstypen | F94: Wie viele Menschen nahmen ihre Rechtsschutzversicherung in Anspruch?
A95: Versicherungen | B95: Versicherungen | C95: Verluste, Armut, Morbidität, Mortalität | D95: Versicherungstypen | F95: Wie viele Menschen nahmen ihre private Unfallversicherung in Anspruch?
A96: Versicherungen | B96: Versicherungen | C96: Verluste, Armut, Morbidität, Mortalität | D96: Versicherungstypen | F96: Wie viele Menschen nahmen ihre Schuldbriefversicherung in Anspruch?
A97: Versicherungen | B97: Versicherungen | C97: Verluste, Armut, Morbidität, Mortalität | D97: Versicherungstypen | F97: Wie viele Menschen nahme ihre Kft-Vollkasko-Versicherung in Anspruch?
A98: Versicherungen | B98: Versicherungen | C98: Verluste, Armut, Morbidität, Mortalität | D98: Versicherungstypen | F98: Wie viele Menschen verloren Geld mit ihrer Kapitallebensversicherung?
A99: Versicherungen | B99: Versicherungen | C99: Verluste, Armut, Morbidität, Mortalität | D99: Versicherungstypen | F99: Wie viele Menschen nahme ihre Kft-Haftpflichtversicherung in Anspruch?
D107: Maria
D108: Olga

Sheet Jan19
A1: Risikoatlas-Risiko | B1: Spalte1 | C1: Label | D1: Spalte2 | E1: Probability | F1: Out of 100,000 | G1: Out of 100,0009 | H1: Out of 100,0008 | I1: Out of 100,0007 | J1: Out of 100,0006 | K1: Out of 100,0005 | L1: Out of 100,0004 | M1: Out of 100,0003 | N1: Out of 100,0002 | O1: Out of 100,001 | P1: Jahr | Q1: Evidenzqualität | R1: Unsicherheit | S1: Quellen für die Zahlen | T1: Zahlen Maria(Blau)+Olga(Gelb) | U1: Kommentare | V1: Zahlen Olga wenn Dopplung | W1: Kommentare2 | X1: Quellen für die Zahlen2 | Y1: Spalte4
A2: Topschlüssel | B2: Mutterschlüssel | C2: Betroffene… | D2: SOC code | E2: probability | G2: Fingerfertigkeit | H2: Handfertigkeit | I2: Originalität | J2: Künstlerische Begabung | K2: Soziale Wahrnehmungsvermögen | L2: Verhandlungsfähigkeit | M2: Überzeugungsfähigkeit | N2: Anderen assistieren und fürsorgen
A3: Investitionen, Altersvorsorge & Armut | C3: Glücksspiele unterm Strich ohne Gewinn | E3: =F3/100000 -> 0.9 | F3: 90000 | G3: 1 | H3: 1 | I3: 1 | J3: 1 | K3: 1 | L3: 1 | M3: 1 | N3: 1 | O3: Spieler | P3: 2015 | Q3: Sehr niedrig | R3: Alter der Daten | S3: https://www.berlin-suchtpraevention.de/wp-content/uploads/2016/10/2015_BZgA_Ergebnisbericht_Glcksspielsucht.pdf
A4: Investitionen, Altersvorsorge & Armut | C4: Zu riskant investiert | E4: 0.68994 | F4: 68994 | G4: 1 | H4: 1 | I4: 1 | J4: 1 | K4: 1 | L4: 1 | M4: 1 | N4: 1 | O4: Grauer-Kapitalmarkt-Investoren | P4: 2017 | Q4: Sehr niedrig | R4: Selbstselektion, subjektive Ratings | S4: https://www.marktwaechter.de/sites/default/files/downloads/schadensfaelle-auf-dem-grauen-kapitalmarkt.pdf | T4: 247 (von 358) | U4: "In 247 Fällen (in 69% der Fälle) der Stichprobe kamen die Berater zu dem Schluss, dass das Produkt zum Zeit- punkt des Vertragsabschlusses nicht zum Risikopro-fil des Verbrauchers passte." | V4: https://www.marktwaechter.de/sites/default/files/downloads/schadensfaelle-auf-dem-grauen-kapitalmarkt.pdf
A5: Kaufen, Verträge, und Schulden | C5: Anruf zum Ortstarif | E5: 0.645 | F5: =0.645*100000 -> 64500 | G5: 1 | H5: 1 | I5: 1 | J5: 1 | K5: 1 | L5: 1 | M5: 1 | N5: 1 | O5: Serviceanrufe | P5: 2017 | Q5: Sehr niedrig | R5: Niedrige externe Validität | S5: VATM_TK-Marktstudie-2018_091018_f
A6: Digitalisierung | C6: Opfer von Cyberkriminalität | E6: 0.4425 | F6: =(38000+39000+2*50000)/4 -> 44250 | G6: 1 | H6: 1 | I6: 1 | J6: 1 | K6: 1 | L6: 1 | M6: 1 | N6: 1 | O6: erwachsene Internetnutzer | P6: 2018 | Q6: Niedrig | R6: Niedrige Validität | S6: http://now.symassets.com/content/dam/norton/global/pdfs/norton_cybersecurity_insights/DE_NCSIR_2017.pdf | T6: 38% Norton, 39% Schufa, beides für 2017 - gleichgewichtet; Bitkom 2019 hat Zahlen für 2018, doppelt gewichtet | U6: einschließlich Virenbefall! | V6: Schufa-Report 2018
A7: Kaufen, Verträge, und Schulden | C7: Haben Schulden | E7: 0.4275 | F7: =17.271/40.4*100000 -> 42750 | G7: 1 | H7: 1 | I7: 1 | J7: 1 | K7: 1 | L7: 1 | M7: 1 | N7: 1 | O7: Haushalte | P7: 2013 | Q7: Niedrig | R7: Alter der Daten | S7: https://www.destatis.de/DE/Publikationen/Thematisch/EinkommenKonsumLebensbedingungen/Ueberschuldung/EVS_GeldImmobilienvermoegenSchulden2152602139004.pdf?__blob=publicationFile
A8: Haushalt | C8: Tauschen Küchenschwamm zu selten aus | E8: 0.39 | F8: 39000 | G8: 1 | H8: 1 | I8: 1 | J8: 1 | K8: 1 | L8: 1 | M8: 1 | N8: 1 | O8: Verbraucher | P8: 2013 | Q8: Sehr niedrig | R8: Niedrige externe Validität | S8: https://www.ages.at/fileadmin/AGES2015/Themen/Lebensmittel_Dateien/Lebensmittelsicherheit_und_Hygiene_im_Privathaushalt_13_12_2013.pdf
A9: Digitalisierung | C9: Erleben, dass Produkt beim Einzelhändler im Internet ständig im Preis schwankt | E9: 0.348 | F9: 34800 | G9: 1 | H9: 1 | I9: 1 | J9: 1 | K9: 1 | L9: 1 | M9: 1 | N9: 1 | O9: Internetnutzer | P9: 2017 | Q9: Niedrig | R9: Niedrige Validität | S9: https://wiwi.hs-duesseldorf.de/personen/nikola.ziehe/Documents/Kraemer%20Kalka%20Ziehe%20-%20Personalisiertes%20und%20dynamisches%20Pricing%20aus%20Einzelhandels-%20und%20Verbrauchersicht%20261110F.pdf | T9: 34.8% der Stichprobe von Geschäften im Online-Einzelhandel mit mehr als 4 Preisänderungen über 3 Monaten 2016-2017.
A10: Digitalisierung | C10: Erleben, dass Produkt beim Einzelhändler ständig im Preis schwankt | E10: 0.333 | F10: 33300 | G10: 1 | H10: 1 | I10: 1 | J10: 1 | K10: 1 | L10: 1 | M10: 1 | N10: 1 | O10: Internetnutzer | P10: 2017 | Q10: Sehr niedrig | R10: Mangel an Evidenz | S10: https://wiwi.hs-duesseldorf.de/personen/nikola.ziehe/Documents/Kraemer%20Kalka%20Ziehe%20-%20Personalisiertes%20und%20dynamisches%20Pricing%20aus%20Einzelhandels-%20und%20Verbrauchersicht%20261110F.pdf | T10: 33,3% der Einzelhändler berichten dynamische Preisbildung bzw. individuelle Preisdiffernzierung einzusetzen | U10: 33% der stationären Einzelhandel Preismanagers setzen auf Dynamisch Pricing 2016
A11: Investitionen, Altersvorsorge & Armut | C11: Verlustreiche Restschuldversicherung | E11: 0.32 | F11: 32000 | G11: 1 | H11: 1 | I11: 1 | J11: 1 | K11: 1 | L11: 1 | M11: 1 | N11: 1 | O11: Ratenkreditnutzer | P11: 2018 | Q11: Niedrig | R11: Stichprobe | S11: https://www.bfach.de/media/file/24871.Marktstudie_2018_Konsum-Kfz-Finanzierung_BFACH.pdf
A12: Kaufen, Verträge, und Schulden | C12: Kostenloser Anruf | E12: 0.284 | F12: =0.284*100000 -> 28400 | G12: 1 | H12: 1 | I12: 1 | J12: 1 | K12: 1 | L12: 1 | M12: 1 | N12: 1 | O12: Serviceanrufen | P12: 2017 | Q12: Sehr niedrig | R12: Niedrige externe Validität | S12: VATM_TK-Marktstudie-2018_091018_f
A13: Investitionen, Altersvorsorge & Armut | C13: Illegale Internet-Casinospiele problematisch/krankhaft spielen | E13: 0.269 | F13: =0.269*100000 -> 26900 | G13: 1 | H13: 1 | I13: 1 | J13: 1 | K13: 1 | L13: 1 | M13: 1 | N13: 1 | O13: Spieler | P13: 2017 | Q13: Niedrig | R13: Dunkelziffer | S13: Zusammenfassung-der-BZgA-Studie-Glücksspielverhalten-und-Glücksspielsucht-in-Deutschland.-Ergebnisse-des-Surveys-2017-und-Trends
A14: Digitalisierung | C14: Offline verbal angegriffen / schwer beleidigt worden | E14: 0.25 | F14: 25000 | G14: 1 | H14: 1 | I14: 1 | J14: 1 | K14: 1 | L14: 1 | M14: 1 | N14: 1 | O14: erwachsene Internetnutzer | P14: 2018 | Q14: Sehr niedrig | R14: Sehr niedrige Validität | S14: https://www.bitkom.org/Presse/Presseinformation/Jeder-zweite-Internetnutzer-von-Cyberkriminalitaet-betroffen
A15: Digitalisierung | C15: Erleben, dass Daten gegen den eigenen Willen an Dritte weitergeben werden | E15: 0.23 | F15: 23000 | G15: 1 | H15: 1 | I15: 1 | J15: 1 | K15: 1 | L15: 1 | M15: 1 | N15: 1 | O15: erwachsene Internetnutzer | P15: 2017 | Q15: Sehr niedrig | R15: Sehr niedrige Validität | S15: https://de.reuters.com/article/deutschland-hacker-umfrage-idDEKCN1P3123
A16: Kaufen, Verträge, und Schulden | C16: Verspätung über 6 Minuten im Fernverkehr | E16: 0.225 | F16: 22500 | G16: 1 | H16: 1 | I16: 1 | J16: 1 | K16: 1 | L16: 1 | M16: 1 | N16: 1 | O16: Bahnfahrer | P16: 2018 | Q16: Moderat | R16: Verzerrungsrisiko | S16: https://www.zugreiseblog.de/bahn-puenktlichkeit-statistik/
A17: Digitalisierung | C17: Persönliche digitale Daten gestohlen | E17: 0.2167583333 | F17: =((0.43*44250)+23000*2)/3 -> 21675.83333 | G17: 1 | H17: 1 | I17: 1 | J17: 1 | K17: 1 | L17: 1 | M17: 1 | N17: 1 | O17: erwachsene Internetnutzer | P17: 2018 | Q17: Niedrig | R17: Niedrige Validität | S17: http://now.symassets.com/content/dam/norton/global/pdfs/norton_cybersecurity_insights/DE_NCSIR_2017.pdf | T17: 2018: 23% lt. Bitkom, doppelt gegenüber 2017 gewichtet | U17: hängt von den 44,25% von Norton usw. ab | V17: https://www.bitkom.org/Presse/Presseinformation/Jeder-zweite-Internetnutzer-von-Cyberkriminalitaet-betroffen
A18: Investitionen, Altersvorsorge & Armut | C18: Bingolotterie problematisch/krankhaft spielen | E18: 0.186 | F18: =0.186*100000 -> 18600 | G18: 1 | H18: 1 | I18: 1 | J18: 1 | K18: 1 | L18: 1 | M18: 1 | N18: 1 | O18: Spieler | P18: 2017 | Q18: Niedrig | R18: Dunkelziffer | S18: Zusammenfassung-der-BZgA-Studie-Glücksspielverhalten-und-Glücksspielsucht-in-Deutschland.-Ergebnisse-des-Surveys-2017-und-Trends
A19: Versicherungen | C19: Leistungsfall der Rechtsschutzversicherung | E19: 0.18523 | F19: 18523 | G19: 1 | H19: 1 | I19: 1 | J19: 1 | K19: 1 | L19: 1 | M19: 1 | N19: 1 | O19: Versicherungsverträge | P19: 2018 | Q19: Moderat | R19: Verzerrungsrisiko | S19: Statistisches Jahrbuch der Versicherungswirtschaft | U19: Leistungen im Verhältnis zu den Verträgen
A20: Digitalisierung | C20: Erleben, dass ein Virus o.ä. das eigene Gerät kompromittiert | E20: 0.181425 | F20: =0.41*44250 -> 18142.5 | G20: 1 | H20: 1 | I20: 1 | J20: 1 | K20: 1 | L20: 1 | M20: 1 | N20: 1 | O20: erwachsene Internetnutzer | P20: 2017 | Q20: Niedrig | R20: Niedrige Validität | S20: http://now.symassets.com/content/dam/norton/global/pdfs/norton_cybersecurity_insights/DE_NCSIR_2017.pdf | U20: hängt von den 44,25% von Norton usw. ab
A21: Investitionen, Altersvorsorge & Armut | C21: Totalverlust bei Crowdfunding | E21: 0.15 | F21: 15000 | G21: 1 | H21: 1 | I21: 1 | J21: 1 | K21: 1 | L21: 1 | M21: 1 | N21: 1 | O21: Investoren | P21: 2015 | Q21: Sehr niedrig | R21: Alter der Daten | S21: https://www.uni-trier.de/fileadmin/fb4/prof/VWL/OAR/Hornuf_Schmitt_-_Success_and_Failure_in_Equity_Crowdfunding.pdf
A22: Versicherungen | C22: Leistungsfall der Fahrzeugvollversicherung | E22: 0.14703 | F22: 14703 | G22: 1 | H22: 1 | I22: 1 | J22: 1 | K22: 1 | L22: 1 | M22: 1 | N22: 1 | O22: Versicherungsverträge | P22: 2018 | Q22: Moderat | R22: Verzerrungsrisiko | S22: Statistisches Jahrbuch der Versicherungswirtschaft | U22: Leistungen im Verhältnis zu den Verträgen
A23: Kaufen, Verträge, und Schulden | C23: Ein/e Produkt/Leistung reklamieren | E23: 0.146 | F23: =0.146*100000 -> 14600 | G23: 1 | H23: 1 | I23: 1 | J23: 1 | K23: 1 | L23: 1 | M23: 1 | N23: 1 | O23: gekaufte Produkte | P23: 2016 | Q23: Niedrig | R23: Niedrige externe Validität | S23: https://reklamation.com/statistik/
A24: Digitalisierung | C24: Offline sexuell belästig worden | E24: 0.14 | F24: 14000 | G24: 1 | H24: 1 | I24: 1 | J24: 1 | K24: 1 | L24: 1 | M24: 1 | N24: 1 | O24: erwachsene Internetnutzer | P24: 2018 | Q24: Sehr niedrig | R24: Sehr niedrige Validität | S24: https://www.bitkom.org/Presse/Presseinformation/Jeder-zweite-Internetnutzer-von-Cyberkriminalitaet-betroffen
A25: Versicherungen | C25: Leistungsfall der technischen Versicherung | E25: 0.1344 | F25: 13440 | G25: 1 | H25: 1 | I25: 1 | J25: 1 | K25: 1 | L25: 1 | M25: 1 | N25: 1 | O25: Versicherungsverträge | P25: 2018 | Q25: Moderat | R25: Verzerrungsrisiko | S25: Statistisches Jahrbuch der Versicherungswirtschaft | U25: Leistungen im Verhältnis zu den Verträgen
A26: Investitionen, Altersvorsorge & Armut | C26: Große Belastung durch Wohnkosten | E26: 0.133 | F26: 13300 | G26: 1 | H26: 1 | I26: 1 | J26: 1 | K26: 1 | L26: 1 | M26: 1 | N26: 1 | O26: Haushalte | P26: 2017 | Q26: Moderat | R26: Dunkelziffer | S26: https://www.destatis.de/DE/ZahlenFakten/GesellschaftStaat/EinkommenKonsumLebensbedingungen/LebensbedingungenArmutsgefaehrdung/Tabellen/FinanzielleKapazitaeten_SILC.html
A27: Digitalisierung | C27: Erleben, dass der eigene Standort ungewollt abgefragt wird | E27: 0.13275 | F27: =0.3*44250 -> 13275 | G27: 1 | H27: 1 | I27: 1 | J27: 1 | K27: 1 | L27: 1 | M27: 1 | N27: 1 | O27: erwachsene Internetnutzer | P27: 2017 | Q27: Niedrig | R27: Niedrige Validität | S27: http://now.symassets.com/content/dam/norton/global/pdfs/norton_cybersecurity_insights/DE_NCSIR_2017.pdf | U27: hängt von den 44,25% von Norton usw. ab
A28: Digitalisierung | C28: Erleben ungewöhnliche Aktivität im häuslichen W-Lan-Netz | E28: 0.128325 | F28: =0.29*44250 -> 12832.5 | G28: 1 | H28: 1 | I28: 1 | J28: 1 | K28: 1 | L28: 1 | M28: 1 | N28: 1 | O28: erwachsene Internetnutzer | P28: 2017 | Q28: Niedrig | R28: Niedrige Validität | S28: http://now.symassets.com/content/dam/norton/global/pdfs/norton_cybersecurity_insights/DE_NCSIR_2017.pdf | U28: hängt von den 44,25% von Norton usw. ab
A29: Digitalisierung | C29: Erleben, dass ein Onlinepasswort geknackt wurde | E29: 0.128325 | F29: =0.29*44250 -> 12832.5 | G29: 1 | H29: 1 | I29: 1 | J29: 1 | K29: 1 | L29: 1 | M29: 1 | N29: 1 | O29: erwachsene Internetnutzer | P29: 2017 | Q29: Niedrig | R29: Niedrige Validität | S29: http://now.symassets.com/content/dam/norton/global/pdfs/norton_cybersecurity_insights/DE_NCSIR_2017.pdf | U29: hängt von den 44,25% von Norton usw. ab
A30: Investitionen, Altersvorsorge & Armut | C30: In Spielbanken problematisch/krankhaft spielen | E30: 0.126 | F30: =0.126*100000 -> 12600 | G30: 1 | H30: 1 | I30: 1 | J30: 1 | K30: 1 | L30: 1 | M30: 1 | N30: 1 | O30: Spieler | P30: 2017 | Q30: Niedrig | R30: Dunkelziffer | S30: Zusammenfassung-der-BZgA-Studie-Glücksspielverhalten-und-Glücksspielsucht-in-Deutschland.-Ergebnisse-des-Surveys-2017-und-Trends
A31: Digitalisierung | C31: Erleben, dass Fremde in das eigene W-Lan-Netz eindringen | E31: 0.1239 | F31: =0.28*44250 -> 12390 | G31: 1 | H31: 1 | I31: 1 | J31: 1 | K31: 1 | L31: 1 | M31: 1 | N31: 1 | O31: erwachsene Internetnutzer | P31: 2017 | Q31: Niedrig | R31: Niedrige Validität | S31: http://now.symassets.com/content/dam/norton/global/pdfs/norton_cybersecurity_insights/DE_NCSIR_2017.pdf | U31: hängt von den 44,25% von Norton usw. ab
A32: Digitalisierung | C32: Werden beim Onlineeinkauf betrogen | E32: 0.12 | F32: 12000 | G32: 1 | H32: 1 | I32: 1 | J32: 1 | K32: 1 | L32: 1 | M32: 1 | N32: 1 | O32: erwachsene Internetnutzer | P32: 2018 | Q32: Niedrig | R32: Niedrige Validität | S32: http://now.symassets.com/content/dam/norton/global/pdfs/norton_cybersecurity_insights/DE_NCSIR_2017.pdf | U32: hängt von den 44,25% von Norton usw. ab | V32: Bitkom: 2018 wären es 12% aller Internetnutzer: https://de.reuters.com/article/deutschland-hacker-umfrage-idDEKCN1P3123 | W32: https://www.bitkom.org/Presse/Presseinformation/Jeder-zweite-Internetnutzer-von-Cyberkriminalitaet-betroffen
A33: Versicherungen | C33: Leistungsfall der Wohngebäudeversicherung | E33: 0.11846 | F33: 11846 | G33: 1 | H33: 1 | I33: 1 | J33: 1 | K33: 1 | L33: 1 | M33: 1 | N33: 1 | O33: Versicherungsverträge | P33: 2018 | Q33: Moderat | R33: Verzerrungsrisiko | S33: Statistisches Jahrbuch der Versicherungswirtschaft | U33: Leistungen im Verhältnis zu den Verträgen
A34: Digitalisierung | C34: Erleben digitalen Kreditkarten- bzw. Kontodatenbetrug | E34: 0.1116833333 | F34: =(0.26*44250+11000*2)/3 -> 11168.33333 | G34: 1 | H34: 1 | I34: 1 | J34: 1 | K34: 1 | L34: 1 | M34: 1 | N34: 1 | O34: erwachsene Internetnutzer | P34: 2018 | Q34: Niedrig | R34: Niedrige Validität | S34: http://now.symassets.com/content/dam/norton/global/pdfs/norton_cybersecurity_insights/DE_NCSIR_2017.pdf | T34: 2018: 11% lt. Bitkom, doppelt gegenüber 2017 gewichtet | U34: hängt von den 44,25% von Norton usw. ab | V34: https://www.bitkom.org/Presse/Presseinformation/Jeder-zweite-Internetnutzer-von-Cyberkriminalitaet-betroffen
A35: Investitionen, Altersvorsorge & Armut | C35: Verluste mit Immobilien | E35: =F35/100000 -> 0.111 | F35: 11100 | G35: 1 | H35: 1 | I35: 1 | J35: 1 | K35: 1 | L35: 1 | M35: 1 | N35: 1 | O35: Immobilieninvestoren | P35: 2011 | Q35: Sehr niedrig | R35: Alter der Daten | S35: Bach et al, 2014 _ DIW | T35: Renditen von Immobilieninvestitionen privater Anleger in der PHF 2010/2011 | V35: https://www.diw.de/documents/publikationen/73/diw_01.c.488172.de/diwkompakt_2014-089.pdf
A36: Digitalisierung | C36: Erleben, dass sich jemand zu Emails/sozialen Netzwerken Zugang verschafft | E36: 0.110625 | F36: =0.25*44250 -> 11062.5 | G36: 1 | H36: 1 | I36: 1 | J36: 1 | K36: 1 | L36: 1 | M36: 1 | N36: 1 | O36: erwachsene Internetnutzer | P36: 2017 | Q36: Niedrig | R36: Niedrige Validität | S36: http://now.symassets.com/content/dam/norton/global/pdfs/norton_cybersecurity_insights/DE_NCSIR_2017.pdf | U36: hängt von den 44,25% von Norton usw. ab
A37: Digitalisierung | C37: Erleben, dass Zahlungsdaten vom Telefon kopiert werden | E37: 0.1062 | F37: =0.24*44250 -> 10620 | G37: 1 | H37: 1 | I37: 1 | J37: 1 | K37: 1 | L37: 1 | M37: 1 | N37: 1 | O37: erwachsene Internetnutzer | P37: 2017 | Q37: Niedrig | R37: Niedrige Validität | S37: http://now.symassets.com/content/dam/norton/global/pdfs/norton_cybersecurity_insights/DE_NCSIR_2017.pdf | U37: hängt von den 44,25% von Norton usw. ab
A38: Digitalisierung | C38: Erleben, dass Zahlungsdaten nach Onlineeinkauf missbraucht werden | E38: 0.101775 | F38: =0.23*44250 -> 10177.5 | G38: 1 | H38: 1 | I38: 1 | J38: 1 | K38: 1 | L38: 1 | M38: 1 | N38: 1 | O38: erwachsene Internetnutzer | P38: 2017 | Q38: Niedrig | R38: Niedrige Validität | S38: http://now.symassets.com/content/dam/norton/global/pdfs/norton_cybersecurity_insights/DE_NCSIR_2017.pdf | U38: hängt von den 44,25% von Norton usw. ab
A39: Digitalisierung | C39: Online verbal angegriffen / schwer beleidigt worden | E39: 0.1 | F39: 10000 | G39: 1 | H39: 1 | I39: 1 | J39: 1 | K39: 1 | L39: 1 | M39: 1 | N39: 1 | O39: erwachsene Internetnutzer | P39: 2018 | Q39: Sehr niedrig | R39: Sehr niedrige Validität | S39: https://www.bitkom.org/Presse/Presseinformation/Jeder-zweite-Internetnutzer-von-Cyberkriminalitaet-betroffen
A40: Kaufen, Verträge, und Schulden | C40: Überschuldet | E40: 0.1 | F40: 10000 | G40: 1 | H40: 1 | I40: 1 | J40: 1 | K40: 1 | L40: 1 | M40: 1 | N40: 1 | O40: Verbraucher | P40: 2018 | Q40: Niedrig | R40: Individuell stark beinflussbar | S40: https://www.creditreform.de/fileadmin/user_upload/crefo/download_de/news_termine/wirtschaftsforschung/schuldneratlas/Analyse_SchuldnerAtlas_2018.pdf
A41: Investitionen, Altersvorsorge & Armut | C41: Erhalten staatliche soziale Unterstützungsleistungen | E41: 0.095 | F41: 9500 | G41: 1 | H41: 1 | I41: 1 | J41: 1 | K41: 1 | L41: 1 | M41: 1 | N41: 1 | O41: Verbraucher | P41: 2017 | Q41: Moderat | R41: Individuell stark beinflussbar | S41: https://rp-online.de/politik/deutschland/7-6-millionen-menschen-erhalten-mindestsicherung_aid-33912859 | U41: Hartz IV, Sozialhilfe, Zuschüsse zur Rente: In Deutschland sind acht Millionen Menschen auf Hilfe vom Staat angewiesen.
A42: Digitalisierung | C42: Bonität schränkt die möglichen Zahlungsweisen beim Onlineeinkauf ein | E42: 0.094 | F42: 9400 | G42: 1 | H42: 1 | I42: 1 | J42: 1 | K42: 1 | L42: 1 | M42: 1 | N42: 1 | O42: Internetnutzer | P42: 2017 | Q42: Sehr niedrig | R42: Niedrige Validität, Verzerrungsrisiko | S42: Schufa-Report 2018
A43: Versicherungen | C43: Leistungsfall einer Kraftfahrversicherung | E43: 0.08109 | F43: 8109 | G43: 1 | H43: 1 | I43: 1 | J43: 1 | K43: 1 | L43: 1 | M43: 1 | N43: 1 | O43: Versicherungsverträge | P43: 2018 | Q43: Moderat | R43: Verzerrungsrisiko | S43: Statistisches Jahrbuch der Versicherungswirtschaft | U43: Leistungen im Verhältnis zu den Verträgen
A44: Digitalisierung | C44: Online sexuell belästig worden | E44: 0.08 | F44: 8000 | G44: 1 | H44: 1 | I44: 1 | J44: 1 | K44: 1 | L44: 1 | M44: 1 | N44: 1 | O44: erwachsene Internetnutzer | P44: 2018 | Q44: Sehr niedrig | R44: Sehr niedrige Validität | S44: https://www.bitkom.org/Presse/Presseinformation/Jeder-zweite-Internetnutzer-von-Cyberkriminalitaet-betroffen
A45: Investitionen, Altersvorsorge & Armut | C45: An Geldspielautomaten problematisch/krankhaft spielen | E45: 0.079 | F45: =0.079*100000 -> 7900 | G45: 1 | H45: 1 | I45: 1 | J45: 1 | K45: 1 | L45: 1 | M45: 1 | N45: 1 | O45: Spieler | P45: 2017 | Q45: Niedrig | R45: Dunkelziffer | S45: Zusammenfassung-der-BZgA-Studie-Glücksspielverhalten-und-Glücksspielsucht-in-Deutschland.-Ergebnisse-des-Surveys-2017-und-Trends
A46: Digitalisierung | C46: Erleben, dass der eigene Computer übernommen wird (ransomware) | E46: 0.075225 | F46: =0.17*44250 -> 7522.5 | G46: 1 | H46: 1 | I46: 1 | J46: 1 | K46: 1 | L46: 1 | M46: 1 | N46: 1 | O46: erwachsene Internetnutzer | P46: 2017 | Q46: Niedrig | R46: Niedrige Validität | S46: http://now.symassets.com/content/dam/norton/global/pdfs/norton_cybersecurity_insights/DE_NCSIR_2017.pdf | T46: 17% Norton | U46: hängt von den 44,25% von Norton usw. ab
A47: Versicherungen | C47: Leistungsfall einer Schadens-/Unfallversicherung | E47: 0.07492 | F47: 7492 | G47: 1 | H47: 1 | I47: 1 | J47: 1 | K47: 1 | L47: 1 | M47: 1 | N47: 1 | O47: Versicherungsverträge | P47: 2018 | Q47: Moderat | R47: Verzerrungsrisiko | S47: Statistisches Jahrbuch der Versicherungswirtschaft | U47: Leistungen im Verhältnis zu den Verträgen
A48: Versicherungen | C48: Leistungsfall einer Sachversicherung | E48: 0.07477 | F48: 7477 | G48: 1 | H48: 1 | I48: 1 | J48: 1 | K48: 1 | L48: 1 | M48: 1 | N48: 1 | O48: Versicherungsverträge | P48: 2018 | Q48: Moderat | R48: Verzerrungsrisiko | S48: Statistisches Jahrbuch der Versicherungswirtschaft | U48: Leistungen im Verhältnis zu den Verträgen
A49: Kaufen, Verträge, und Schulden | C49: Anruf zum Spezialtarif | E49: 0.071 | F49: =(100-64.5-28.4)/100*100000 -> 7100 | G49: 1 | H49: 1 | I49: 1 | J49: 1 | K49: 1 | L49: 1 | M49: 1 | N49: 1 | O49: Serviceanrufe | P49: 2017 | Q49: Sehr niedrig | R49: Niedrige externe Validität | S49: VATM_TK-Marktstudie-2018_091018_f
A50: Kaufen, Verträge, und Schulden | C50: Kreditkartenschulden | E50: 0.07 | F50: 7000 | G50: 1 | H50: 1 | I50: 1 | J50: 1 | K50: 1 | L50: 1 | M50: 1 | N50: 1 | O50: Verbraucher | P50: 2014 | Q50: Sehr niedrig | R50: Alter der Daten | S50: https://www.google.com/url?sa=t&rct=j&q=&esrc=s&source=web&cd=2&ved=2ahUKEwj59o6a3pffAhUQp4sKHTghB0AQFjABegQICBAC&url=https%3A%2F%2Fwww.presseportal.de%2Fdownload%2Fdocument%2F312756-umfrageergebnisse-dispo-nutzung-2015.pdf&usg=AOvVaw29t51ca1TN77Eh8-BRGgkP | T50: 7% in Deutschland | U50: Befragte: 12.743 Personen in 12 Europäischen Ländern + Türkei | V50: Zahlen Olga: 6,8 Millionen | W50: "Nach dem neuen Schuldneratlas gelten zum Stichtag 1. Oktober 2016 mehr als 6,8 Millionen Bürger über 18 Jahre in Deutschland als Personen, die „nachhaltige Zahlungsstörungen“ aufweisen." | X50: https://www.welt.de/finanzen/article159415757/So-verschuldet-sind-die-Deutschen.html
A51: Digitalisierung | C51: Opfer von digitalem Identitätsdiebstahl | E51: 0.0685875 | F51: =0.155*44250 -> 6858.75 | G51: 1 | H51: 1 | I51: 1 | J51: 1 | K51: 1 | L51: 1 | M51: 1 | N51: 1 | O51: erwachsene Internetnutzer | P51: 2017 | Q51: Niedrig | R51: Niedrige Validität | S51: http://now.symassets.com/content/dam/norton/global/pdfs/norton_cybersecurity_insights/DE_NCSIR_2017.pdf | T51: 19% Norton, 12% Schufa beide 2017 - gleichwertig | U51: hängt von den 44,25% von Norton usw. ab
A52: Versicherungen | C52: Leistungsfall der privaten Sachversicherung | E52: 0.06637 | F52: 6637 | G52: 1 | H52: 1 | I52: 1 | J52: 1 | K52: 1 | L52: 1 | M52: 1 | N52: 1 | O52: Versicherungsverträge | P52: 2018 | Q52: Moderat | R52: Verzerrungsrisiko | S52: Statistisches Jahrbuch der Versicherungswirtschaft | U52: Leistungen im Verhältnis zu den Verträgen
A53: Versicherungen | C53: Leistungsfall der Kraftfahrzeug-Haftpflichtversicherung | E53: 0.06312 | F53: 6312 | G53: 1 | H53: 1 | I53: 1 | J53: 1 | K53: 1 | L53: 1 | M53: 1 | N53: 1 | O53: Versicherungsverträge | P53: 2018 | Q53: Moderat | R53: Verzerrungsrisiko | S53: Statistisches Jahrbuch der Versicherungswirtschaft | U53: Leistungen im Verhältnis zu den Verträgen
A54: Digitalisierung | C54: Werden vom digitalen technischen Support betrogen | E54: 0.06195 | F54: =0.14*44250 -> 6195 | G54: 1 | H54: 1 | I54: 1 | J54: 1 | K54: 1 | L54: 1 | M54: 1 | N54: 1 | O54: erwachsene Internetnutzer | P54: 2017 | Q54: Niedrig | R54: Niedrige Validität | S54: http://now.symassets.com/content/dam/norton/global/pdfs/norton_cybersecurity_insights/DE_NCSIR_2017.pdf | U54: hängt von den 44,25% von Norton usw. ab
A55: Kaufen, Verträge, und Schulden | C55: Ein Produkt/Leistung zurückgeben/-weisen | E55: 0.061 | F55: =0.061*100000 -> 6100 | G55: 1 | H55: 1 | I55: 1 | J55: 1 | K55: 1 | L55: 1 | M55: 1 | N55: 1 | O55: gekaufte Produkte | P55: 2016 | Q55: Niedrig | R55: Niedrige externe Validität | S55: https://reklamation.com/statistik/
A56: Investitionen, Altersvorsorge & Armut | C56: Oddset-Spiele problematisch/krankhaft spielen | E56: 0.059 | F56: =0.059*100000 -> 5900 | G56: 1 | H56: 1 | I56: 1 | J56: 1 | K56: 1 | L56: 1 | M56: 1 | N56: 1 | O56: Spieler | P56: 2017 | Q56: Niedrig | R56: Dunkelziffer | S56: Zusammenfassung-der-BZgA-Studie-Glücksspielverhalten-und-Glücksspielsucht-in-Deutschland.-Ergebnisse-des-Surveys-2017-und-Trends
A57: Versicherungen | C57: Leistungsfall der Fahrzeugteilversicherung | E57: 0.0585 | F57: 5850 | G57: 1 | H57: 1 | I57: 1 | J57: 1 | K57: 1 | L57: 1 | M57: 1 | N57: 1 | O57: Versicherungsverträge | P57: 2018 | Q57: Moderat | R57: Verzerrungsrisiko | S57: Statistisches Jahrbuch der Versicherungswirtschaft | U57: Leistungen im Verhältnis zu den Verträgen
A58: Digitalisierung | C58: Erleben unauthorisierten Zugriff auf einem Smarthome-Gerät | E58: 0.057525 | F58: =0.13*44250 -> 5752.5 | G58: 1 | H58: 1 | I58: 1 | J58: 1 | K58: 1 | L58: 1 | M58: 1 | N58: 1 | O58: erwachsene Internetnutzer | P58: 2017 | Q58: Niedrig | R58: Niedrige Validität | S58: http://now.symassets.com/content/dam/norton/global/pdfs/norton_cybersecurity_insights/DE_NCSIR_2017.pdf | U58: hängt von den 44,25% von Norton usw. ab
A59: Kaufen, Verträge, und Schulden | C59: Verspätung über 6 Minuten im Nahverkehr | E59: 0.055 | F59: 5500 | G59: 1 | H59: 1 | I59: 1 | J59: 1 | K59: 1 | L59: 1 | M59: 1 | N59: 1 | O59: Bahnfahrer | P59: 2018 | Q59: Moderat | R59: Verzerrungsrisiko | S59: https://www.zugreiseblog.de/bahn-puenktlichkeit-statistik/
A60: Versicherungen | C60: Leistungsfall der allgemeinen Haftpflichtversicherung | E60: 0.05321 | F60: 5321 | G60: 1 | H60: 1 | I60: 1 | J60: 1 | K60: 1 | L60: 1 | M60: 1 | N60: 1 | O60: Versicherungsverträge | P60: 2018 | Q60: Moderat | R60: Verzerrungsrisiko | S60: Statistisches Jahrbuch der Versicherungswirtschaft | U60: Leistungen im Verhältnis zu den Verträgen
A61: Digitalisierung | C61: Beruflich benachteiligt aufgrund von Texten unter dem eigenen Namen | E61: 0.0531 | F61: =0.12*44250 -> 5310 | G61: 1 | H61: 1 | I61: 1 | J61: 1 | K61: 1 | L61: 1 | M61: 1 | N61: 1 | O61: erwachsene Internetnutzer | P61: 2017 | Q61: Niedrig | R61: Niedrige Validität | S61: http://now.symassets.com/content/dam/norton/global/pdfs/norton_cybersecurity_insights/DE_NCSIR_2017.pdf | U61: hängt von den 44,25% von Norton usw. ab
A62: Investitionen, Altersvorsorge & Armut | C62: Miete oder Nebenkosten nicht leisten können | E62: 0.044 | F62: 4400 | G62: 1 | H62: 1 | I62: 1 | J62: 1 | K62: 1 | L62: 1 | M62: 1 | N62: 1 | O62: Haushalte | P62: 2017 | Q62: Moderat | R62: Dunkelziffer | S62: https://www.destatis.de/DE/ZahlenFakten/GesellschaftStaat/EinkommenKonsumLebensbedingungen/LebensbedingungenArmutsgefaehrdung/Tabellen/Eurostat_MaterielleEntbehrung_SILC.html | T62: Der Haushalt kann sich nicht leisten rechtzeitiges Bezahlen der Miete oder der Rechnungen für Versorgungs­leistungen“
A63: Versicherungen | C63: Leistungsfall der Schutzbriefversicherung | E63: 0.03892 | F63: 3892 | G63: 1 | H63: 1 | I63: 1 | J63: 1 | K63: 1 | L63: 1 | M63: 1 | N63: 1 | O63: Versicherungsverträge | P63: 2018 | Q63: Moderat | R63: Verzerrungsrisiko | S63: Statistisches Jahrbuch der Versicherungswirtschaft | U63: Leistungen im Verhältnis zu den Verträgen
A64: Versicherungen | C64: Leistungsfall der Hausratversicherung | E64: 0.03753 | F64: 3753 | G64: 1 | H64: 1 | I64: 1 | J64: 1 | K64: 1 | L64: 1 | M64: 1 | N64: 1 | O64: Versicherungsverträge | P64: 2018 | Q64: Moderat | R64: Verzerrungsrisiko | S64: Statistisches Jahrbuch der Versicherungswirtschaft | U64: Leistungen im Verhältnis zu den Verträgen
A65: Investitionen, Altersvorsorge & Armut | C65: Online-Sportwetten problematisch/krankhaft spielen | E65: 0.037 | F65: =0.037*100000 -> 3700 | G65: 1 | H65: 1 | I65: 1 | J65: 1 | K65: 1 | L65: 1 | M65: 1 | N65: 1 | O65: Spieler | P65: 2017 | Q65: Niedrig | R65: Dunkelziffer | S65: Zusammenfassung-der-BZgA-Studie-Glücksspielverhalten-und-Glücksspielsucht-in-Deutschland.-Ergebnisse-des-Surveys-2017-und-Trends
A66: Versicherungen | C66: Leistungsfall der privaten Unfallversicherung | E66: 0.03185 | F66: 3185 | G66: 1 | H66: 1 | I66: 1 | J66: 1 | K66: 1 | L66: 1 | M66: 1 | N66: 1 | O66: Versicherungsverträge | P66: 2018 | Q66: Moderat | R66: Verzerrungsrisiko | S66: Statistisches Jahrbuch der Versicherungswirtschaft | U66: Leistungen im Verhältnis zu den Verträgen
A67: Digitalisierung | C67: Erleben Privatsphäreverletzungen | E67: =F67/100000 -> 0.03 | F67: 3000 | G67: 1 | H67: 1 | I67: 1 | J67: 1 | K67: 1 | L67: 1 | M67: 1 | N67: 1 | O67: erwachsene Internetnutzer | P67: 2015 | Q67: Niedrig | R67: Niedrige Validität | S67: http://appsso.eurostat.ec.europa.eu/nui/show.do?query=BOOKMARK_DS-132957_QID_56703153_UID_-3F171EB0&layout=TIME,C,X,0;GEO,L,Y,0;INDIC_IS,L,Z,0;IND_TYPE,L,Z,1;UNIT,L,Z,2;INDICATORS,C,Z,3;&zSelection=DS-132957IND_TYPE,IND_TOTAL;DS-132957INDIC_IS,I_SECPIF1;DS-132957INDICATORS,OBS_FLAG;DS-132957UNIT,PC_IND_ILT12;&rankName1=UNIT_1_2_-1_2&rankName2=INDICATORS_1_2_-1_2&rankName3=INDIC-IS_1_2_-1_2&rankName4=IND-TYPE_1_2_-1_2&rankName5=TIME_1_0_0_0&rankName6=GEO_1_2_0_1&sortC=ASC_-1_FIRST&rStp=&cStp=&rDCh=&cDCh=&rDM=true&cDM=true&footnes=false&empty=false&wai=false&time_mode=NONE&time_most_recent=false&lang=EN&cfo=%23%23%23%2C%23%23%23.%23%23%23
A68: Investitionen, Altersvorsorge & Armut | C68: Sportwetten problematisch/krankhaft spielen | E68: 0.03 | F68: =0.03*100000 -> 3000 | G68: 1 | H68: 1 | I68: 1 | J68: 1 | K68: 1 | L68: 1 | M68: 1 | N68: 1 | O68: Spieler | P68: 2017 | Q68: Niedrig | R68: Dunkelziffer | S68: Zusammenfassung-der-BZgA-Studie-Glücksspielverhalten-und-Glücksspielsucht-in-Deutschland.-Ergebnisse-des-Surveys-2017-und-Trends
A69: Investitionen, Altersvorsorge & Armut | C69: Klassenlotterien problematisch/krankhaft spielen | E69: 0.025 | F69: =0.025*100000 -> 2500 | G69: 1 | H69: 1 | I69: 1 | J69: 1 | K69: 1 | L69: 1 | M69: 1 | N69: 1 | O69: Spieler | P69: 2017 | Q69: Niedrig | R69: Dunkelziffer | S69: Zusammenfassung-der-BZgA-Studie-Glücksspielverhalten-und-Glücksspielsucht-in-Deutschland.-Ergebnisse-des-Surveys-2017-und-Trends | T69: 7188 Menschen | U69: Aklgemeine Glücksspiele S.107 n=11501 Dagegen schätzen im Jahr 2015 62,5 %, dass sie einen Verlust erlitten haben. Auch die hier angege- benen Beträge schwanken erheblich: Im Median betragen sie 50 Euro, IQB = 20 bis 150 €). 2013 betrug dieser Anteil 64,7 % (Median: 60 Euro, IQB = 20 bis 200 €). Bei 27,1 % ist die Bilanz im Jahr 2015 nach eigener Einschätzung ausgeglichen (2013: 24,7 %).
A70: Investitionen, Altersvorsorge & Armut | C70: Toto problematisch/krankhaft spielen | E70: 0.025 | F70: =0.025*100000 -> 2500 | G70: 1 | H70: 1 | I70: 1 | J70: 1 | K70: 1 | L70: 1 | M70: 1 | N70: 1 | O70: Spieler | P70: 2017 | Q70: Niedrig | R70: Dunkelziffer | S70: Zusammenfassung-der-BZgA-Studie-Glücksspielverhalten-und-Glücksspielsucht-in-Deutschland.-Ergebnisse-des-Surveys-2017-und-Trends
A71: Digitalisierung | C71: Persönliche analoge Daten gestohlen | E71: 0.02 | F71: =2000 -> 2000 | G71: 1 | H71: 1 | I71: 1 | J71: 1 | K71: 1 | L71: 1 | M71: 1 | N71: 1 | O71: erwachsene Internetnutzer | P71: 2018 | Q71: Niedrig | R71: Niedrige Validität | S71: https://www.bitkom.org/Presse/Presseinformation/Jeder-zweite-Internetnutzer-von-Cyberkriminalitaet-betroffen | T71: 2018: Bitkom
A72: Investitionen, Altersvorsorge & Armut | C72: 6 aus 49 problematisch/krankhaft spielen | E72: 0.02 | F72: =0.02*100000 -> 2000 | G72: 1 | H72: 1 | I72: 1 | J72: 1 | K72: 1 | L72: 1 | M72: 1 | N72: 1 | O72: Spieler | P72: 2017 | Q72: Niedrig | R72: Dunkelziffer | S72: Zusammenfassung-der-BZgA-Studie-Glücksspielverhalten-und-Glücksspielsucht-in-Deutschland.-Ergebnisse-des-Surveys-2017-und-Trends
A73: Digitalisierung | C73: Geldverlust aufgrund Identitätsdiebstahl | E73: 0.01730575 | F73: =0.29*5967.5 -> 1730.575 | G73: 1 | H73: 1 | I73: 1 | J73: 1 | K73: 1 | L73: 1 | M73: 1 | N73: 1 | O73: Internetnutzer | P73: 2017 | Q73: Sehr niedrig | R73: Niedrige Validität | S73: https://www.pwc.de/de/handel-und-konsumguter/assets/cyber-security-identitaetsdiebstahl-2016.pdf | U73: hängt von den 44,25% von Norton usw. ab
A74: Digitalisierung | C74: Rechnungen für Einkäufe erhalten, die man nie getätigt hat, aufgrund Identitätsdiebstahl | E74: 0.01611225 | F74: =0.27*5967.5 -> 1611.225 | G74: 1 | H74: 1 | I74: 1 | J74: 1 | K74: 1 | L74: 1 | M74: 1 | N74: 1 | O74: Internetnutzer | P74: 2017 | Q74: Sehr niedrig | R74: Niedrige Validität | S74: https://www.pwc.de/de/handel-und-konsumguter/assets/cyber-security-identitaetsdiebstahl-2016.pdf | U74: hängt von den 44,25% von Norton usw. ab
A75: Kaufen, Verträge, und Schulden | C75: Mehr als 3h Verspätung | E75: 0.015 | F75: =0.015*100000 -> 1500 | G75: 1 | H75: 1 | I75: 1 | J75: 1 | K75: 1 | L75: 1 | M75: 1 | N75: 1 | O75: Flügen | P75: 2017 | Q75: Niedrig | R75: Niedrige externe Validität | S75: https://www.reisereporter.de/artikel/1947-flugausfaelle-flugverspaetung-taeglich-69-faelle-probleme-mit-fluegen
A76: Investitionen, Altersvorsorge & Armut | C76: Erhalten Grundsicherung | E76: 0.0132278481 | F76: =1.1/(7.9/0.095)*100*1000 -> 1322.78481 | G76: 1 | H76: 1 | I76: 1 | J76: 1 | K76: 1 | L76: 1 | M76: 1 | N76: 1 | O76: Verbraucher | P76: 2017 | Q76: Moderat | R76: Individuell stark beinflussbar | S76: https://rp-online.de/politik/deutschland/7-6-millionen-menschen-erhalten-mindestsicherung_aid-33912859
A77: Investitionen, Altersvorsorge & Armut | C77: Eurojackpot problematisch/krankhaft spielen | E77: 0.011 | F77: =0.011*100000 -> 1100 | G77: 1 | H77: 1 | I77: 1 | J77: 1 | K77: 1 | L77: 1 | M77: 1 | N77: 1 | O77: Spieler | P77: 2017 | Q77: Niedrig | R77: Dunkelziffer | S77: Zusammenfassung-der-BZgA-Studie-Glücksspielverhalten-und-Glücksspielsucht-in-Deutschland.-Ergebnisse-des-Surveys-2017-und-Trends
A78: Digitalisierung | C78: Abmahnungen von Rechtsanwälten aufgrund Identitätsdiebstahl | E78: 0.01014475 | F78: =0.17*5967.5 -> 1014.475 | G78: 1 | H78: 1 | I78: 1 | J78: 1 | K78: 1 | L78: 1 | M78: 1 | N78: 1 | O78: Internetnutzer | P78: 2017 | Q78: Sehr niedrig | R78: Niedrige Validität | S78: https://www.pwc.de/de/handel-und-konsumguter/assets/cyber-security-identitaetsdiebstahl-2016.pdf | U78: hängt von den 44,25% von Norton usw. ab
A79: Digitalisierung | C79: Opfer von analogem Identitätsdiebstahl | E79: 0.01 | F79: 1000 | G79: 1 | H79: 1 | I79: 1 | J79: 1 | K79: 1 | L79: 1 | M79: 1 | N79: 1 | O79: erwachsene Internetnutzer | P79: 2018 | Q79: Niedrig | R79: Niedrige Validität | S79: https://www.bitkom.org/Presse/Presseinformation/Jeder-zweite-Internetnutzer-von-Cyberkriminalitaet-betroffen
A80: Digitalisierung | C80: Erleben analogen Kreditkarten- bzw. Kontodatenbetrug | E80: 0.01 | F80: =1000 -> 1000 | G80: 1 | H80: 1 | I80: 1 | J80: 1 | K80: 1 | L80: 1 | M80: 1 | N80: 1 | O80: erwachsene Internetnutzer | P80: 2018 | Q80: Niedrig | R80: Niedrige Validität | S80: https://www.bitkom.org/Presse/Presseinformation/Jeder-zweite-Internetnutzer-von-Cyberkriminalitaet-betroffen | T80: 2018: 1% lt. Bitkom
A81: Investitionen, Altersvorsorge & Armut | C81: Glücksspirale problematisch/krankhaft spielen | E81: 0.01 | F81: =0.01*100000 -> 1000 | G81: 1 | H81: 1 | I81: 1 | J81: 1 | K81: 1 | L81: 1 | M81: 1 | N81: 1 | O81: Spieler | P81: 2017 | Q81: Niedrig | R81: Dunkelziffer | S81: Zusammenfassung-der-BZgA-Studie-Glücksspielverhalten-und-Glücksspielsucht-in-Deutschland.-Ergebnisse-des-Surveys-2017-und-Trends
A82: Investitionen, Altersvorsorge & Armut | C82: Problematisches Spielverhalten | E82: 0.0087 | F82: 870 | G82: 1 | H82: 1 | I82: 1 | J82: 1 | K82: 1 | L82: 1 | M82: 1 | N82: 1 | O82: Verbraucher | P82: 2017 | Q82: Moderat | R82: Dunkelziffer | S82: https://lssh.de/wp-content/uploads/2018/07/Zusammenfassung-der-BZgA-Studie-Gl%C3%BCcksspielverhalten-und-Gl%C3%BCcksspielsucht-in-Deutschland.-Ergebnisse-des-Surveys-2017-und-Trends.pdf
A83: Kaufen, Verträge, und Schulden | C83: Fluggepäck beschädigt/verloren | E83: 0.00806 | F83: =0.00806*100000 -> 806 | G83: 1 | H83: 1 | I83: 1 | J83: 1 | K83: 1 | L83: 1 | M83: 1 | N83: 1 | O83: Flügen | P83: 2016 | Q83: Moderat | R83: Verzerrungsrisiko | S83: http://comms.sita.aero/rs/089-zse-857/images/baggage-report-2017.pdf
A84: Investitionen, Altersvorsorge & Armut | C84: Bestreiten Lebensunterhalt durch eigene Kapitaleinnahmen | E84: 0.008 | F84: 800 | G84: 1 | H84: 1 | I84: 1 | J84: 1 | K84: 1 | L84: 1 | M84: 1 | N84: 1 | O84: Verbraucher | P84: 2015 | Q84: Moderat | R84: Reliabilität eingeschränkt | S84: https://www.destatis.de/DE/PresseService/Presse/Pressemitteilungen/2016/07/PD16_243_122.html
A85: Investitionen, Altersvorsorge & Armut | C85: Fernsehlotterie problematisch/krankhaft spielen | E85: 0.004 | F85: =0.004*100000 -> 400 | G85: 1 | H85: 1 | I85: 1 | J85: 1 | K85: 1 | L85: 1 | M85: 1 | N85: 1 | O85: Spieler | P85: 2017 | Q85: Niedrig | R85: Dunkelziffer | S85: Zusammenfassung-der-BZgA-Studie-Glücksspielverhalten-und-Glücksspielsucht-in-Deutschland.-Ergebnisse-des-Surveys-2017-und-Trends
A86: Investitionen, Altersvorsorge & Armut | C86: Süchtig nach Glücksspiel | E86: 0.0031 | F86: 310 | G86: 1 | H86: 1 | I86: 1 | J86: 1 | K86: 1 | L86: 1 | M86: 1 | N86: 1 | O86: Verbraucher | P86: 2017 | Q86: Moderat | R86: Dunkelziffer | S86: https://lssh.de/wp-content/uploads/2018/07/Zusammenfassung-der-BZgA-Studie-Gl%C3%BCcksspielverhalten-und-Gl%C3%BCcksspielsucht-in-Deutschland.-Ergebnisse-des-Surveys-2017-und-Trends.pdf
A87: Digitalisierung | C87: Kreditwürdigkeit vom Wohnort bestimmt | E87: 0.003 | F87: 300 | G87: 1 | H87: 1 | I87: 1 | J87: 1 | K87: 1 | L87: 1 | M87: 1 | N87: 1 | O87: Verbraucher | P87: 2017 | Q87: Niedrig | R87: Verzerrungsrisiko | S87: Schufa-Report 2018
A88: Kaufen, Verträge, und Schulden | C88: Beschweren sich über unerlaubte Telefonwerbung | E88: 0.001413375338 | F88: =52342*12/11/40400000*100000 -> 141.3375338 | G88: 1 | H88: 1 | I88: 1 | J88: 1 | K88: 1 | L88: 1 | M88: 1 | N88: 1 | O88: Haushalte | P88: 2017 | Q88: Sehr niedrig | R88: Niedrige externe Validität | S88: https://www.bundesnetzagentur.de/SharedDocs/Pressemitteilungen/DE/2017/28122017_Telekommunikation.html
A89: Haushalt | C89: Erkrankungen durch Mikroorganismen in Lebensmitteln | E89: 0.001219512195 | F89: =100000/82000000*100000 -> 121.9512195 | G89: 1 | H89: 1 | I89: 1 | J89: 1 | K89: 1 | L89: 1 | M89: 1 | N89: 1 | O89: Verbraucher | P89: 2017 | Q89: Sehr niedrig | R89: Dunkelziffer | S89: https://www.bfr.bund.de/cm/350/verbrauchertipps_schutz_vor_lebensmittelinfektionen_im_privathaushalt.pdf
A90: Kaufen, Verträge, und Schulden | C90: Verbraucherinsolvenz | E90: 0.001041971014 | F90: =71896/69000000*100000 -> 104.1971014 | G90: 1 | H90: 1 | I90: 1 | J90: 1 | K90: 1 | L90: 1 | M90: 1 | N90: 1 | O90: Verbraucher | P90: 2017 | Q90: Niedrig | R90: Niedrige Validität | S90: https://de.statista.com/statistik/daten/studie/150565/umfrage/privatinsolvenzen-in-deutschland-seit-2000/ | T90: 94079 in 2017 in Deutschland, Verbraucherinsolvenz 71.896 in 2017, Selbstständigen-Insolvenz 19.881 in 2017 | V90: Schufa-Report 2018
A91: Versicherungen | C91: Leistungsfall der Kraftfahrtunfallversicherung | E91: 0.00051 | F91: 51 | G91: 1 | H91: 1 | I91: 1 | J91: 1 | K91: 1 | L91: 1 | M91: 1 | N91: 1 | O91: Versicherungsverträge | P91: 2018 | Q91: Moderat | R91: Verzerrungsrisiko | S91: Statistisches Jahrbuch der Versicherungswirtschaft | U91: Leistungen im Verhältnis zu den Verträgen
A92: Investitionen, Altersvorsorge & Armut | C92: Opfer von Betrug/Untreue bei Kapitalanlage | E92: 0.0001668550725 | F92: =11513/69000000*100000 -> 16.68550725 | G92: 1 | H92: 1 | I92: 1 | J92: 1 | K92: 1 | L92: 1 | M92: 1 | N92: 1 | O92: Verbraucher | P92: 2017 | Q92: Hoch | S92: BKA Bundeslagebild 2017 | T92: 5-Jahresschnitt | V92: https://www.bka.de/SharedDocs/Downloads/DE/Publikationen/JahresberichteUndLagebilder/Wirtschaftskriminalitaet/wirtschaftskriminalitaetBundeslagebild2017.pdf?__blob=publicationFile&v=2
A93: Digitalisierung | C93: Erleben EC-Kartendiebstahl mit Betrug (Debitkarten) | E93: 0.0001500434783 | F93: =10353/69000000*100000 -> 15.00434783 | G93: 1 | H93: 1 | I93: 1 | J93: 1 | K93: 1 | L93: 1 | M93: 1 | N93: 1 | O93: Verbraucher | P93: 2017 | Q93: Moderat | R93: Individuell stark beinflussbar | S93: https://www.focus.de/finanzen/news/2-2-millionen-euro-schaden-wieder-mehr-betrug-mit-bankkarten-branche-ohne-sorge_id_8294582.html | U93: Hier jedoch sind die aktuellen Zahlen rückläufig: 10.353 Fälle wurden gezählt.
A94: Verträge | C94: Schlichtungsantrag im Konfliktfall | E94: 9.717391304e-05 | F94: =447/4600000*100000 -> 9.717391304 | G94: 1 | H94: 1 | I94: 1 | J94: 1 | K94: 1 | L94: 1 | M94: 1 | N94: 1 | O94: Stromanbieter-Wechselversuche | P94: 2016 | Q94: Niedrig | R94: Sehr niedrige Validität | S94: https://www.schlichtungsstelle-energie.de/presse/presseartikel/taetigkeitsbericht-der-schlichtungsstelle-energie-39.html; Bericht der Bundesnetzagentur 2017 | U94: 447 Beschwerde bzw. Schlichtungsanträge wegen Lieferantenwechsel 2016 s. 7 https://www.schlichtungsstelle-energie.de/presse/presseartikel/taetigkeitsbericht-der-schlichtungsstelle-energie-39.html 4,6 Mio. Lieferantenwechseln 2016 https://www.bundesnetzagentur.de/SharedDocs/Downloads/DE/Allgemeines/Bundesnetzagentur/Publikationen/Berichte/2018/JB2017.pdf?__blob=publicationFile&v=2

Sheet Evidenz fehlt
A1: Investitionen, Altersvorsorge & Armut | B1: Grauer Kapitalmarkt | C1: Armut, Verluste | D1: Altersvorsorge, Altersarmut | F1: Wie viele Menschen sind "Opfer" vom grauen Kapitalmarkt | H1: (7,9/0,095) | M1: "Zur Anzahl und Höhe der Schadensfälle durch Kapitalan- lagen im Grauen Kapitalmarkt gibt es keine zuverlässigen Zahlen" | N1: Am Grauen Kapitalmarkt entstehen nach Angaben des Deutschen Anlegerschutzbundes (DASB) jedes Jahr Schäden in Höhe von 20 bis 30 Milliarden Euro. | O1: https://www.handelsblatt.com/finanzen/anlagestrategie/trends/grauer-kapitalmarkt-welchen-schaden-betrueger-anrichten/3525674.html
A2: Investitionen, Altersvorsorge & Armut | B2: Fonds | C2: Armut, Verluste | D2: Altersvorsorge, Altersarmut | E2: Ministry | F2: Wie viele Menschen haben Geld verloren, weil sie in Fonds investierten?
A3: Investitionen, Altersvorsorge & Armut | B3: Fonds | C3: Armut, Verluste | D3: Altersvorsorge, Altersarmut | F3: Wie viele Menschen sind die die Armut abgerutscht/haben alles verloren, weil sie in Fonds investierten?
A4: Investitionen, Altersvorsorge & Armut | B4: Investitionsrisiken | C4: Armut, Verluste | D4: Altersvorsorge, Altersarmut | E4: Ministry | F4: Wie viele Menschen haben Geld verloren, weil sie im Internet investierten?
A5: Investitionen, Altersvorsorge & Armut | B5: Investitionsrisiken | C5: Armut, Verluste | D5: Altersvorsorge, Altersarmut | F5: Wie viele Menschen sind die die Armut abgerutscht/haben alles verloren, weil sie im Internet investierten?
A6: Investitionen, Altersvorsorge & Armut | B6: ETFs | C6: Armut, Verluste | D6: Altersvorsorge, Altersarmut | E6: Ministry | F6: Wie viele Menschen haben Geld verloren, weil sie in ETFs investierten?
A7: Investitionen, Altersvorsorge & Armut | B7: ETFs | C7: Armut, Verluste | D7: Altersvorsorge, Altersarmut | F7: Wie viele Menschen sind die die Armut abgerutscht/haben alles verloren, weil sie in ETFs investierten?
